{"text_format":"1","workbook":"xlsx","n_sheets":9,"sheets":["equivGrpSorted","CountsByClinic","DataOld","Data","ASSOCIATE DIR FLEET MEDICINE","FISHER BRANCH CLINIC - 237","OCCUPATIONAL HEALTH MEDICINE","FleetMerged","ZeroFinds"],"not_rendered":{"charts":0,"images":0,"macros":1,"external_links":0,"defined_names":0,"comments":0,"pivot_tables":0},"unopened":[],"bounds":{"document_bytes":16777216,"sheet_cells":100000,"rows_first":2000,"rows_last":500,"rows_between":2000,"halvings":0,"cell_chars":16384,"cell_head_chars":4096},"cells_cut":0,"cells_raw":0,"read":"whole","date_system":"1900"}

{"sheet":"equivGrpSorted","index":0,"n_rows":79,"n_cols":7,"rows_kept":79,"cut":false,"hidden":false,"merged":[]}
["          SERVICE: AUDIOLOGSPEECH PATH.","Ancillary Services",null,"          SERVICE: ACUTE INPATIENT","ACUTE INPATIENT",{"$f":"CHAR(34)&E1&CHAR(34)","v":"\"ACUTE INPATIENT\""},"\"ACUTE INPATIENT\""]
["          SERVICE: IMAGING SERVICE","Ancillary Services",null,"          SERVICE: ASSOCIATE DIR DENTAL SERVICES","ASSOCIATE DIR DENTAL SERVICES",{"$f":"CHAR(34)&E2&CHAR(34)","v":"\"ASSOCIATE DIR DENTAL SERVICES\""},"\"ASSOCIATE DIR DENTAL SERVICES\""]
["          SERVICE: LABORATORY SERVICE","Ancillary Services",null,"          SERVICE: ASSOCIATE DIR FLEET MEDICINE","ASSOCIATE DIR FLEET MEDICINE","\"ASSOCIATE DIR FLEET MEDICINE\"","\"ASSOCIATE DIR FLEET MEDICINE\""]
["          SERVICE: NUTRITION AND FOOD SERVICE","Ancillary Services",null,"          SERVICE: AUDIOLOGSPEECH PATH.","AUDIOLOGSPEECH PATH.","\"AUDIOLOGSPEECH PATH.\"","\"AUDIOLOGSPEECH PATH.\""]
["          SERVICE: OPTOMETRY SECTION","Ancillary Services",null,"          SERVICE: CARDIOLOGY SECTION","CARDIOLOGY SECTION","\"CARDIOLOGY SECTION\"","\"CARDIOLOGY SECTION\""]
["          SERVICE: PHARMACY SERVICE","Ancillary Services",null,"          SERVICE: CHIEF MEDICAL EXECUTIVE","CHIEF MEDICAL EXECUTIVE","\"CHIEF MEDICAL EXECUTIVE\"","\"CHIEF MEDICAL EXECUTIVE\""]
["          SERVICE: PHYSICAL THERAPY","Ancillary Services",null,"          SERVICE: COMMAND SUITE","COMMAND SUITE","\"COMMAND SUITE\"","\"COMMAND SUITE\""]
["          SERVICE: PROSTHETICS & SENSORY AID","Ancillary Services",null,"          SERVICE: COMMUNITY LIVING CENTER","COMMUNITY LIVING CENTER","\"COMMUNITY LIVING CENTER\"","\"COMMUNITY LIVING CENTER\""]
["          SERVICE: RADIOLOGY SECTION","Ancillary Services",null,"          SERVICE: CRITICAL CARE SECTION","CRITICAL CARE SECTION","\"CRITICAL CARE SECTION\"","\"CRITICAL CARE SECTION\""]
["          SERVICE: REHABILITATION","Ancillary Services",null,"          SERVICE: DENTAL","DENTAL","\"DENTAL\"","\"DENTAL\""]
["          SERVICE: GERIATRICS & EXTENDED CARE","CLC-HCBC",null,"          SERVICE: DERMATOLOGY SECTION","DERMATOLOGY SECTION","\"DERMATOLOGY SECTION\"","\"DERMATOLOGY SECTION\""]
["          SERVICE: HOME COMMUNITY BASED CARE","CLC-HCBC",null,"          SERVICE: DOMICILIARY SERVICE","DOMICILIARY SERVICE","\"DOMICILIARY SERVICE\"","\"DOMICILIARY SERVICE\""]
["          SERVICE: COMMUNITY LIVING CENTER","CLC-HCBC",null,"          SERVICE: EDUCATION","EDUCATION","\"EDUCATION\"","\"EDUCATION\""]
["          SERVICE: CHIEF MEDICAL EXECUTIVE","CME-CmdSte",null,"          SERVICE: EMERGENCY DEPARTMENT","EMERGENCY DEPARTMENT","\"EMERGENCY DEPARTMENT\"","\"EMERGENCY DEPARTMENT\""]
["          SERVICE: COMMAND SUITE","CME-CmdSte",null,"          SERVICE: ENDOCRINOLOGY SECTION","ENDOCRINOLOGY SECTION","\"ENDOCRINOLOGY SECTION\"","\"ENDOCRINOLOGY SECTION\""]
["          SERVICE: INFECTION CONTROL","CME-CmdSte",null,"          SERVICE: EVANSTON CBOC","EVANSTON CBOC","\"EVANSTON CBOC\"","\"EVANSTON CBOC\""]
["          SERVICE: OCC DELIVERY OPS","CME-CmdSte",null,"          SERVICE: FACILITY MANAGEMENT SERVICE","FACILITY MANAGEMENT SERVICE","\"FACILITY MANAGEMENT SERVICE\"","\"FACILITY MANAGEMENT SERVICE\""]
["          SERVICE: OFFICE OF PERFORMANCE IMP","CME-CmdSte",null,"          SERVICE: FISHER BRANCH CLINIC - 237","FISHER BRANCH CLINIC - 237","\"FISHER BRANCH CLINIC - 237\"","\"FISHER BRANCH CLINIC - 237\""]
["          SERVICE: ASSOCIATE DIR DENTAL SERVICES","Dental",null,"          SERVICE: GASTROENTEROLOGY SECTION","GASTROENTEROLOGY SECTION","\"GASTROENTEROLOGY SECTION\"","\"GASTROENTEROLOGY SECTION\""]
["          SERVICE: DENTAL","Dental",null,"          SERVICE: GENERAL SURGERY","GENERAL SURGERY","\"GENERAL SURGERY\"","\"GENERAL SURGERY\""]
["          SERVICE: FACILITY MANAGEMENT SERVICE","Facilities",null,"          SERVICE: GERIATRICS & EXTENDED CARE","GERIATRICS & EXTENDED CARE","\"GERIATRICS & EXTENDED CARE\"","\"GERIATRICS & EXTENDED CARE\""]
["          SERVICE: ASSOCIATE DIR FLEET MEDICINE","Fleet",null,"          SERVICE: HEALTH CARE BUSINESS","HEALTH CARE BUSINESS","\"HEALTH CARE BUSINESS\"","\"HEALTH CARE BUSINESS\""]
["          SERVICE: FISHER BRANCH CLINIC - 237","Fleet",null,"          SERVICE: HOME COMMUNITY BASED CARE","HOME COMMUNITY BASED CARE","\"HOME COMMUNITY BASED CARE\"","\"HOME COMMUNITY BASED CARE\""]
["          SERVICE: OCCUPATIONAL HEALTH MEDICINE","Fleet",null,"          SERVICE: IMAGING SERVICE","IMAGING SERVICE","\"IMAGING SERVICE\"","\"IMAGING SERVICE\""]
["          SERVICE: USS TRANQUILITY - 1007","Fleet",null,"          SERVICE: INFECTION CONTROL","INFECTION CONTROL","\"INFECTION CONTROL\"","\"INFECTION CONTROL\""]
["          SERVICE: ACUTE INPATIENT","Inpatient & ICU",null,"          SERVICE: INFECTIOUS DISEASE SECTION","INFECTIOUS DISEASE SECTION","\"INFECTIOUS DISEASE SECTION\"","\"INFECTIOUS DISEASE SECTION\""]
["          SERVICE: CRITICAL CARE SECTION","Inpatient & ICU",null,"          SERVICE: INPATIENT ACUTE CARE & ICU","INPATIENT ACUTE CARE & ICU","\"INPATIENT ACUTE CARE & ICU\"","\"INPATIENT ACUTE CARE & ICU\""]
["          SERVICE: INPATIENT ACUTE CARE & ICU","Inpatient & ICU",null,"          SERVICE: INPATIENT SERVICES","INPATIENT SERVICES","\"INPATIENT SERVICES\"","\"INPATIENT SERVICES\""]
["          SERVICE: INPATIENT SERVICES","Inpatient & ICU",null,"          SERVICE: INTERNAL MEDICINE","INTERNAL MEDICINE","\"INTERNAL MEDICINE\"","\"INTERNAL MEDICINE\""]
["          SERVICE: CARDIOLOGY SECTION","Medicine",null,"          SERVICE: KENOSHA CLINIC","KENOSHA CLINIC","\"KENOSHA CLINIC\"","\"KENOSHA CLINIC\""]
["          SERVICE: DERMATOLOGY SECTION","Medicine",null,"          SERVICE: LABORATORY SERVICE","LABORATORY SERVICE","\"LABORATORY SERVICE\"","\"LABORATORY SERVICE\""]
["          SERVICE: EMERGENCY DEPARTMENT","Medicine",null,"          SERVICE: MADISON TELEPHONE OPERATIONS","MADISON TELEPHONE OPERATIONS","\"MADISON TELEPHONE OPERATIONS\"","\"MADISON TELEPHONE OPERATIONS\""]
["          SERVICE: ENDOCRINOLOGY SECTION","Medicine",null,"          SERVICE: MEDICAL SERVICE","MEDICAL SERVICE","\"MEDICAL SERVICE\"","\"MEDICAL SERVICE\""]
["          SERVICE: GASTROENTEROLOGY SECTION","Medicine",null,"          SERVICE: MEDICAL SERVICES","MEDICAL SERVICES","\"MEDICAL SERVICES\"","\"MEDICAL SERVICES\""]
["          SERVICE: INFECTIOUS DISEASE SECTION","Medicine",null,"          SERVICE: MEDICINE","MEDICINE","\"MEDICINE\"","\"MEDICINE\""]
["          SERVICE: INTERNAL MEDICINE","PC",null,"          SERVICE: Medicine Services","Medicine Services","\"Medicine Services\"","\"Medicine Services\""]
["          SERVICE: MEDICAL SERVICE","Medicine",null,"          SERVICE: MEDICINE0","MEDICINE0","\"MEDICINE0\"","\"MEDICINE0\""]
["          SERVICE: MEDICAL SERVICES","Medicine",null,"          SERVICE: MENTAL HEALTH CLINIC","MENTAL HEALTH CLINIC","\"MENTAL HEALTH CLINIC\"","\"MENTAL HEALTH CLINIC\""]
["          SERVICE: MEDICINE0","Medicine",null,"          SERVICE: MENTAL HEALTH SERVICE","MENTAL HEALTH SERVICE","\"MENTAL HEALTH SERVICE\"","\"MENTAL HEALTH SERVICE\""]
["          SERVICE: MEDICINE","Medicine",null,"          SERVICE: MENTAL HEALTH TEAM A","MENTAL HEALTH TEAM A","\"MENTAL HEALTH TEAM A\"","\"MENTAL HEALTH TEAM A\""]
["          SERVICE: Medicine Services","Medicine",null,"          SERVICE: NEPHROLOGY SECTION","NEPHROLOGY SECTION","\"NEPHROLOGY SECTION\"","\"NEPHROLOGY SECTION\""]
["          SERVICE: NEPHROLOGY SECTION","Medicine",null,"          SERVICE: NEUROLOGY SERVICE","NEUROLOGY SERVICE","\"NEUROLOGY SERVICE\"","\"NEUROLOGY SERVICE\""]
["          SERVICE: NEUROLOGY SERVICE","Medicine",null,"          SERVICE: NURSING SERVICE","NURSING SERVICE","\"NURSING SERVICE\"","\"NURSING SERVICE\""]
["          SERVICE: PULMONARY DISEASE SECTION0","Medicine",null,"          SERVICE: NUTRITION AND FOOD SERVICE","NUTRITION AND FOOD SERVICE","\"NUTRITION AND FOOD SERVICE\"","\"NUTRITION AND FOOD SERVICE\""]
["          SERVICE: PULMONARY DISEASE SECTION","Medicine",null,"          SERVICE: OCC DELIVERY OPS","OCC DELIVERY OPS","\"OCC DELIVERY OPS\"","\"OCC DELIVERY OPS\""]
["          SERVICE: SPECIAL MEDICAL EXAMS","Medicine",null,"          SERVICE: OCCUPATIONAL HEALTH MEDICINE","OCCUPATIONAL HEALTH MEDICINE","\"OCCUPATIONAL HEALTH MEDICINE\"","\"OCCUPATIONAL HEALTH MEDICINE\""]
["          SERVICE: SPECIAL PROGRAMS","Medicine",null,"          SERVICE: OFFICE OF PERFORMANCE IMP","OFFICE OF PERFORMANCE IMP","\"OFFICE OF PERFORMANCE IMP\"","\"OFFICE OF PERFORMANCE IMP\""]
["          SERVICE: SPECIALTY MEDICINE","Medicine",null,"          SERVICE: OPERATING ROOM","OPERATING ROOM","\"OPERATING ROOM\"","\"OPERATING ROOM\""]
["          SERVICE: DOMICILIARY SERVICE","Mental Health",null,"          SERVICE: OPHTHALMOLOGY SECTION","OPHTHALMOLOGY SECTION","\"OPHTHALMOLOGY SECTION\"","\"OPHTHALMOLOGY SECTION\""]
["          SERVICE: MENTAL HEALTH CLINIC","Mental Health",null,"          SERVICE: OPTOMETRY SECTION","OPTOMETRY SECTION","\"OPTOMETRY SECTION\"","\"OPTOMETRY SECTION\""]
["          SERVICE: MENTAL HEALTH SERVICE","Mental Health",null,"          SERVICE: ORTHOPEDIC SECTION","ORTHOPEDIC SECTION","\"ORTHOPEDIC SECTION\"","\"ORTHOPEDIC SECTION\""]
["          SERVICE: MENTAL HEALTH TEAM A","Mental Health",null,"          SERVICE: OUTPATIENTCONSULTATION","OUTPATIENTCONSULTATION","\"OUTPATIENTCONSULTATION\"","\"OUTPATIENTCONSULTATION\""]
["          SERVICE: SARPATP","Mental Health",null,"          SERVICE: PATIENT ADMINISTRATION SERVICE","PATIENT ADMINISTRATION SERVICE","\"PATIENT ADMINISTRATION SERVICE\"","\"PATIENT ADMINISTRATION SERVICE\""]
["          SERVICE: SOCIAL WORK","Mental Health",null,"          SERVICE: PATIENT ALIGNED CARE TEAM","PATIENT ALIGNED CARE TEAM","\"PATIENT ALIGNED CARE TEAM\"","\"PATIENT ALIGNED CARE TEAM\""]
["          SERVICE: NURSING SERVICE","Nursing",null,"          SERVICE: PEDIATRICS","PEDIATRICS","\"PEDIATRICS\"","\"PEDIATRICS\""]
["          SERVICE: EVANSTON CBOC","PC",null,"          SERVICE: PHARMACY SERVICE","PHARMACY SERVICE","\"PHARMACY SERVICE\"","\"PHARMACY SERVICE\""]
["          SERVICE: KENOSHA CLINIC","PC",null,"          SERVICE: PHYSICAL THERAPY","PHYSICAL THERAPY","\"PHYSICAL THERAPY\"","\"PHYSICAL THERAPY\""]
["          SERVICE: PATIENT ALIGNED CARE TEAM","PC",null,"          SERVICE: PODIATRY SECTION","PODIATRY SECTION","\"PODIATRY SECTION\"","\"PODIATRY SECTION\""]
["          SERVICE: PEDIATRICS","PC",null,"          SERVICE: PRIMARY CARE DIR (MHPPACT)","PRIMARY CARE DIR (MHPPACT)","\"PRIMARY CARE DIR (MHPPACT)\"","\"PRIMARY CARE DIR (MHPPACT)\""]
["          SERVICE: PRIMARY CARE DIR (MHPPACT)","PC",null,"          SERVICE: PROSTHETICS & SENSORY AID","PROSTHETICS & SENSORY AID","\"PROSTHETICS & SENSORY AID\"","\"PROSTHETICS & SENSORY AID\""]
["          SERVICE: WOMEN'S PRIMARY CARE","PC",null,"          SERVICE: PULMONARY DISEASE SECTION","PULMONARY DISEASE SECTION","\"PULMONARY DISEASE SECTION\"","\"PULMONARY DISEASE SECTION\""]
["          SERVICE: EDUCATION","PtAdmin",null,"          SERVICE: PULMONARY DISEASE SECTION0","PULMONARY DISEASE SECTION0","\"PULMONARY DISEASE SECTION0\"","\"PULMONARY DISEASE SECTION0\""]
["          SERVICE: HEALTH CARE BUSINESS","PtAdmin",null,"          SERVICE: RADIOLOGY SECTION","RADIOLOGY SECTION","\"RADIOLOGY SECTION\"","\"RADIOLOGY SECTION\""]
["          SERVICE: MADISON TELEPHONE OPERATIONS","PtAdmin",null,"          SERVICE: REHABILITATION","REHABILITATION","\"REHABILITATION\"","\"REHABILITATION\""]
["          SERVICE: OUTPATIENTCONSULTATION","PtAdmin",null,"          SERVICE: REMOTE","REMOTE","\"REMOTE\"","\"REMOTE\""]
["          SERVICE: PATIENT ADMINISTRATION SERVICE","PtAdmin",null,"          SERVICE: RESOURCES MANAGEMENT","RESOURCES MANAGEMENT",{"$f":"CHAR(34)&E66&CHAR(34)","v":"\"RESOURCES MANAGEMENT\""},"\"RESOURCES MANAGEMENT\""]
["          SERVICE: REMOTE","PtAdmin",null,"          SERVICE: ROCKFORD","ROCKFORD","\"ROCKFORD\"","\"ROCKFORD\""]
["          SERVICE: RESOURCES MANAGEMENT","PtAdmin",null,"          SERVICE: SARPATP","SARPATP","\"SARPATP\"","\"SARPATP\""]
["          SERVICE: ROCKFORD","PtAdmin",null,"          SERVICE: SOCIAL WORK","SOCIAL WORK","\"SOCIAL WORK\"","\"SOCIAL WORK\""]
["          SERVICE: UNKNOWN","PtAdmin",null,"          SERVICE: SPECIAL MEDICAL EXAMS","SPECIAL MEDICAL EXAMS","\"SPECIAL MEDICAL EXAMS\"","\"SPECIAL MEDICAL EXAMS\""]
["          SERVICE: VISTA APPLICATIONS SUPPORT","PtAdmin",null,"          SERVICE: SPECIAL PROGRAMS","SPECIAL PROGRAMS","\"SPECIAL PROGRAMS\"","\"SPECIAL PROGRAMS\""]
["          SERVICE: GENERAL SURGERY","Surgery",null,"          SERVICE: SPECIALTY MEDICINE","SPECIALTY MEDICINE","\"SPECIALTY MEDICINE\"","\"SPECIALTY MEDICINE\""]
["          SERVICE: OPERATING ROOM","Surgery",null,"          SERVICE: Surgery","Surgery","\"Surgery\"","\"Surgery\""]
["          SERVICE: OPHTHALMOLOGY SECTION","Surgery",null,"          SERVICE: SURGICAL SERVICE","SURGICAL SERVICE","\"SURGICAL SERVICE\"","\"SURGICAL SERVICE\""]
["          SERVICE: ORTHOPEDIC SECTION","Surgery",null,"          SERVICE: UNKNOWN","UNKNOWN","\"UNKNOWN\"","\"UNKNOWN\""]
["          SERVICE: PODIATRY SECTION","Surgery",null,"          SERVICE: UROLOGY","UROLOGY","\"UROLOGY\"","\"UROLOGY\""]
["          SERVICE: SURGICAL SERVICE","Surgery",null,"          SERVICE: USS TRANQUILITY - 1007","USS TRANQUILITY - 1007","\"USS TRANQUILITY - 1007\"","\"USS TRANQUILITY - 1007\""]
["          SERVICE: Surgery","Surgery",null,"          SERVICE: VISTA APPLICATIONS SUPPORT","VISTA APPLICATIONS SUPPORT","\"VISTA APPLICATIONS SUPPORT\"","\"VISTA APPLICATIONS SUPPORT\""]
["          SERVICE: UROLOGY","Surgery",null,"          SERVICE: WOMEN'S PRIMARY CARE","WOMEN'S PRIMARY CARE","\"WOMEN'S PRIMARY CARE\"","\"WOMEN'S PRIMARY CARE\""]

{"sheet":"CountsByClinic","index":1,"n_rows":79,"n_cols":3,"rows_kept":79,"cut":false,"hidden":false,"merged":[]}
["Column1","04/19/22","04/18/22"]
["          SERVICE: EVANSTON CBOC",2,4]
["          SERVICE: MEDICINE",3,3]
["          SERVICE: ACUTE INPATIENT",1,19]
["          SERVICE: ASSOCIATE DIR FLEET MEDICINE",37,18]
["          SERVICE: AUDIOLOG/SPEECH PATH.",1,39]
["          SERVICE: CARDIOLOGY SECTION",3,7]
["          SERVICE: CHIEF MEDICAL EXECUTIVE",6,6]
["          SERVICE: CRITICAL CARE SECTION",1,4]
["          SERVICE: DERMATOLOGY SECTION",7,3]
["          SERVICE: DOMICILIARY SERVICE",2,3]
["          SERVICE: EDUCATION",4,1]
["          SERVICE: EMERGENCY DEPARTMENT",3,1]
["          SERVICE: ENDOCRINOLOGY SECTION",1,5]
["          SERVICE: FISHER BRANCH CLINIC - 237",4,1]
["          SERVICE: GASTROENTEROLOGY SECTION",11,17]
["          SERVICE: GERIATRICS & EXTENDED CARE",14,1]
["          SERVICE: HOME COMMUNITY BASED CARE",1,2]
["          SERVICE: INFECTIOUS DISEASE SECTION",3,5]
["          SERVICE: INPATIENT ACUTE CARE & ICU",6,2]
["          SERVICE: MEDICAL SERVICE",2,32]
["          SERVICE: MEDICINE",38,1]
["          SERVICE: MENTAL HEALTH CLINIC",1,3]
["          SERVICE: MENTAL HEALTH SERVICE",22,2]
["          SERVICE: MENTAL HEALTH TEAM A",2,3]
["          SERVICE: NEPHROLOGY SECTION",2,1]
["          SERVICE: NEUROLOGY SERVICE",null,26]
["          SERVICE: NURSING SERVICE",48,1]
["          SERVICE: NUTRITION AND FOOD SERVICE",1,3]
["          SERVICE: OPERATING ROOM",3,2]
["          SERVICE: OPHTHALMOLOGY SECTION",2,1]
["          SERVICE: OPTOMETRY SECTION",1,1]
["          SERVICE: ORTHOPEDIC SECTION",1,1]
["          SERVICE: OUTPATIENT/CONSULTATION",1,4]
["          SERVICE: PATIENT ADMINISTRATION SERVICE",4,3]
["          SERVICE: PATIENT ALIGNED CARE TEAM",4,1]
["          SERVICE: PHARMACY SERVICE",3,3]
["          SERVICE: PHYSICAL THERAPY",null,43]
["          SERVICE: PODIATRY SECTION",43,69]
["          SERVICE: PRIMARY CARE DIR (MHP/PACT)",60,1]
["          SERVICE: PULMONARY DISEASE SECTION",2,2]
["          SERVICE: REHABILITATION",null,5]
["          SERVICE: SARP/ATP",4,110]
["          SERVICE: SOCIAL WORK",108,6]
["          SERVICE: SURGICAL SERVICE",2,11]
["          SERVICE: WOMEN'S PRIMARY CARE",11,3]
[null,9,1]
[null,1]
[null,null,10]
[null,10,7]
[null,35,8]
[null,2]
[null,1,44]
[null,43,13]
[null,21,1]
[null,1,16]
[null,1]
[null,null,10]
[null,4]
[null,3,4]
[null,4]
[null,14,1]
[null,null,2]
[null,2,1]
[null,6,1]
[null,1,15]
[null,16,8]
[null,8]
[null,null,28]
[null,null,1]
[null,1,9]
[null,9,1]
[null,1,262]
[null,null,1]
[null,2,4]
[null,null,4]
[null,null,2]
[null,null,2]
[null,null,4]

{"sheet":"DataOld","index":2,"n_rows":1479,"n_cols":3,"rows_kept":1479,"cut":false,"hidden":false,"merged":[]}
["          SERVICE: ACUTE INPATIENT"]
["          SERVICE: ASSOCIATE DIR DENTAL SERVICES",null,"          SERVICE: SURGICAL SERVICE"]
["          SERVICE: ASSOCIATE DIR FLEET MEDICINE",null,"RAHMAN, R        WALLACE,BRIAN  8352   UNSIGNED   04/18/22  29191309      ANESTHESIA PRE-                              "]
["          SERVICE: AUDIOLOGSPEECH PATH.",null,"RAHMAN, R        WALLACE,BRIAN  8352   UNSIGNED   04/18/22  29191322      ANESTHESIA - PO                              "]
["          SERVICE: CARDIOLOGY SECTION"]
["          SERVICE: CHIEF MEDICAL EXECUTIVE"]
["          SERVICE: COMMAND SUITE"]
["          SERVICE: COMMUNITY LIVING CENTER"]
["          SERVICE: CRITICAL CARE SECTION",null,"          SERVICE: EVANSTON CBOC"]
["          SERVICE: DENTAL",null,"JOSEPH, J K      MILSAP,WILLIE  7880   UNCOSIGNED 04/15/22  29178253      PACT Provider                 MANGAT,HITESH  "]
["          SERVICE: DERMATOLOGY SECTION",null,"JOSEPH, J K      KAUFMAN,MICHAE 4464   UNCOSIGNED 04/15/22  29178556      PRIMARY CARE (P               ALRASHID,OMAR  "]
["          SERVICE: DOMICILIARY SERVICE",null,"JOSEPH, J K      PAULLIN,WILLIA 4475   UNCOSIGNED 04/15/22  29179764      PACT Provider                 MANGAT,HITESH  "]
["          SERVICE: EDUCATION",null,"JOSEPH, J K      PIERRE,KELSHAL 4944   UNCOSIGNED 04/15/22  29180777      PRIMARY CARE (P               ALRASHID,OMAR  "]
["          SERVICE: EMERGENCY DEPARTMENT",null,"JOSEPH, J K      MELL,ROBERT ME 8437   UNCOSIGNED 04/15/22  29181244      PRIMARY CARE V                AMAN,OSMAN M   "]
["          SERVICE: ENDOCRINOLOGY SECTION",null,"JOSEPH, J K      WIDEMAN,KENNET 0949   UNCOSIGNED 04/15/22  29181291      PRIMARY CARE V                AMAN,OSMAN M   "]
["          SERVICE: EVANSTON CBOC",null,"JOSEPH, J K      OLSON,JAMES BE 9852   UNCOSIGNED 04/15/22  29181325      PRIMARY CARE V                AMAN,OSMAN M   "]
["          SERVICE: FACILITY MANAGEMENT SERVICE",null,"JOSEPH, J K      LANE,MARY ANN  7510   UNCOSIGNED 04/15/22  29181466      PRIMARY CARE V                AMAN,OSMAN M   "]
["          SERVICE: FISHER BRANCH CLINIC - 237",null,"JOSEPH, J K      ROSNER,DEAN CL 0807   UNCOSIGNED 04/15/22  29181553      PRIMARY CARE (P               MANGAT,HITESH  "]
["          SERVICE: GASTROENTEROLOGY SECTION",null,"JOSEPH, J K      GREMLEY,ROBERT 7532   UNCOSIGNED 04/15/22  29181559      PRIMARY CARE V                AMAN,OSMAN M   "]
["          SERVICE: GENERAL SURGERY",null,"JOSEPH, J K      MCKINNEY,RHONN 2990   UNCOSIGNED 04/15/22  29181773      PACT Provider                 MANGAT,HITESH  "]
["          SERVICE: GERIATRICS & EXTENDED CARE",null,"JOSEPH, J K      MCKINNEY,RHONN 2990   UNCOSIGNED 04/15/22  29181863      PRIMARY CARE (P               MANGAT,HITESH  "]
["          SERVICE: HEALTH CARE BUSINESS",null,"JOSEPH, J K      BEAN,KAITLYN C 3359   UNSIGNED   04/18/22  29192465      PACT Provider                                "]
["          SERVICE: HOME COMMUNITY BASED CARE",null,"JOSEPH, J K      MANN,FRANK W   2647   UNSIGNED   04/18/22  29193172      PRIMARY CARE (P                              "]
["          SERVICE: IMAGING SERVICE"]
["          SERVICE: INFECTION CONTROL"]
["          SERVICE: INFECTIOUS DISEASE SECTION",null,"          SERVICE: INTERNAL MEDICINE"]
["          SERVICE: INPATIENT ACUTE CARE & ICU",null,"JOHNSON, T D     RONDON-POGGY,F 2078   UNSIGNED   04/05/22  29117618      PRIMARY CARE (P  IQBAL,FARZANA               "]
["          SERVICE: INPATIENT SERVICES",null,"JOHNSON, T D     DYKES,MARK TYR 6492   UNSIGNED   04/06/22  29125135      PRIMARY CARE (P  IQBAL,FARZANA               "]
["          SERVICE: INTERNAL MEDICINE",null,"JOHNSON, T D     LEMKE,MICHAEL  5548   UNSIGNED   04/07/22  29132348      PACT Provider    IQBAL,FARZANA               "]
["          SERVICE: KENOSHA CLINIC"]
["          SERVICE: LABORATORY SERVICE"]
["          SERVICE: MADISON TELEPHONE OPERATIONS",null,"          SERVICE: MEDICINE"]
["          SERVICE: MEDICAL SERVICE",null,"ALRASHID, O A    ROBINSON,NICHO 5527   UNSIGNED   04/18/22  29192092      PRIMARY CARE (P  JOSEPH,JINCY                "]
["          SERVICE: MEDICAL SERVICES",null,"ALRASHID, O A    LANE,MARY ANN  7510   UNSIGNED   04/18/22  29192700      PRIMARY CARE (P  JOSEPH,JINCY                "]
["          SERVICE: MEDICINE",null,"AMAN, O M        MCLEAN,THOMAS  8713   UNSIGNED   03/09/22  28974751      PRIMARY CARE V   LAYUG,ANNA                  "]
["          SERVICE: Medicine Services",null,"PERBOHNER, Z J   LIPSCHULTZ,HAR 4000   UNSIGNED   04/18/22  29191973      PRIMARY CARE (P  IQBAL,FARZANA               "]
["          SERVICE: MEDICINE0"]
["          SERVICE: MENTAL HEALTH CLINIC"]
["          SERVICE: MENTAL HEALTH SERVICE",null,"          SERVICE: MENTAL HEALTH CLINIC"]
["          SERVICE: MENTAL HEALTH TEAM A",null,"GETTYS, G C      BURTON,JUDON N 8363   UNCOSIGNED 02/08/22  28819933      MH TELEPHONE CO               TESMER,PAWEL   "]
["          SERVICE: NEPHROLOGY SECTION",null,"GETTYS, G C      ROUSSEAU,ALSTO 1345   UNCOSIGNED 02/08/22  28820139      VVC TELEHEALTH                TESMER,PAWEL   "]
["          SERVICE: NEUROLOGY SERVICE",null,"GETTYS, G C      MINOGUE,WILLIA 8619   UNCOSIGNED 02/08/22  28820548      MH TELEPHONE CO               TESMER,PAWEL   "]
["          SERVICE: NURSING SERVICE",null,"GETTYS, G C      WILLIAMS,CLAUD 4496   UNCOSIGNED 02/08/22  28820799      MH TELEPHONE CO               TESMER,PAWEL   "]
["          SERVICE: NUTRITION AND FOOD SERVICE",null,"GETTYS, G C      SILVEOUS,ZACHA 6857   UNCOSIGNED 02/11/22  28842506      VVC TELEHEALTH                KHEHRA,LOVELE  "]
["          SERVICE: OCC DELIVERY OPS",null,"GETTYS, G C      ST CLAIR,ALBER 5346   UNCOSIGNED 02/22/22  28890379      MH TELEPHONE CO               TESMER,PAWEL   "]
["          SERVICE: OCCUPATIONAL HEALTH MEDICINE",null,"GETTYS, G C      MURRAY,CAROLYN 7059   UNCOSIGNED 02/22/22  28890632      MH TELEPHONE CO               TESMER,PAWEL   "]
["          SERVICE: OFFICE OF PERFORMANCE IMP",null,"GETTYS, G C      MURRAY,CAROLYN 7059   UNCOSIGNED 02/22/22  28892769      PERSONAL HEALTH               TESMER,PAWEL   "]
["          SERVICE: OPERATING ROOM",null,"GETTYS, G C      ST CLAIR,ALBER 5346   UNCOSIGNED 02/22/22  28892775      PERSONAL HEALTH               TESMER,PAWEL   "]
["          SERVICE: OPHTHALMOLOGY SECTION",null,"GETTYS, G C      KORSHAK,CORY J 2960   UNCOSIGNED 02/22/22  28893279      NO SHOW                       TESMER,PAWEL   "]
["          SERVICE: OPTOMETRY SECTION",null,"GETTYS, G C      HO,CHI KUAN    2518   UNCOSIGNED 02/22/22  28893296      NO SHOW                       TESMER,PAWEL   "]
["          SERVICE: ORTHOPEDIC SECTION",null,"GETTYS, G C      RUNDBERG,QUIRA 3698   UNCOSIGNED 03/08/22  28967596      MH TELEPHONE CO               TESMER,PAWEL   "]
["          SERVICE: OUTPATIENTCONSULTATION",null,"GETTYS, G C      KRASLEN,STEVEN 3501   UNCOSIGNED 03/08/22  28968077      VVC TELEHEALTH                TESMER,PAWEL   "]
["          SERVICE: PATIENT ADMINISTRATION SERVICE",null,"GETTYS, G C      KRASLEN,STEVEN 3501   UNCOSIGNED 03/08/22  28968312      PERSONAL HEALTH               TESMER,PAWEL   "]
["          SERVICE: PATIENT ALIGNED CARE TEAM",null,"GETTYS, G C      FAIRMAN,KENNET 2504   UNCOSIGNED 03/08/22  28968605      MH TELEPHONE CO               TESMER,PAWEL   "]
["          SERVICE: PEDIATRICS",null,"GETTYS, G C      FAIRMAN,KENNET 2504   UNCOSIGNED 03/08/22  28968858      PERSONAL HEALTH               TESMER,PAWEL   "]
["          SERVICE: PHARMACY SERVICE",null,"GETTYS, G C      WATKINS,UDELL  6433   UNCOSIGNED 03/15/22  29005651      MH TELEPHONE CO               TESMER,PAWEL   "]
["          SERVICE: PHYSICAL THERAPY",null,"GETTYS, G C      WATKINS,UDELL  6433   UNCOSIGNED 03/15/22  29005921      PERSONAL HEALTH               TESMER,PAWEL   "]
["          SERVICE: PODIATRY SECTION",null,"GETTYS, G C      HAYES,ROBERT S 2511   UNCOSIGNED 03/15/22  29005951      MH TELEPHONE CO               TESMER,PAWEL   "]
["          SERVICE: PRIMARY CARE DIR (MHPPACT)",null,"GETTYS, G C      HAYES,ROBERT S 2511   UNCOSIGNED 03/15/22  29006183      PERSONAL HEALTH               TESMER,PAWEL   "]
["          SERVICE: PROSTHETICS & SENSORY AID",null,"GETTYS, G C      SINCLAIRE,ELLA 3326   UNCOSIGNED 03/22/22  29042108      MH TELEPHONE CO               TESMER,PAWEL   "]
["          SERVICE: PULMONARY DISEASE SECTION",null,"GETTYS, G C      YANG,BO        1409   UNCOSIGNED 03/22/22  29042264      VVC TELEHEALTH                TESMER,PAWEL   "]
["          SERVICE: PULMONARY DISEASE SECTION0",null,"GETTYS, G C      MEYER,RICHARD  7535   UNCOSIGNED 03/22/22  29042909      MH TELEPHONE CO               TESMER,PAWEL   "]
["          SERVICE: RADIOLOGY SECTION",null,"GETTYS, G C      MEYER,RICHARD  7535   UNCOSIGNED 03/22/22  29043032      PERSONAL HEALTH               TESMER,PAWEL   "]
["          SERVICE: REHABILITATION",null,"GETTYS, G C      MIMS,GABRIELA  4524   UNCOSIGNED 03/22/22  29043062      VVC TELEHEALTH                TESMER,PAWEL   "]
["          SERVICE: REMOTE",null,"GETTYS, G C      MIMS,GABRIELA  4524   UNCOSIGNED 03/22/22  29043206      PERSONAL HEALTH               TESMER,PAWEL   "]
["          SERVICE: RESOURCES MANAGEMENT",null,"GETTYS, G C      COSS,DANNY OTI 6489   UNCOSIGNED 03/29/22  29078821      VVC TELEHEALTH                TESMER,PAWEL   "]
["          SERVICE: ROCKFORD",null,"GETTYS, G C      ZASTROW,TIMOTH 3046   UNCOSIGNED 03/29/22  29079039      VVC TELEHEALTH                TESMER,PAWEL   "]
["          SERVICE: SARPATP",null,"GETTYS, G C      ZASTROW,TIMOTH 3046   UNCOSIGNED 03/29/22  29079188      PERSONAL HEALTH               TESMER,PAWEL   "]
["          SERVICE: SOCIAL WORK",null,"GETTYS, G C      REINER,ROBERT  8155   UNCOSIGNED 03/29/22  29079316      VVC TELEHEALTH                TESMER,PAWEL   "]
["          SERVICE: SPECIAL MEDICAL EXAMS",null,"GETTYS, G C      REINER,ROBERT  8155   UNCOSIGNED 03/29/22  29079800      PERSONAL HEALTH               TESMER,PAWEL   "]
["          SERVICE: SPECIAL PROGRAMS",null,"GETTYS, G C      GHOGHA,PARVEZ  4312   UNCOSIGNED 03/29/22  29080192      MH TELEPHONE CO               TESMER,PAWEL   "]
["          SERVICE: SPECIALTY MEDICINE",null,"GETTYS, G C      BRESEMANN,ROBE 6667   UNCOSIGNED 03/29/22  29082039      VVC TELEHEALTH                TESMER,PAWEL   "]
["          SERVICE: Surgery",null,"GETTYS, G C      LEE,WILLIAM ED 1318   UNCOSIGNED 04/05/22  29116748      MH TELEPHONE CO               TESMER,PAWEL   "]
["          SERVICE: SURGICAL SERVICE",null,"GETTYS, G C      LEE,WILLIAM ED 1318   UNCOSIGNED 04/05/22  29116975      PERSONAL HEALTH               TESMER,PAWEL   "]
["          SERVICE: UNKNOWN",null,"GETTYS, G C      BURTON,JUDON N 8363   UNCOSIGNED 04/05/22  29117003      VVC TELEHEALTH                TESMER,PAWEL   "]
["          SERVICE: UROLOGY",null,"GETTYS, G C      BURTON,JUDON N 8363   UNCOSIGNED 04/05/22  29117228      PERSONAL HEALTH               TESMER,PAWEL   "]
["          SERVICE: USS TRANQUILITY - 1007",null,"GETTYS, G C      SLACUM,LESLIE  1418   UNCOSIGNED 04/05/22  29117677      MH TELEPHONE CO               TESMER,PAWEL   "]
["          SERVICE: VISTA APPLICATIONS SUPPORT",null,"GETTYS, G C      SLACUM,LESLIE  1418   UNCOSIGNED 04/05/22  29117842      PERSONAL HEALTH               TESMER,PAWEL   "]
["          SERVICE: WOMEN'S PRIMARY CARE",null,"GETTYS, G C      WILHELMY,TODD  4013   UNCOSIGNED 04/05/22  29118123      MH TELEPHONE CO               TESMER,PAWEL   "]
[null,null,"GETTYS, G C      MINGARI,KYLE J 0075   UNCOSIGNED 04/12/22  29157336      VVC TELEHEALTH                TESMER,PAWEL   "]
[null,null,"GETTYS, G C      KINSELLA,WILLI 3121   UNCOSIGNED 04/12/22  29157673      VVC TELEHEALTH                TESMER,PAWEL   "]
[null,null,"GETTYS, G C      KINSELLA,WILLI 3121   UNCOSIGNED 04/12/22  29158080      PERSONAL HEALTH               TESMER,PAWEL   "]
[]
[]
[null,null,"          SERVICE: PHARMACY SERVICE"]
[null,null,"KOTEK, J J       HALLE,CRAIG ST 6524   UNSIGNED   04/18/22  29188881      PHARMACY MEDICA                              "]
[]
[]
[]
[]
[null,null,"          SERVICE: ACUTE INPATIENT"]
[null,null,"VERGO, J M       CARLSON,CHISTO 8449   UNCOSIGNED 04/18/22  29192620      MH SDTU/SCREENI               FLYNN-CHRISTI  "]
[null,null,"VERGO, J M       SCOTT,KEANYAND 8909   UNCOSIGNED 04/18/22  29193179      MH SDTU/INDIVID               FLYNN-CHRISTI  "]
[]
[]
[null,null,"          SERVICE: ASSOCIATE DIR DENTAL SERVICES"]
[null,null,"ANDERSEN, C C    RYALES,HERSCHE 1917   UNSIGNED   09/29/21  28128124      ADMINISTRATIVE                               "]
[null,null,"ANDERSEN, C C    KUECHLE,DAVID  3924   UNSIGNED   03/01/22  28932565      Addendum                                     28719077"]
[null,null,"EVANS, C S       ZZTEST,SCA ONE 6543   UNSIGNED   03/02/22  28937355      CCC: SCHEDULING                              "]
[]
[]
[null,null,"          SERVICE: ASSOCIATE DIR FLEET MEDICINE"]
[null,null,"NUNEZ, K L       HOOD,JANICE    0439   UNSIGNED   04/05/22  29120143      Addendum                                     28951667"]
[]
[]
[null,null,"          SERVICE: AUDIOLOG/SPEECH PATH."]
[null,null,"CASO, I A        MORITZ,JOSEPH  4127   UNSIGNED   04/18/22  29193465      SPEECH AND LANG  BENDIKAS,SYLV               "]
[null,null,"EARNEST, J A     HADDAD,JOSEPH  8535   UNSIGNED   04/18/22  29191760      AUDIOLOGY EVALU                              "]
[null,null,"EARNEST, J A     CHARDON,GISELE 7041   UNSIGNED   04/18/22  29192503      AUDIOLOGY GENER                              "]
[null,null,"GORDILLO, A C    ADLER,JEROME W 7918   UNSIGNED   04/18/22  29193011      AUDIOLOGY ROES                               "]
[null,null,"HOWE, L A        RICHARDS,RICHA 6546   UNSIGNED   04/18/22  29189910      AUDIOLOGY ROES                               "]
[null,null,"HOWE, L A        BORGGREN,ROGER 6236   UNSIGNED   04/18/22  29192983      AUDIOLOGY ROES                               "]
[null,null,"HOWE, L A        RUTKOWSKI,PAUL 3152   UNSIGNED   04/18/22  29193158      AUDIOLOGY ROES                               "]
[null,null,"JAGODZINSKI, D J FRAGA,STEVEN E 9276   UNCOSIGNED 04/18/22  29189692      AUDIOLOGY DEVIC               NICHOLSON,MAR  "]
[null,null,"JAGODZINSKI, D J MONE,PETER JOH 0206   UNSIGNED   04/18/22  29189775      AUDIOLOGY GENER                              "]
[null,null,"JAGODZINSKI, D J MONE,PETER JOH 0206   UNCOSIGNED 04/18/22  29189802      AUDIOLOGY ROES                DILLMAN,KARRI  "]
[null,null,"KIM, H Y         HADDAD,JOSEPH  8535   UNSIGNED   04/18/22  29190227      AUDIOLOGY ROES   EARNEST,JILLI               "]
[null,null,"KIM, H Y         SPELLMAN,JOSHU 7282   UNSIGNED   04/18/22  29193664      AUDIOLOGY EVALU  EARNEST,JILLI               "]
[null,null,"RYMER, A S       MAAR,RAYMOND N 0117   UNCOSIGNED 04/18/22  29189768      AUDIOLOGY HEARI               GORDILLO,ALBE  "]
[null,null,"RYMER, A S       CREWS,ROBERT A 8936   UNSIGNED   04/18/22  29189951      AUDIOLOGY EVALU                              "]
[null,null,"RYMER, A S       SCHREIBER,CHES 5154   UNCOSIGNED 04/18/22  29190200      AUDIOLOGY HEARI               GORDILLO,ALBE  "]
[null,null,"RYMER, A S       ELLIS,RICHARD  5124   UNCOSIGNED 04/18/22  29190264      AUDIOLOGY DEVIC               NICHOLSON,MAR  "]
[null,null,"RYMER, A S       SCHMITT,CLEMEN 9922   UNCOSIGNED 04/18/22  29190367      AUDIOLOGY DEVIC               NICHOLSON,MAR  "]
[null,null,"RYMER, A S       RIESBECK,RONAL 6274   UNCOSIGNED 04/18/22  29190420      AUDIOLOGY HEARI               GORDILLO,ALBE  "]
[null,null,"RYMER, A S       MODERHACK,ALEX 2161   UNSIGNED   04/18/22  29190506      C&P GENERAL NOT                              "]
[null,null,"RYMER, A S       HOOD,LLOYD COR 5071   UNCOSIGNED 04/18/22  29190777      AUDIOLOGY DEVIC               NICHOLSON,MAR  "]
[null,null,"RYMER, A S       NEARY,ROBERT A 9879   UNCOSIGNED 04/18/22  29190907      AUDIOLOGY HEARI               GORDILLO,ALBE  "]
[null,null,"RYMER, A S       MYERS,CLARENCE 7565   UNCOSIGNED 04/18/22  29191213      AUDIOLOGY HEARI               GORDILLO,ALBE  "]
[null,null,"RYMER, A S       THORNTON,RAYMO 5584   UNSIGNED   04/18/22  29191887      AUDIOLOGY HEARI                              "]
[null,null,"RYMER, A S       SNYDER,WILLIAM 5244   UNSIGNED   04/18/22  29192022      AUDIOLOGY ROES                               "]
[null,null,"RYMER, A S       MARCYNIUK,WALT 2923   UNSIGNED   04/18/22  29192099      AUDIOLOGY EVALU                              "]
[null,null,"RYMER, A S       MCCREARY,CANDA 5110   UNCOSIGNED 04/18/22  29192255      AUDIOLOGY DEVIC               GORDILLO,ALBE  "]
[null,null,"RYMER, A S       NATHANIEL,PALA 6753   UNCOSIGNED 04/18/22  29192432      AUDIOLOGY HEARI               NICHOLSON,MAR  "]
[null,null,"RYMER, A S       CAROLLO,GERALD 0045   UNSIGNED   04/18/22  29192524      Audiology Heari                              "]
[null,null,"RYMER, A S       ADAMS,JACQUELI 4985   UNSIGNED   04/18/22  29192795      AUDIOLOGY EVALU                              "]
[null,null,"RYMER, A S       RANDALL,KENNET 5849   UNCOSIGNED 04/18/22  29193040      AUDIOLOGY HEARI               NICHOLSON,MAR  "]
[null,null,"RYMER, A S       WALTON,RICHARD 7757   UNCOSIGNED 04/18/22  29193044      AUDIOLOGY DEVIC               GIANGRECO,JOS  "]
[null,null,"RYMER, A S       LEONHARDT,CHAR 1574   UNCOSIGNED 04/18/22  29193246      AUDIOLOGY DEVIC               GIANGRECO,JOS  "]
[null,null,"RYMER, A S       TAVARES,HENRY  5568   UNCOSIGNED 04/18/22  29193756      AUDIOLOGY DEVIC               GIANGRECO,JOS  "]
[null,null,"SWEENEY, M       RODRIGUEZ,GEOR 4587   UNSIGNED   04/15/22  29180475      AUDIOLOGY VESTI                              "]
[null,null,"TOOLE-TREXLER, J ELUKOWSKI,ROBER6470   UNSIGNED   04/15/22  29178335      AUDIOLOGY EVALU                              "]
[null,null,"TOOLE-TREXLER, J EFANTUZZI,WALTE6509   UNSIGNED   04/15/22  29179572      AUDIOLOGY EVALU                              "]
[null,null,"WORTHINGTON, D A GUERRERO,SALVA 9007   UNCOSIGNED 03/16/22  29013898      AUDIOLOGY ROES                KIM,HILDA Y    "]
[]
[]
[null,null,"          SERVICE: CARDIOLOGY SECTION"]
[null,null,"PERRINEZ, P R    HARDIN,JULIET  1473   UNSIGNED   04/18/22  29190192      CARDIOLOGY OUTP                              "]
[]
[]
[null,null,"          SERVICE: CHIEF MEDICAL EXECUTIVE"]
[null,null,"BATIE, Y L       SMITH,JANE     3299   UNSIGNED   04/08/22  29140866      NURSING NOTE                                 "]
[null,null,"MANNING, T M     ZZTEST,SCA ONE 6543   UNSIGNED   04/07/22  29135107      RAI FRAILTY TOO                              "]
[null,null,"SQUIER, E        HARRINGTON,WIL 3304   UNSIGNED   04/18/22  29193268      OIF/OEF TELEPHO                              "]
[]
[]
[null,null,"          SERVICE: COMMAND SUITE"]
[null,null,"COCHICO, S G     TEST,ELIGIBILI 0234   UNSIGNED   02/22/22  28895348      ELOPEMENT RISK                               "]
[null,null,"HAMMAD, K Y      METCALF,MARK   2792   UNSIGNED   11/02/21  28309710      Addendum                                     28291282"]
[null,null,"HAMMAD, K Y      DEDEO,FRANK JR 2615   UNSIGNED   01/26/22  28753879      COMMUNITY CARE                               "]
[null,null,"HAMMAD, K Y      BOLDEN,WAYNE K 9149   UNSIGNED   02/11/22  28842829      COMMUNITY CARE                               "]
[null,null,"HAMMAD, K Y      BERRY,JESSICA  0222   UNSIGNED   02/23/22  28897285      COMMUNITY CARE                               "]
[null,null,"MEDINA, M        TEST,BABY      1128   UNSIGNED   09/30/21  28136055       CHIROPRACTIC C                              "]
[]
[]
[null,null,"          SERVICE: COMMUNITY LIVING CENTER"]
[null,null,"JINSON, R        WEATHERLY,CHRI 9044   UNSIGNED   04/18/22  29191595      HT INTERVENTION                              "]
[]
[]
[null,null,"          SERVICE: CRITICAL CARE SECTION"]
[null,null,"APIGO, M V       ZZTEST,BABY    1127   UNSIGNED   01/13/22  28692041      LIFE-SUSTAINING                              "]
[null,null,"CALLO-RAMIREZ, A MSHACKELFORD,VI7949   UNSIGNED   03/11/22  28987161      SBAR                                         "]
[null,null,"CALLO-RAMIREZ, A MCIZANSKAS,WALT2442   UNSIGNED   04/13/22  29163531      VAAES ACUTE INP                              "]
[null,null,"ESCOTO, M L      WILLIAMS,MICHA 0541   UNSIGNED   02/02/22  28788602      VAAES ACUTE INP                              "]
[null,null,"FANAPOUR, P      FRITZ,JAMES FR 6928   UNCOSIGNED 04/18/22  29188822      RAPID RESPONSE                AHMED,AMMAR A  "]
[null,null,"FANAPOUR, P      FRITZ,JAMES FR 6928   UNCOSIGNED 04/18/22  29188889      Addendum                      AHMED,AMMAR A  29188822"]
[null,null,"FANAPOUR, P      SPOTO,RALPH MA 3888   UNCOSIGNED 04/18/22  29189138      ICU RESIDENT NO               AHMED,AMMAR A  "]
[]
[]
[null,null,"          SERVICE: DENTAL"]
[null,null,"FIGUEROA, J      ZZTEST,BABY    1127   UNSIGNED   12/27/21  28603066      DENTAL SERVICE   HALEEM,JAVERI               "]
[null,null,"PETTIS, T J      RISLEY,STEPHEN 5126   UNSIGNED   04/08/22  29140303      DENTAL SERVICE                               "]
[]
[]
[null,null,"          SERVICE: DERMATOLOGY SECTION"]
[null,null,"CHAUDHRY, A K    LYON,MARTIN JO 3182   UNSIGNED   04/18/22  29193798      Addendum                                     28859845"]
[null,null,"PATEL, P D       TOPPING,DEAANA 8167   UNSIGNED   03/29/22  29081509      Addendum         CHAN,LAWRENCE               29021555"]
[null,null,"PATEL, P D       SMITH,GREGORY  3511   UNSIGNED   03/29/22  29081619      Addendum         CHAN,LAWRENCE               29027942"]
[null,null,"SCOTT, J A       WALLACE,HARRIS 7141   UNSIGNED   04/11/22  29153075      DERMATOLOGY GEN  BRODLO,KAREN                "]
[]
[]
[null,null,"          SERVICE: DOMICILIARY SERVICE"]
[null,null,"WILSON-DIXON, A ESCOTT,RYAN DAV 3771   UNSIGNED   04/18/22  29193210      RECREATION THER                              "]
[null,null,"WILSON-DIXON, A EMAY,PHILLIP AL 9161   UNSIGNED   04/18/22  29193219      RECREATION THER                              "]
[null,null,"WILSON-DIXON, A ESAINI,PREET SI 3562   UNSIGNED   04/18/22  29193220      RECREATION THER                              "]
[]
[]
[null,null,"          SERVICE: EDUCATION"]
[null,null,"BISBEE, M        ZZBATCH,TEST   1974   UNSIGNED   11/24/21  28429369      VAAES ACUTE INP                              "]
[]
[]
[null,null,"          SERVICE: EMERGENCY DEPARTMENT"]
[null,null,"GRIFFIN, D T     TAYLOR,MOLLY P 6189   UNSIGNED   06/27/21  27624994      ED 10-10M NURSI  SINCLAIR,CHRI               "]
[null,null,"GRIFFIN, D T     CARPENTER,DUST 0538   UNSIGNED   08/02/21  27820136      ED 10-10M NURSI  SINCLAIR,CHRI               "]
[null,null,"NETTE, P A       TERRY,JAMES D  4165   UNSIGNED   11/08/21  28341457      VAAES NSG COVID                              "]
[null,null,"SILVELABACALING, B ZZTEST,DEYONCE9512  UNSIGNED   09/10/21  28030156      ED ATTENDING NO                              "]
[]
[]
[null,null,"          SERVICE: ENDOCRINOLOGY SECTION"]
[null,null,"GILDEN, J L      IZQUIERDO-REYE 9389   UNSIGNED   04/18/22  29188962      VVC TELEHEALTH                               "]
[null,null,"GILDEN, J L      PARKER,JULIAN  4348   UNSIGNED   04/18/22  29189064      ENDOCRINE OUTPA                              "]
[null,null,"GILDEN, J L      GILLIAM,KENDRA 9359   UNCOSIGNED 04/18/22  29189466      ENDOCRINE GENER               DAWAHIR,WAFA   "]
[null,null,"GILDEN, J L      VON BERGEN,GLE 7106   UNCOSIGNED 04/18/22  29189504      ENDOCRINE GENER               DAWAHIR,WAFA   "]
[null,null,"GILDEN, J L      DIXON,JAMES MI 3804   UNCOSIGNED 04/18/22  29189607      ENDOCRINE GENER               DAWAHIR,WAFA   "]
[null,null,"GILDEN, J L      LOPEZ,ELISEO T 5137   UNSIGNED   04/18/22  29189731      ENDOCRINE GENER                              "]
[null,null,"GILDEN, J L      BENN,EVERETT E 0681   UNSIGNED   04/18/22  29190763      ENDOCRINE GENER                              "]
[null,null,"GILDEN, J L      MILLETT,KEVIN  3901   UNCOSIGNED 04/18/22  29193031      Addendum                      DAWAHIR,WAFA   29168130"]
[null,null,"GILDEN, J L      AGUADO,BENITO  8531   UNCOSIGNED 04/18/22  29193111      Addendum                      DAWAHIR,WAFA   29172928"]
[null,null,"GILDEN, J L      BARTLETT,DIANA 9365   UNCOSIGNED 04/18/22  29193335      Addendum                      DAWAHIR,WAFA   29018699"]
[null,null,"MOID, A          WALLACE,MIRIAM 7069   UNSIGNED   04/18/22  29193064      ENDOCRINE TELEP                              "]
[]
[]
[null,null,"          SERVICE: EVANSTON CBOC"]
[null,null,"JOSEPH, J K      WUEBBEN,TREVOR 0592   UNSIGNED   04/15/22  29178520      LABORATORY PROG                              "]
[null,null,"JOSEPH, J K      GRUND,STEVEN   4567   UNCOSIGNED 04/15/22  29181213      PRIMARY CARE V                AMAN,OSMAN M   "]
[]
[]
[null,null,"          SERVICE: FACILITY MANAGEMENT SERVICE"]
[null,null,"KOCHIU, A V      CRIVELLO,GARY  2578   UNSIGNED   03/18/22  29028694      Addendum                                     29012239"]
[]
[]
[null,null,"          SERVICE: FISHER BRANCH CLINIC - 237"]
[null,null,"BECKER, M H      CRUMP,KEVIN GE 8114   UNCOSIGNED 04/08/22  29138279      IMMUNIZATION NO               HAZLETT,JACOB  "]
[null,null,"CARLSON, S J     CHAN,LAWRENCE  1597   UNSIGNED   04/18/22  29193855      EMPLOYEE HEALTH                              "]
[null,null,"NEVAREZ HERNANDEZ, E MILLER,JENNIFE2662UNSIGNED   04/07/22  29133520      IMMUNIZATION NO  JOHNSON,ALICE               "]
[]
[]
[null,null,"          SERVICE: GASTROENTEROLOGY SECTION"]
[null,null,"FELLER, A M      STAGGERS,JUAN  3848   UNCOSIGNED 04/08/22  29142909      Addendum                      GILLICK,SHEIL  29044273"]
[null,null,"FELLER, A M      WALLACE,JOSEPH 8090   UNCOSIGNED 04/15/22  29179080      Addendum                      GILLICK,SHEIL  29094050"]
[null,null,"SHAH, P M        MOHR,RONALD PA 4425   UNSIGNED   03/22/22  29043956      Addendum                                     28840006"]
[null,null,"SHAH, P M        LOVELL,MARK AL 6270   UNSIGNED   04/08/22  29139993      Addendum                                     29075940"]
[null,null,"SHAH, P M        BAKER,KATHLEEN 7094   UNSIGNED   04/18/22  29193827      Addendum                                     29174285"]
[null,null,"YOU, D M         HARRISON,RANDY 9069   UNCOSIGNED 03/30/22  29087477      Addendum                      KIM,CHRISTOPH  27587937"]
[]
[]
[null,null,"          SERVICE: GENERAL SURGERY"]
[null,null,"NELSON, T J      GARDNER,RODNEY 0880   UNCOSIGNED 03/25/21  27108445      SCREENING COVID               NUNEZ,KEVIN L  "]
[null,null,"NELSON, T J      CHRISTENSEN,DA 3210   UNCOSIGNED 03/25/21  27108453      SCREENING COVID               NUNEZ,KEVIN L  "]
[]
[]
[null,null,"          SERVICE: GERIATRICS & EXTENDED CARE"]
[null,null,"ABUTALIB, J      WATSON,JOHN M  4938   UNCOSIGNED 04/18/22  29194259      PRIMARY CARE (P               PARK,CHRISTOP  "]
[null,null,"BACASMAS, L C    SALINAS VALLES 1550   UNCOSIGNED 11/12/21  28366398      VAAES NURSING F               CZAJKOWSKA,AL  "]
[null,null,"BAKER, D A       OSTERGAARD,NEA 0523   UNSIGNED   03/15/21  27049617      CLC RESTORATIVE                              "]
[null,null,"BEERMANN, M      PALUAY,PEDRO G 8458   UNSIGNED   04/12/22  29161578      HBPC PROVIDER N                              "]
[null,null,"BOBBA, K         ALLEN,JAMES L  3951   UNSIGNED   03/31/22  29092552      GERIATRIC AND E                              "]
[null,null,"BOBBA, K         FERGUSON,DENNI 6868   UNSIGNED   03/31/22  29092592      GERIATRIC AND E                              "]
[null,null,"BOBBA, K         FRITZ,JAMES FR 6928   UNSIGNED   03/31/22  29092628      GERIATRIC AND E                              "]
[null,null,"BOBBA, K         HALLMAN,MICHAE 4090   UNSIGNED   03/31/22  29092690      GERIATRIC AND E                              "]
[null,null,"BOBBA, K         MAGEE,HENRY RI 4255   UNSIGNED   03/31/22  29092769      GERIATRIC AND E                              "]
[null,null,"BOBBA, K         HARRINGTON,THO 7149   UNSIGNED   04/06/22  29127797      GERIATRIC AND E                              "]
[null,null,"CHACKO, L V      HOWARD,BRUCE A 0771   UNSIGNED   04/18/22  29193684      EXTENDED CARE P                              "]
[null,null,"CLARKE, S C      ALLEN,JAMES L  3951   UNSIGNED   04/18/22  29194354      CLC RESTORATIVE                              "]
[null,null,"ESCALANTE, E A   BASS,JUAN CYRU 7332   UNSIGNED   04/14/22  29173577      POST FALL NOTE                               "]
[null,null,"ESTELLA, N L     CLEMENTS,CHRIS 9469   UNSIGNED   04/30/21  27308158      CLC RESTORATIVE                              "]
[null,null,"ESTELLA, N L     SCOTT,GRACE MA 4482   UNCOSIGNED 07/22/21  27762893      SCREENING COVID               ROGOSZEWSKI,J  "]
[null,null,"GOODRICH, V      SCHAEFER,KONRA 0897   UNSIGNED   04/18/22  29190087      EXTENDED CARE P                              "]
[null,null,"GOODRICH, V      KENNEY,THOMAS  2007   UNSIGNED   04/18/22  29190252      EXTENDED CARE P                              "]
[null,null,"GOODRICH, V      LEONHARDT,CHAR 1574   UNSIGNED   04/18/22  29191962      EXTENDED CARE P                              "]
[null,null,"GOODRICH, V      MCCALL,THADDIU 3749   UNSIGNED   04/18/22  29192617      EXTENDED CARE P                              "]
[null,null,"GOODRICH, V      MURPHY,THOMAS  3889   UNSIGNED   04/18/22  29192752      EXTENDED CARE P                              "]
[null,null,"GOODRICH, V      SMITH,JAMES HA 3613   UNSIGNED   04/18/22  29192953      EXTENDED CARE P                              "]
[null,null,"KOLOMYJSKA, L    POWELL,CURTIS  4103   UNSIGNED   11/29/21  28445952      CLC RESTORATIVE                              "]
[null,null,"LEE, N C         ZZZTEST,FAKE   9876   UNSIGNED   05/28/21  27466658       ANGER MANAGEME                              "]
[null,null,"LEE, N C         PENN,KENNETH W 4471   UNSIGNED   02/09/22  28831530      CLC RESTORATIVE                              "]
[null,null,"LEE, N C         WAGNER,BENNIE  8330   UNSIGNED   03/12/22  28995048      CLC RESTORATIVE                              "]
[null,null,"LEFSTAD, A E     MUTCHLER,GEORG 2396   UNSIGNED   04/18/22  29191089      RECREATION THER                              "]
[null,null,"LOTHER, M        BASS,JUAN CYRU 7332   UNSIGNED   02/11/22  28844669      SGRC Data Base                               "]
[null,null,"LOTHER, M        SCOTT,CHARLES  9142   UNSIGNED   03/15/22  29010885      SGRC/LTC ACTIVI                              "]
[null,null,"MANOJ, R         MORIMOTO,RONAL 2479   UNSIGNED   04/18/22  29188329      NURSING NOTE                                 "]
[null,null,"MASON, V         WOOLEVER,RONAL 7677   UNSIGNED   04/18/22  29189537      HBPC INTERDISCI                              "]
[null,null,"MILEY, G A       BUFFINGTON,THE 9631   UNSIGNED   02/18/21  26908608      ADL Checklist                                "]
[null,null,"POWELL, A M      TEST,BRANDON M 2775   UNSIGNED   08/26/21  27949086      AMBULATORY SURG                              "]
[null,null,"SILER, D M       MOORE,OTIS LEE 2722   UNSIGNED   03/11/22  28987817      VAAES NURSING F                              "]
[null,null,"STEWART, T M     ZZZ,BAD        0101   UNSIGNED   08/26/21  27953442      RECREATION THER                              "]
[null,null,"TURK-BROCK, L T  BARZOWSKI,RALP 0912   UNSIGNED   06/12/21  27539718      CLC ADL CHECKLI                              "]
[null,null,"TURK-BROCK, L T  MURPHY,THOMAS  3889   UNSIGNED   06/14/21  27544971      CLC RESTORATIVE                              "]
[null,null,"UCHI, T          RENGA,DOMINICK 6920   UNCOSIGNED 07/26/21  27780891      OPHTHALMOLOGY T               GUERREROMONTE  "]
[null,null,"URBANOZO, M C    MENG,REINHOLD  8106   UNSIGNED   03/24/22  29054084      Addendum                                     29053863"]
[]
[]
[null,null,"          SERVICE: HEALTH CARE BUSINESS"]
[null,null,"ULLOA, M J       TEST,BABY      1128   UNSIGNED   08/24/21  27940016      APPOINTMENT SCH                              "]
[]
[]
[null,null,"          SERVICE: HOME COMMUNITY BASED CARE"]
[null,null,"CARVAJAL, J S    STINGLE,GERALD 8401   UNSIGNED   04/18/22  29189747      HT PERIODIC EVA                              "]
[null,null,"CARVAJAL, J S    STINGLE,GERALD 8401   UNSIGNED   04/18/22  29189825      HT CONTINUUM OF                              "]
[null,null,"FERRER, V P      BROWN,KENNETH  6756   UNSIGNED   04/18/22  29191868      HBPC Nursing No                              "]
[null,null,"FERRER, V P      BROWN,KENNETH  6756   UNSIGNED   04/18/22  29193025      POST FALL NOTE                               "]
[null,null,"GAZDOWICZ, M E   JOHNSON,RICHAR 0536   UNCOSIGNED 12/30/21  28619884      ICU INTERDISCIP               BAVANASI,AAMA  "]
[null,null,"GAZDOWICZ, M E   PRANGE,ROBERT  5542   UNSIGNED   04/14/22  29175325      HBPC Nursing No                              "]
[null,null,"JIMENEZ-FABIAN, D RPARKS,SUSAN  1502   UNSIGNED   04/18/22  29192252      HT PERIODIC EVA                              "]
[null,null,"MARTIN, E N      SHEMA,WILLIAM  5843   UNSIGNED   04/18/22  29188804      HT INTERVENTION                              "]
[null,null,"MARTIN, E N      MOORE,EDDIE KE 2183   UNSIGNED   04/18/22  29188858      HT INTERVENTION                              "]
[null,null,"MARTIN, E N      KIRCHNER,JAMES 1791   UNSIGNED   04/18/22  29188887      HT INTERVENTION                              "]
[null,null,"MARTIN, E N      COOPER,FORRESS 5974   UNSIGNED   04/18/22  29188933      HT INTERVENTION                              "]
[null,null,"MARTIN, E N      CROMARTIE,OTIS 3906   UNSIGNED   04/18/22  29188948      HT INTERVENTION                              "]
[null,null,"MARTIN, E N      HERRMANN,ROBER 6249   UNSIGNED   04/18/22  29188967      HT INTERVENTION                              "]
[null,null,"MARTIN, E N      KEARNS,WILLIAM 8356   UNSIGNED   04/18/22  29188989      HT INTERVENTION                              "]
[null,null,"MARTIN, E N      NOFSINGER,BURN 6008   UNSIGNED   04/18/22  29189049      HT INTERVENTION                              "]
[null,null,"MARTIN, E N      SAWYER,JOHN RA 2798   UNSIGNED   04/18/22  29189183      HT INTERVENTION                              "]
[null,null,"MARTIN, E N      WHITNEY,DONALD 1917   UNSIGNED   04/18/22  29189303      HT INTERVENTION                              "]
[null,null,"MARTIN, E N      PHILLIPS,FREDE 3595   UNSIGNED   04/18/22  29189329      HT INTERVENTION                              "]
[null,null,"MARTIN, E N      THOMPSON,JOSEP 4515   UNSIGNED   04/18/22  29191625      HT INTERVENTION                              "]
[null,null,"MARTIN, E N      AMANN,JOHN GUE 6669   UNSIGNED   04/18/22  29192039      HT INTERVENTION                              "]
[null,null,"ORDONEZ, A       MONCHER,MICHAE 1229   UNSIGNED   04/18/22  29189326      HBPC INTERDISCI                              "]
[null,null,"ORDONEZ, A       LANGDON,JOHN D 4386   UNSIGNED   04/18/22  29192492      HBPC NURSING AS                              "]
[]
[]
[null,null,"          SERVICE: IMAGING SERVICE"]
[null,null,"SCHINDLER, R L   TINKER,TIMOTHY 8457   UNSIGNED   01/14/22  28697109      ADMINISTRATIVE                               "]
[null,null,"VASQUEZNUNEZ, W  JOHNSON,ANDREW 2543   UNSIGNED   03/08/22  28968409      PROCEDURE TIME                               "]
[]
[]
[null,null,"          SERVICE: INFECTION CONTROL"]
[null,null,"KHAYR, W M       WINTON,ROBERT  6416   UNCOSIGNED 04/18/22  29191439      INFECTIOUS DISE               NAQVI,SYED M   "]
[null,null,"KHAYR, W M       BRIDGES,EDWARD 7269   UNCOSIGNED 04/18/22  29192690      INFECTIOUS DISE               NAQVI,SYED M   "]
[]
[]
[null,null,"          SERVICE: INPATIENT ACUTE CARE & ICU"]
[null,null,"ALLAN, N         VICKERS,XALEE  1793   UNSIGNED   03/01/22  28929690      VAAES NURSING F                              "]
[null,null,"BLACK, J S       ROEMER,HELMUT  5452   UNSIGNED   02/04/22  28806251      VAAES NURSING F                              "]
[null,null,"BLACK, J S       OAKES,BRADLEY  2672   UNSIGNED   03/19/22  29031196      VAAES NURSING F                              "]
[null,null,"BLACK, J S       FOX,NATHAN BRI 3095   UNSIGNED   03/20/22  29033611      VAAES NURSING F                              "]
[null,null,"BLACK, J S       NGA,RICHARD BA 2337   UNSIGNED   03/29/22  29083998      VAAES NURSING F                              "]
[null,null,"ESTRELLA, A F    BROWN,CLYDE JO 9969   UNSIGNED   11/26/21  28436093      VAAES NURSING F                              "]
[null,null,"GAILLARD, T K    GREGORY,MARK A 6039   UNCOSIGNED 03/29/21  27121733      OEF/OIF TRANSIT               DEMARIO,ELLA   "]
[null,null,"MORA, G          EWING,YVETTE   6398   UNCOSIGNED 08/25/21  27943681      HISTORY AND PHY               PATEL,NEHAL R  "]
[null,null,"MORA, G          NAYLOR,ROBERT  6724   UNSIGNED   12/10/21  28519440      VAAES NURSING F                              "]
[null,null,"MORA, G          SWANSON,HARRY  9714   UNCOSIGNED 03/24/22  29056553      DISCHARGE/TRANS               KHAN,ANUM      "]
[null,null,"MORGAN, P        CAFFERTY,CELLY 1176   UNCOSIGNED 03/26/22  29067024      DISCHARGE/TRANS               KHAN,ANUM      "]
[null,null,"MORGAN, P        FERREN,COLLIN  0367   UNCOSIGNED 04/18/22  29190982      PRIMARY CARE (P               CHANDY,KURIAN  "]
[null,null,"MORGAN, P        CASTANEDA,ALBE 0403   UNCOSIGNED 04/18/22  29192172      PROVIDER DISCHA               CHANDY,KURIAN  "]
[null,null,"MORGAN, P        QUEZARE,ORLAND 3599   UNCOSIGNED 04/18/22  29192622      PROVIDER DISCHA               KUCHKUNTLA,AR  "]
[null,null,"MORGAN, P        CASTRUITA,JOSE 1527   UNCOSIGNED 04/18/22  29192624      DISCHARGE/TRANS               CHANDY,KURIAN  "]
[null,null,"MORGAN, P        KORPI,JOHN HUB 9906   UNCOSIGNED 04/18/22  29192794      PROVIDER DISCHA               CHANDY,KURIAN  "]
[null,null,"MORGAN, P        CASTANEDA,ALBE 0403   UNCOSIGNED 04/18/22  29192935      DISCHARGE/TRANS               CHANDY,KURIAN  "]
[null,null,"MORGAN, P        CASTANEDA,ALBE 0403   UNCOSIGNED 04/18/22  29193352      Discharge Summa               CHANDY,KURIAN  "]
[null,null,"MORGAN, P        CASTRUITA,JOSE 1527   UNCOSIGNED 04/18/22  29193479      Discharge Summa               CHANDY,KURIAN  "]
[null,null,"MORGAN, P        KATALINICK,KIR 6460   UNCOSIGNED 04/18/22  29193663      DISCHARGE/TRANS               CHANDY,KURIAN  "]
[null,null,"MORGAN, P        KORPI,JOHN HUB 9906   UNCOSIGNED 04/18/22  29193703      DISCHARGE/TRANS               CHANDY,KURIAN  "]
[null,null,"MORGAN, P        LONDONO,JACOB  5200   UNCOSIGNED 04/18/22  29193776      PRIMARY CARE (P               CHANDY,KURIAN  "]
[null,null,"MORGAN, P        KORPI,JOHN HUB 9906   UNCOSIGNED 04/18/22  29193925      Discharge Summa               CHANDY,KURIAN  "]
[null,null,"MORGAN, P        MAYFIELD,WALTE 0429   UNCOSIGNED 04/18/22  29193958      PRIMARY CARE (P               CHANDY,KURIAN  "]
[null,null,"MORGAN, P        NOVAL,GERARD   9103   UNCOSIGNED 04/18/22  29194026      PRIMARY CARE (P               CHANDY,KURIAN  "]
[null,null,"MORGAN, P        SPOTO,RALPH MA 3888   UNCOSIGNED 04/18/22  29194103      ACUTE INPATIENT               CHANDY,KURIAN  "]
[null,null,"MORGAN, P        KATALINICK,KIR 6460   UNCOSIGNED 04/18/22  29194231      Discharge Summa               CHANDY,KURIAN  "]
[null,null,"MORGAN, P        QUEZARE,ORLAND 3599   UNCOSIGNED 04/18/22  29194266      DISCHARGE/TRANS               CHANDY,KURIAN  "]
[null,null,"MORGAN, P        QUEZARE,ORLAND 3599   UNCOSIGNED 04/18/22  29194325      Discharge Summa               CHANDY,KURIAN  "]
[null,null,"REID, C D        TEKAMPE,JOSEPH 9000   UNSIGNED   10/24/21  28259431      VAAES NURSING F                              "]
[null,null,"REID, C D        SLACUM,LESLIE  1418   UNSIGNED   10/24/21  28259514      VAAES NURSING F                              "]
[null,null,"REID, C D        DELA PENA,EMER 3275   UNSIGNED   12/14/21  28535143      VAAES NURSING F                              "]
[null,null,"REID, C D        KAZARIAN,PETER 0003   UNSIGNED   01/15/22  28702157      VAAES NURSING F                              "]
[null,null,"THOMAS, T        RODEFER,DENNIS 6497   UNCOSIGNED 03/06/22  28959109      Addendum                      CARRASCO,DOMI  28958836"]
[null,null,"WANG, A X        ELY,ANTHONY EU 9765   UNCOSIGNED 04/18/22  29193699      Addendum                      BANU,MADEEHA   27835373"]
[null,null,"WANG, A X        ELY,ANTHONY EU 9765   UNCOSIGNED 04/18/22  29193733      HISTORY AND PHY               BANU,MADEEHA   "]
[null,null,"WANG, A X        MILLER,WILLIAM 6010   UNCOSIGNED 04/18/22  29193767      Addendum                      BANU,MADEEHA   29191116"]
[null,null,"WANG, A X        MCRAE,TIMOTHY  1030   UNCOSIGNED 04/18/22  29194172      LIFE-SUSTAINING               CHEN,CHIJEN L  "]
[null,null,"WANG, A X        MCRAE,TIMOTHY  1030   UNCOSIGNED 04/18/22  29194222      HISTORY AND PHY               LEE,WON-HE     "]
[null,null,"WANG, A X        HALL,JOHN MONT 0469   UNCOSIGNED 04/18/22  29194339      HOSPITALISTS PE               CHEN,CHIJEN L  "]
[null,null,"WANG, A X        POLLACE,JOHN L 9968   UNCOSIGNED 04/18/22  29194482      HISTORY AND PHY               CHEN,CHIJEN L  "]
[null,null,"WANG, A X        POLLACE,JOHN L 9968   UNCOSIGNED 04/18/22  29194485      Addendum                      CHEN,CHIJEN L  29047645"]
[null,null,"WANG, A X        MATUZAK,THOMAS 3537   UNCOSIGNED 04/18/22  29194503      HISTORY AND PHY               PADURI,SWETHA  "]
[null,null,"WANG, A X        LARSEN,KEVIN R 4399   UNCOSIGNED 04/18/22  29194814      HISTORY AND PHY               AMAN,OSMAN M   "]
[null,null,"WANG, A X        LARSEN,KEVIN R 4399   UNCOSIGNED 04/18/22  29194880      LIFE-SUSTAINING               AMAN,OSMAN M   "]
[null,null,"WILLIAMS, M      MARION,RICKY   6341   UNSIGNED   12/14/21  28538945      VAAES NURSING F                              "]
[null,null,"WILLIAMS, M      CHAPMAN,PHILIP 9401   UNSIGNED   01/10/22  28670587      VAAES NURSING F                              "]
[null,null,"WILLIAMS, M      WOODS,TEDRIC J 6431   UNSIGNED   01/29/22  28771388      VAAES NURSING F                              "]
[]
[]
[null,null,"          SERVICE: INPATIENT SERVICES"]
[null,null,"EARNEST, M A     LOPEZ,SOLEDAD  7661   UNSIGNED   06/19/21  27582745      DIALYSIS SBAR C                              "]
[]
[]
[null,null,"          SERVICE: INTERNAL MEDICINE"]
[null,null,"AHMED, A A       MINTER,ALBERT  1377   UNSIGNED   01/04/22  28640653      PRIMARY CARE (P  DANIELS,JONAT               "]
[null,null,"AHMED, A A       MESROBIAN,ARME 6024   UNSIGNED   03/08/22  28970165      PRIMARY CARE (P  MORGAN,PAUL                 "]
[null,null,"JOHNSON, T D     WILLIAMS,MICHA 0541   UNSIGNED   05/15/21  27394006      DISCHARGE/TRANS  DANIELS,JONAT               "]
[null,null,"JOHNSON, T D     WILSON,ERICA A 2956   UNSIGNED   05/19/21  27416394      PRIMARY CARE (P  BEERMANN,MART               "]
[null,null,"JOHNSON, T D     MYCANKA,PETER  3736   UNSIGNED   06/19/21  27581845      DISCHARGE/TRANS  MORGAN,PAUL                 "]
[null,null,"JOHNSON, T D     TOTSCH,KEITH L 0190   UNSIGNED   06/21/21  27589183      PRIMARY CARE (P  PUTHENVEETIL,               "]
[null,null,"JOHNSON, T D     RODRIGUEZ,JOSE 8080   UNSIGNED   07/09/21  27690327      PROVIDER DISCHA  CANIFF,KAYLEE               "]
[null,null,"JOHNSON, T D     PECORARO,FRANK 0490   UNSIGNED   02/23/22  28896537      ACUTE INPATIENT  NADEEM,AMIN U               "]
[null,null,"JOHNSON, T D     SEAVERSON,EDDI 5194   UNSIGNED   02/24/22  28905800      DISCHARGE/TRANS  NADEEM,AMIN U               "]
[null,null,"JOHNSON, T D     THOMAS,JOSEPH  3945   UNSIGNED   04/11/22  29149385      Addendum                                     29149316"]
[null,null,"JOSEPH, K A      PRESSWOOD,ROSC 1629   UNSIGNED   07/01/21  27649855      CARDIOLOGY PROG  SUBRAMANIAN,M               "]
[null,null,"JOSEPH, K A      WEBSTER,CHARLE 6203   UNSIGNED   11/09/21  28351746      PROVIDER DISCHA  WANG,ASHLEY X               "]
[null,null,"JOSEPH, K A      SCHMIT,PAUL CH 1161   UNSIGNED   01/25/22  28750698      PROVIDER DISCHA  WANG,ASHLEY X               "]
[null,null,"JOSEPH, K A      JACKSON,GEORGE 0563   UNSIGNED   01/29/22  28769723      PROVIDER DISCHA  SHAAYA,GHAITH               "]
[null,null,"JOSEPH, K A      SMITH,MELVIN   5010   UNSIGNED   01/31/22  28781055      PROVIDER DISCHA  ABUTALIB,JABE               "]
[null,null,"JOSEPH, K A      CLEVELAND,FELI 6605   UNSIGNED   02/01/22  28787813      PROVIDER DISCHA  PUTHENVEETIL,               "]
[null,null,"JOSEPH, K A      VANDAELE,JAMES 3844   UNSIGNED   02/02/22  28788883      PROVIDER DISCHA  PUTHENVEETIL,               "]
[null,null,"JOSEPH, K A      BROWN,BRIGITTE 9532   UNSIGNED   02/02/22  28793883      PROVIDER DISCHA  DANIELS,JONAT               "]
[null,null,"JOSEPH, K A      MORRIS,KERRY L 1461   UNSIGNED   02/04/22  28800588      PROVIDER DISCHA  MORGAN,PAUL                 "]
[null,null,"MANGAT, H        AVERSANO,DONAL 3336   UNSIGNED   04/18/22  29192843      PROVIDER DISCHA  NADEEM,AMIN U               "]
[null,null,"MANGAT, H        AVERSANO,DONAL 3336   UNSIGNED   04/18/22  29192949      DISCHARGE/TRANS  NADEEM,AMIN U               "]
[null,null,"MANGAT, H        AVERSANO,DONAL 3336   UNSIGNED   04/18/22  29193125      Discharge Summa  NADEEM,AMIN U               "]
[]
[]
[null,null,"          SERVICE: KENOSHA CLINIC"]
[null,null,"HOLLANT, G       OCONNOR,JOHN R 8492   UNCOSIGNED 12/24/21  28594851      Addendum                      NAQVI,SYED M   28560356"]
[null,null,"HOLLANT, G       SMITH,GREGORY  5086   UNCOSIGNED 01/25/22  28750117      Addendum                      NAQVI,SYED M   28665187"]
[]
[]
[null,null,"          SERVICE: LABORATORY SERVICE"]
[null,null,"BRIGGS, B L      AQUINO-CRUZ,DO 9004   UNSIGNED   04/07/22  29133940      MH TELEPHONE CO                              "]
[]
[]
[null,null,"          SERVICE: MADISON TELEPHONE OPERATIONS"]
[null,null,"VAAGE, C A       LYONS,JAMES JO 1827   UNSIGNED   02/10/21  26872950      VAAES NSG COVID                              "]
[]
[]
[null,null,"          SERVICE: MEDICAL SERVICE"]
[null,null,"MEHTA, P S       VANITER,DEAN L 5287   UNCOSIGNED 04/11/22  29150358      Addendum                      PADURI,SWETHA  29135939"]
[]
[]
[null,null,"          SERVICE: MEDICAL SERVICES"]
[null,null,"RODRIGUEZ, A I   SKIPPER,BETHAN 5129   UNSIGNED   01/20/22  28722072      ADMINISTRATIVE                               "]
[null,null,"RODRIGUEZ, A I   LIGENZA,DANIEL 7441   UNSIGNED   02/02/22  28790350      ADMINISTRATIVE                               "]
[null,null,"RODRIGUEZ, A I   VILLA,JONNIE C 1234   UNSIGNED   03/15/22  29005485      ADMINISTRATIVE                               "]
[null,null,"RODRIGUEZ, A I   HAIRSTON,DEMET 1355   UNSIGNED   04/04/22  29110586      ADMINISTRATIVE                               "]
[]
[]
[null,null,"          SERVICE: MEDICINE"]
[null,null,"AMAN, O M        WALSWEER,CHRIS 1071   UNSIGNED   07/22/21  27761549      PRIMARY CARE (P  DANIELS,JONAT               "]
[null,null,"AMAN, O M        BEAN,LANAISA S 8209   UNSIGNED   07/28/21  27796957      LIFE-SUSTAINING                              "]
[null,null,"AMAN, O M        BAILEY,KATIE R 5248   UNSIGNED   09/28/21  28124295      HISTORY AND PHY  DANIELS,JONAT               "]
[null,null,"AMAN, O M        LOJKOVIC,FRANC 6738   UNSIGNED   10/10/21  28185689      PROVIDER DISCHA  DANIELS,JONAT               "]
[null,null,"AMAN, O M        PATULA,JACOB M 3004   UNSIGNED   10/13/21  28199370      CPRS DOWNTIME -  SHAAYA,GHAITH               "]
[null,null,"AMAN, O M        MCCLELLAN,BRAD 5153   UNSIGNED   01/29/22  28770457      PRIMARY CARE (P  SHAAYA,GHAITH               "]
[null,null,"ASLAM, M Y       STEVENSON,WALT 4093   UNSIGNED   03/14/22  29002157      PRIMARY CARE (P  NADEEM,AMIN U               "]
[null,null,"BANU, M          MCRAE,TIMOTHY  1030   UNSIGNED   04/18/22  29194515      Addendum         WANG,ASHLEY X               29194222"]
[null,null,"CELMER, A P      PHILLIPS,MICHA 1102   UNSIGNED   03/04/22  28949143       GASTROENTEROLO  FELLER,AXEL M               "]
[null,null,"CHAN, L S        MARTIN,THOMAS  3228   UNSIGNED   04/18/22  29189220      DERMATOLOGY GEN                              "]
[null,null,"CHAN, L S        DUGGAN,DAVID A 7033   UNSIGNED   04/18/22  29194061      DERMATOLOGY GEN                              "]
[null,null,"CHAN, L S        GRAHAM,LEON EL 2474   UNSIGNED   04/18/22  29194104      DERMATOLOGY GEN                              "]
[null,null,"CHAN, L S        MACNAUGHTON,NA 1291   UNSIGNED   04/18/22  29194117      DERMATOLOGY GEN                              "]
[null,null,"CHAN, L S        VARGO,WILLIAM  9716   UNSIGNED   04/18/22  29194124      DERMATOLOGY GEN                              "]
[null,null,"CHAN, L S        RODRIGUEZ,RAMI 9952   UNSIGNED   04/18/22  29194138      DERMATOLOGY GEN                              "]
[null,null,"CHAN, L S        TARR,DARRYL GO 9419   UNSIGNED   04/18/22  29194153      DERMATOLOGY OUT                              "]
[null,null,"CHAN, L S        COOK,GLEN EARL 8290   UNSIGNED   04/18/22  29194176      DERMATOLOGY GEN                              "]
[null,null,"CHEN, C L        FELSKE,RICHARD 9625   UNSIGNED   04/17/22  29186823      PROVIDER DISCHA  CANIFF,KAYLEE               "]
[null,null,"CHEN, C L        MORRIS,KERRY L 1461   UNSIGNED   04/17/22  29186858      PROVIDER DISCHA  CANIFF,KAYLEE               "]
[null,null,"CHEN, C L        OCHOA,PETER LA 2889   UNSIGNED   04/17/22  29186866      PROVIDER DISCHA  CANIFF,KAYLEE               "]
[null,null,"DANIELS, J R     JACKSON,JERRY  4715   UNCOSIGNED 04/16/22  29185422      DISCHARGE/TRANS               PARK,CHRISTOP  "]
[null,null,"GOMEZ, A G       RADKE,DIRK ROB 4302   UNSIGNED   04/06/22  29127226       GASTROENTEROLO  FELLER,AXEL M               "]
[null,null,"HAMOUDI, A T     HARDY,NORRIS   3614   UNSIGNED   04/01/22  29098654      CARDIOLOGY PROG  PERRINEZ,PHIL               "]
[null,null,"HAMOUDI, A T     BEESE,ALLEN RA 5639   UNSIGNED   04/18/22  29193868      CARDIOLOGY 24 H  SHAPIRO,MICHA               "]
[null,null,"KHAN, A          THOMPSON,MATTH 6395   UNSIGNED   11/07/21  28336535      PRIMARY CARE (P  SHAAYA,GHAITH               "]
[null,null,"KHAN, A          LOWELL,JUSTIN  9842   UNSIGNED   02/18/22  28878626      PROVIDER DISCHA  DANIELS,JONAT               "]
[null,null,"KHAN, A          JACKSON,JERRY  4715   UNSIGNED   04/11/22  29153841      PRIMARY CARE (P  DANIELS,JONAT               "]
[null,null,"KHAN, M M        WOLTZ,GEORGE H 3965   UNSIGNED   05/26/21  27449663      LIFE-SUSTAINING  GAZMURI,RAUL                "]
[null,null,"KIM, N           TELFORD,ISAIAH 9203   UNSIGNED   11/02/21  28310282      LIFE-SUSTAINING                              "]
[null,null,"KUSCHEL, S L     JACKSON,DARRYL 7778   UNSIGNED   04/11/22  29153338      DERMATOLOGY GEN                              "]
[null,null,"KUSCHEL, S L     FOX,JAMES PATR 9740   UNSIGNED   04/12/22  29159515      DERMATOLOGY OUT                              "]
[null,null,"KUSCHEL, S L     JAMES,WILSON B 8596   UNSIGNED   04/12/22  29159649      DERMATOLOGY GEN                              "]
[null,null,"KUSCHEL, S L     MARTIN,THOMAS  3228   UNSIGNED   04/12/22  29159661      DERMATOLOGY GEN                              "]
[null,null,"KUSCHEL, S L     MEDOR,JACOB JE 8863   UNSIGNED   04/12/22  29159669      DERMATOLOGY GEN                              "]
[null,null,"KUSCHEL, S L     KREUTZIGER,KUR 1485   UNSIGNED   04/12/22  29159682      DERMATOLOGY GEN                              "]
[null,null,"KUSCHEL, S L     DIAZ,MIGUEL AN 2834   UNSIGNED   04/12/22  29159714      DERMATOLOGY GEN                              "]
[null,null,"KUSCHEL, S L     ESTERDAY,ROBER 5979   UNSIGNED   04/12/22  29159722      DERMATOLOGY GEN                              "]
[null,null,"KUSCHEL, S L     TASKER,RAY EDW 6374   UNSIGNED   04/12/22  29159730      DERMATOLOGY GEN                              "]
[null,null,"KUSCHEL, S L     FRENCH,MICHAEL 9069   UNSIGNED   04/12/22  29159739      DERMATOLOGY GEN                              "]
[null,null,"KUSCHEL, S L     RICHARDSON,MAR 6250   UNSIGNED   04/12/22  29159756      DERMATOLOGY GEN                              "]
[null,null,"LLOYD, P O       LACKNEY,MICHAE 0841   UNSIGNED   11/01/21  28304290      PULMONARY CPAP                               "]
[null,null,"LLOYD, P O       CARLSON,SCOTT  4111   UNSIGNED   11/23/21  28425785      PULMONARY CPAP                               "]
[null,null,"LLOYD, P O       PAWLOSKI,LUCAS 2431   UNSIGNED   01/07/22  28658646      PULMONARY CPAP                               "]
[null,null,"LLOYD, P O       WROBLEWSKI,JAS 4529   UNSIGNED   01/11/22  28676140      PULMONARY CPAP                               "]
[null,null,"MALIK, T F       FRANK,GEORGE   3633   UNSIGNED   01/06/22  28654798      PROVIDER DISCHA  NGUYEN,MICHEL               "]
[null,null,"MALIK, T F       MOTSINGER,DAMO 2064   UNSIGNED   01/17/22  28705361      PROVIDER DISCHA  DANIELS,JONAT               "]
[null,null,"MALIK, T F       MOTSINGER,DAMO 2064   UNSIGNED   01/17/22  28705468      DISCHARGE/TRANS  DANIELS,JONAT               "]
[null,null,"MALIK, T F       MALINOW,WILLIA 7214   UNSIGNED   03/01/22  28930377      DISCHARGE/TRANS  WANG,ASHLEY X               "]
[null,null,"MALIK, T F       BOWLES,DONALD  5242   UNSIGNED   03/13/22  28996136      PRIMARY CARE (P  SHAAYA,GHAITH               "]
[null,null,"MALIK, T F       LACKENBACH,ART 5705   UNSIGNED   04/01/22  29101246      ACUTE INPATIENT  PUTHENVEETIL,               "]
[null,null,"MALIK, T F       PUDLO,CHESTER  5263   UNSIGNED   04/08/22  29139266      GASTROENTEROLOG  SHAH,PALLAVI                "]
[null,null,"MARENYCH, N      NOGER,ANDREW J 8178   UNSIGNED   04/15/22  29181053      Addendum         MOID,ALVIA                  29150167"]
[null,null,"MIRZA, M A       ARIMAS,ANTON J 3510   UNSIGNED   05/20/21  27418689      CARDIOLOGY PROG  SUBRAMANIAN,M               "]
[null,null,"MOHAMMED, S S    CASTRUITA,JOSE 1527   UNSIGNED   04/18/22  29189155      PRIMARY CARE (P  COTTER,WILLIA               "]
[null,null,"PARK, C S        JANICK,DANIEL  1212   UNSIGNED   04/18/22  29193551      DISCHARGE/TRANS  ABUTALIB,JABE               "]
[null,null,"PARK, C S        APA,GAETANO ME 7818   UNSIGNED   04/18/22  29193856      DISCHARGE/TRANS  ABUTALIB,JABE               "]
[null,null,"PERBOHNER, Z J   WARD,CHAZZ     6048   UNSIGNED   01/06/22  28652981      PRIMARY CARE (P  DANIELS,JONAT               "]
[null,null,"PERBOHNER, Z J   WARD,CHAZZ     6048   UNSIGNED   01/06/22  28653769      DISCHARGE/TRANS  DANIELS,JONAT               "]
[null,null,"PERBOHNER, Z J   CHAHAJ,GREGORY 3628   UNSIGNED   01/10/22  28671731      PRIMARY CARE (P  WANG,ASHLEY X               "]
[null,null,"PERBOHNER, Z J   MONNIER,WILLIA 8402   UNSIGNED   01/18/22  28708601      ACUTE INPATIENT  NADEEM,AMIN U               "]
[null,null,"QURAISHI, J      TENNYSON,GUY D 8091   UNSIGNED   01/27/22  28763212      DISCHARGE/TRANS  FANAPOUR,PHIL               "]
[null,null,"SARIPALLI, A R   CALLOW,ROBERT  9940   UNSIGNED   01/04/22  28639721      PULMONARY CLINI  COPUR,AHMET S               "]
[null,null,"SARIPALLI, A R   LUCIUS,RONALD  5826   UNSIGNED   01/06/22  28652191      Addendum         COPUR,AHMET S               28646196"]
[null,null,"TRAN, A T        BLACK,HENRY LE 2230   UNCOSIGNED 04/13/22  29165176      OPHTHALMOLOGY N               KAUFMAN,AARON  "]
[null,null,"TRAN, A T        QUINN,ANTHONY  7345   UNSIGNED   04/18/22  29191497      IPMS ACUPUNCTUR                              "]
[null,null,"TRAN, A T        CARRANZA,JERRY 1630   UNSIGNED   04/18/22  29193063      IPMS ACUPUNCTUR                              "]
[null,null,"TRAN, A T        MARTINEZ,JUAN  7198   UNSIGNED   04/18/22  29193076      IPMS ACUPUNCTUR                              "]
[null,null,"TRAN, A T        CLOSE,KENNETH  7890   UNSIGNED   04/18/22  29193315      IPMS ACUPUNCTUR                              "]
[null,null,"TRAN, A T        KEPPEN,MICHAEL 5839   UNSIGNED   04/18/22  29193334      IPMS ACUPUNCTUR                              "]
[null,null,"WANNIARACHCHI, G HBURDINE,CHARLE5586   UNSIGNED   10/21/21  28249215      LIFE-SUSTAINING                              "]
[null,null,"WOODARD, A J     SIKICH,WESTLEY 0650   UNSIGNED   04/29/21  27303089      PULMONARY CPAP   SIMON,EDWIN K               "]
[null,null,"WOODARD, A J     HOGUE,ROBERT I 7699   UNSIGNED   05/18/21  27407926      PULMONARY CPAP   SIMON,EDWIN K               "]
[null,null,"WOODARD, A J     NEWBERN,REGINA 8108   UNSIGNED   03/16/22  29013095      PULMONARY CPAP   SIMON,EDWIN K               "]
[]
[]
[null,null,"          SERVICE: MENTAL HEALTH CLINIC"]
[null,null,"ALTMAN, C        MORICAL,AREN M 3270   UNCOSIGNED 04/15/22  29179852      VVC TELEHEALTH                VACHAPARAMBIL  "]
[null,null,"COLBERT, L I     ABRAMS,MICHAEL 4558   UNCOSIGNED 04/18/22  29189188      MH PSYCHIATRY O               WASSERMAN,DAN  "]
[null,null,"COLBERT, L I     BROWN,MELVIN T 6301   UNCOSIGNED 04/18/22  29189510      MH PSYCHIATRY O               WASSERMAN,DAN  "]
[null,null,"COLBERT, L I     BROWN,MELVIN T 6301   UNCOSIGNED 04/18/22  29189629      PERSONAL HEALTH               WASSERMAN,DAN  "]
[null,null,"COLBERT, L I     ALSTON,JOHN HE 4064   UNCOSIGNED 04/18/22  29189733      MH PSYCHIATRY O               WASSERMAN,DAN  "]
[null,null,"COLBERT, L I     JOHNSON,TERRY  9900   UNCOSIGNED 04/18/22  29190078      MH PSYCHIATRY O               WASSERMAN,DAN  "]
[null,null,"COLBERT, L I     MARTIN,FRANK   1026   UNCOSIGNED 04/18/22  29190456      MH PSYCHIATRY O               WASSERMAN,DAN  "]
[null,null,"COLBERT, L I     MARTIN,FRANK   1026   UNCOSIGNED 04/18/22  29190471      PERSONAL HEALTH               WASSERMAN,DAN  "]
[null,null,"COLBERT, L I     NEWTON,THOMAS  7682   UNCOSIGNED 04/18/22  29190799      MH PSYCHIATRY O               WASSERMAN,DAN  "]
[null,null,"COLBERT, L I     ANDERSEN,STANL 5222   UNCOSIGNED 04/18/22  29191799      MH INTAKE                     WASSERMAN,DAN  "]
[null,null,"COLBERT, L I     ANDERSEN,STANL 5222   UNCOSIGNED 04/18/22  29191847      PERSONAL HEALTH               WASSERMAN,DAN  "]
[null,null,"COLBERT, L I     AMANN,JOHN GUE 6669   UNCOSIGNED 04/18/22  29194064      Addendum                      WASSERMAN,DAN  29061379"]
[null,null,"COLBERT, L I     ANDERSEN,STANL 5222   UNCOSIGNED 04/18/22  29194284      MH PSYCHIATRY O               WASSERMAN,DAN  "]
[null,null,"COLBERT, L I     ABRAMS,MICHAEL 4558   UNCOSIGNED 04/18/22  29194457      PERSONAL HEALTH               WASSERMAN,DAN  "]
[null,null,"CVEJIN, B        SMALL,DEREK O  1157   UNSIGNED   04/18/22  29194310      VVC TELEHEALTH                               "]
[null,null,"CVEJIN, B        AGUINAGA,ANDRE 5613   UNSIGNED   04/18/22  29194356      MH /PSYCHOLOGY/                              "]
[null,null,"CVEJIN, B        SANCHEZ,JOSEPH 1150   UNSIGNED   04/18/22  29194361      VVC TELEHEALTH                               "]
[null,null,"CVEJIN, B        GOLDSTONE,BREN 5522   UNSIGNED   04/18/22  29194368      MH /PSYCHOLOGY/                              "]
[null,null,"CVEJIN, B        POGI,LEILANI R 7430   UNSIGNED   04/18/22  29194372      PTSD CONSULT NO                              "]
[null,null,"DE AVILA, D      QUACKENBUSH,ED 1827   UNCOSIGNED 04/15/22  29181428      PEER SUPPORT GR               KIRKLIN,RENE   "]
[null,null,"DE AVILA, D      WANCZYK,GERARD 1411   UNCOSIGNED 04/15/22  29181495      PEER SUPPORT GR               KIRKLIN,RENE   "]
[null,null,"DE AVILA, D      CWIK,WALLACE A 5170   UNCOSIGNED 04/15/22  29181584      PEER SUPPORT GR               KIRKLIN,RENE   "]
[null,null,"DE AVILA, D      SCHILLACI,JAME 6102   UNCOSIGNED 04/15/22  29181672      PEER SUPPORT GR               KIRKLIN,RENE   "]
[null,null,"DE AVILA, D      GAETI,RONALD M 6501   UNCOSIGNED 04/15/22  29181693      PEER SUPPORT GR               KIRKLIN,RENE   "]
[null,null,"GERTSBERG, Y     BOYLE,EDWARD K 3935   UNSIGNED   04/12/22  29162224      MH /PSYCHIATRY                               "]
[null,null,"GERTSBERG, Y     AOYAGI,STEVE M 2971   UNSIGNED   04/14/22  29176003      MH /PSYCHIATRY                               "]
[null,null,"GERTSBERG, Y     MASSE,THOMAS R 6700   UNCOSIGNED 04/14/22  29176805      MH PSYCHIATRY O               VVEDENSKIY,YE  "]
[null,null,"GERTSBERG, Y     WRIGHT,DONALD  7534   UNSIGNED   04/15/22  29177068      Addendum                                     29175716"]
[null,null,"GETTYS, G C      MOSLEY,WYDENA  6708   UNCOSIGNED 02/08/22  28820308      MH PSYCHIATRY O               KHEHRA,LOVELE  "]
[null,null,"GETTYS, G C      GORDON,JAMES L 8579   UNCOSIGNED 02/08/22  28820598      MH PSYCHIATRY O               KHEHRA,LOVELE  "]
[null,null,"GETTYS, G C      WEBER,ROCHELLE 2078   UNCOSIGNED 02/08/22  28820953      MH TELEPHONE CO               KHEHRA,LOVELE  "]
[null,null,"GETTYS, G C      CEDERGREN,KYLE 0963   UNSIGNED   02/14/22  28850292      MH TELEPHONE CO                              "]
[null,null,"GETTYS, G C      BADE,DENNIS KE 2552   UNCOSIGNED 02/15/22  28856854      MH PSYCHIATRY O               KHEHRA,LOVELE  "]
[null,null,"GETTYS, G C      WHITE,ROBERT B 5422   UNCOSIGNED 02/15/22  28857027      MH PSYCHIATRY O               KHEHRA,LOVELE  "]
[null,null,"GETTYS, G C      WEIMAN,IRVING  2526   UNCOSIGNED 02/15/22  28857510      MH PSYCHIATRY O               KHEHRA,LOVELE  "]
[null,null,"GETTYS, G C      NIKULA,CHRIS H 8151   UNCOSIGNED 02/15/22  28857872      MH TELEPHONE CO               KHEHRA,LOVELE  "]
[null,null,"GETTYS, G C      DAVIS,ERNEST E 1215   UNCOSIGNED 02/22/22  28889981      MH PSYCHIATRY O               KHEHRA,LOVELE  "]
[null,null,"GETTYS, G C      HUBBARD,KENNET 8327   UNCOSIGNED 02/22/22  28890442      MH PSYCHIATRY O               KHEHRA,LOVELE  "]
[null,null,"GETTYS, G C      ROSADO,VERA KA 7007   UNCOSIGNED 02/22/22  28891091      VVC TELEHEALTH                KHEHRA,LOVELE  "]
[null,null,"GETTYS, G C      SHREWSBURY,KAR 5945   UNCOSIGNED 02/22/22  28891482      MH PSYCHIATRY O               KHEHRA,LOVELE  "]
[null,null,"GETTYS, G C      HEININGER,LIND 7132   UNCOSIGNED 02/22/22  28892967      NO SHOW                       KHEHRA,LOVELE  "]
[null,null,"GETTYS, G C      BROWN,ALEXANDR 9997   UNCOSIGNED 02/25/22  28911417      VVC TELEHEALTH                VACHAPARAMBIL  "]
[null,null,"GETTYS, G C      BUTTERFIELD,TI 3665   UNCOSIGNED 02/25/22  28912037      MH TELEPHONE CO               VACHAPARAMBIL  "]
[null,null,"GETTYS, G C      LONEY,JOSEPH   2673   UNSIGNED   02/28/22  28920591      MH /PSYCHIATRY                               "]
[null,null,"GETTYS, G C      WONDRASEK,JOHN 0121   UNCOSIGNED 03/01/22  28927964      MH /PSYCHIATRY                LAWLER,ALLISO  "]
[null,null,"GETTYS, G C      CASTROALCINA,L 2826   UNCOSIGNED 03/01/22  28929531      MH /PSYCHIATRY                LAWLER,ALLISO  "]
[null,null,"GETTYS, G C      SANDERS,BOBBIE 9405   UNCOSIGNED 03/01/22  28932151      MH /PSYCHIATRY                LAWLER,ALLISO  "]
[null,null,"GETTYS, G C      GIVENS,LONNIE  2826   UNCOSIGNED 03/04/22  28948797      MH INTAKE                     KHOSHKISH,ALI  "]
[null,null,"GETTYS, G C      GIVENS,LONNIE  2826   UNCOSIGNED 03/04/22  28949109      PERSONAL HEALTH               KHOSHKISH,ALI  "]
[null,null,"GETTYS, G C      KWIECINSKI,KEV 4381   UNCOSIGNED 03/04/22  28949730      NO SHOW                       KHOSHKISH,ALI  "]
[null,null,"GETTYS, G C      LOEFFEL,WILLIA 8318   UNCOSIGNED 03/04/22  28949766      Addendum                      KHOSHKISH,ALI  28942859"]
[null,null,"GETTYS, G C      DAVIS,STEVEN W 4413   UNCOSIGNED 03/04/22  28950175      MH PSYCHIATRY O               KHOSHKISH,ALI  "]
[null,null,"GETTYS, G C      MURRAY,PHILLIP 1404   UNCOSIGNED 03/04/22  28950306      MH PSYCHIATRY O               KHOSHKISH,ALI  "]
[null,null,"GETTYS, G C      MURRAY,PHILLIP 1404   UNCOSIGNED 03/04/22  28950834      PERSONAL HEALTH               KHOSHKISH,ALI  "]
[null,null,"GETTYS, G C      HELLMER,RONALD 6953   UNCOSIGNED 03/08/22  28967573      MH INTAKE                     LAWLER,ALLISO  "]
[null,null,"GETTYS, G C      BRANTLEY WYNN, 2267   UNCOSIGNED 03/08/22  28967772      MH TELEPHONE CO               KHEHRA,LOVELE  "]
[null,null,"GETTYS, G C      GARCIA,JUSTIN  4055   UNCOSIGNED 03/08/22  28968246      MH /PSYCHIATRY                LAWLER,ALLISO  "]
[null,null,"GETTYS, G C      NORSWORTHY,STE 2934   UNCOSIGNED 03/08/22  28968265      NO SHOW                       KHEHRA,LOVELE  "]
[null,null,"GETTYS, G C      BERUMEN,CHRIST 7087   UNCOSIGNED 03/08/22  28968733      MH TELEPHONE CO               KHEHRA,LOVELE  "]
[null,null,"GETTYS, G C      STILES,NANCY A 4391   UNCOSIGNED 03/08/22  28969063      MH TELEPHONE CO               KHEHRA,LOVELE  "]
[null,null,"GETTYS, G C      ROSENTHAL,STAN 5579   UNCOSIGNED 03/09/22  28976073      Addendum                      KHEHRA,LOVELE  28975601"]
[null,null,"GETTYS, G C      LACKNEY,MICHAE 0841   UNCOSIGNED 03/15/22  29005530      MH PSYCHIATRY O               KHEHRA,LOVELE  "]
[null,null,"GETTYS, G C      SELLS,JEFFERY  0223   UNCOSIGNED 03/15/22  29005660      MH PSYCHIATRY O               KHEHRA,LOVELE  "]
[null,null,"GETTYS, G C      DAVIS,CYNTHIA  5513   UNCOSIGNED 03/15/22  29005890      MH PSYCHIATRY O               KHEHRA,LOVELE  "]
[null,null,"GETTYS, G C      CESARIO,ANTHON 0850   UNCOSIGNED 03/15/22  29006319      MH PSYCHIATRY O               KHEHRA,LOVELE  "]
[null,null,"GETTYS, G C      CONNOR,EMILY C 2693   UNCOSIGNED 03/15/22  29006801      VVC TELEHEALTH                KHEHRA,LOVELE  "]
[null,null,"GETTYS, G C      RIVERA,FRANCIS 2841   UNCOSIGNED 03/15/22  29007223      Addendum                      KHEHRA,LOVELE  29001908"]
[null,null,"GETTYS, G C      CESARIO,ANTHON 0850   UNCOSIGNED 03/15/22  29008648      Addendum                      KHEHRA,LOVELE  29006319"]
[null,null,"GETTYS, G C      MATUZAK,THOMAS 3537   UNCOSIGNED 03/15/22  29009558      Addendum                      LAWLER,ALLISO  28990688"]
[null,null,"GETTYS, G C      ROSAS,CARLOS E 8577   UNCOSIGNED 03/18/22  29025150      MH PSYCHIATRY O               VACHAPARAMBIL  "]
[null,null,"GETTYS, G C      MCMAHON,JOSEPH 7971   UNCOSIGNED 03/18/22  29025249      MH PSYCHIATRY O               VACHAPARAMBIL  "]
[null,null,"GETTYS, G C      STUTTLE,JEFFRE 6458   UNCOSIGNED 03/18/22  29025887      MH PSYCHIATRY O               VACHAPARAMBIL  "]
[null,null,"GETTYS, G C      WALKER,WENDI A 5408   UNCOSIGNED 03/18/22  29026415      MH PSYCHIATRY O               VACHAPARAMBIL  "]
[null,null,"GETTYS, G C      RADOVAN,ANDREW 3371   UNCOSIGNED 03/18/22  29026921      Addendum                      VACHAPARAMBIL  28964061"]
[null,null,"GETTYS, G C      WALTERS,PATRIC 5393   UNCOSIGNED 03/18/22  29027500      MH PSYCHIATRY O               VACHAPARAMBIL  "]
[null,null,"GETTYS, G C      MARZIGLIANO,NI 5294   UNCOSIGNED 03/22/22  29042024      MH INTAKE CONSU               LAWLER,ALLISO  "]
[null,null,"GETTYS, G C      SCAMMELL,ANTHO 2899   UNCOSIGNED 03/22/22  29042173      MH PSYCHIATRY O               KHEHRA,LOVELE  "]
[null,null,"GETTYS, G C      BERGER,CHRISTO 0791   UNCOSIGNED 03/22/22  29042441      MH PSYCHIATRY O               KHEHRA,LOVELE  "]
[null,null,"GETTYS, G C      LUBENO,SARA DE 3387   UNCOSIGNED 03/22/22  29042579      MH INTAKE CONSU               LAWLER,ALLISO  "]
[null,null,"GETTYS, G C      LAUESEN,TERRY  8605   UNCOSIGNED 03/22/22  29042780      VVC TELEHEALTH                KHEHRA,LOVELE  "]
[null,null,"GETTYS, G C      MARZIGLIANO,NI 5294   UNCOSIGNED 03/22/22  29043402      Addendum                      LAWLER,ALLISO  29042024"]
[null,null,"GETTYS, G C      RUZECK,STEVEN  5338   UNCOSIGNED 03/22/22  29043419      MH TELEPHONE CO               KHEHRA,LOVELE  "]
[null,null,"GETTYS, G C      SANDERS,BOBBIE 9405   UNCOSIGNED 03/22/22  29044788      Addendum                      LAWLER,ALLISO  29044625"]
[null,null,"GETTYS, G C      RINALDI,ROBERT 8393   UNCOSIGNED 03/22/22  29044951      NO SHOW                       KHEHRA,LOVELE  "]
[null,null,"GETTYS, G C      RINALDI,ROBERT 8393   UNCOSIGNED 03/22/22  29044983      Addendum                      KHEHRA,LOVELE  29044951"]
[null,null,"GETTYS, G C      CASTILLO,JENNI 6755   UNCOSIGNED 03/25/22  29061369      VVC TELEHEALTH                VACHAPARAMBIL  "]
[null,null,"GETTYS, G C      LUBRANO,CRAIG  8607   UNCOSIGNED 03/25/22  29061855      VVC TELEHEALTH                VACHAPARAMBIL  "]
[null,null,"GETTYS, G C      CALHOUN,JAMES  8898   UNCOSIGNED 03/25/22  29061947      MH PSYCHIATRY O               VACHAPARAMBIL  "]
[null,null,"GETTYS, G C      LUJANO,MARIA G 6750   UNCOSIGNED 03/25/22  29062213      MH TELEPHONE CO               VACHAPARAMBIL  "]
[null,null,"GETTYS, G C      LUJANO,MARIA G 6750   UNCOSIGNED 03/25/22  29062357      STATE PRESCRIPT               VACHAPARAMBIL  "]
[null,null,"GETTYS, G C      VAN DYKE,JOSHU 9095   UNCOSIGNED 03/25/22  29063358      MH PSYCHIATRY O               VACHAPARAMBIL  "]
[null,null,"GETTYS, G C      CARLSON,ROBERT 1993   UNSIGNED   03/28/22  29074090      MH TELEPHONE CO                              "]
[null,null,"GETTYS, G C      CRAWFORD,MICHA 8552   UNCOSIGNED 03/29/22  29079032      MH TELEPHONE CO               KHEHRA,LOVELE  "]
[null,null,"GETTYS, G C      SHEGOG,MICHAEL 1955   UNCOSIGNED 03/29/22  29079034      MH CLINIC NO SH               LAWLER,ALLISO  "]
[null,null,"GETTYS, G C      MARCIANO,MICHA 4336   UNCOSIGNED 03/29/22  29079231      MH TELEPHONE CO               KHEHRA,LOVELE  "]
[null,null,"GETTYS, G C      CUSACK,LINDA M 9428   UNCOSIGNED 03/29/22  29079512      Addendum                      LAWLER,ALLISO  28977317"]
[null,null,"GETTYS, G C      DELAPENA,DANIE 9548   UNCOSIGNED 03/29/22  29079562      MH PSYCHIATRY O               KHEHRA,LOVELE  "]
[null,null,"GETTYS, G C      SANDERS,BOBBIE 9405   UNCOSIGNED 03/29/22  29079774      MH /PSYCHIATRY                LAWLER,ALLISO  "]
[null,null,"GETTYS, G C      HALL,ANTON M   1122   UNCOSIGNED 03/29/22  29080020      MH TELEPHONE CO               KHEHRA,LOVELE  "]
[null,null,"GETTYS, G C      VNUK,RICHARD J 2575   UNCOSIGNED 03/29/22  29080166      MH PSYCHIATRY O               KHEHRA,LOVELE  "]
[null,null,"GETTYS, G C      GREENBERG,SHER 1260   UNCOSIGNED 03/29/22  29080565      MH PSYCHIATRY O               KHEHRA,LOVELE  "]
[null,null,"GETTYS, G C      SELLS,JEFFERY  0223   UNCOSIGNED 03/29/22  29080995      Addendum                      KHEHRA,LOVELE  29005660"]
[null,null,"GETTYS, G C      ELLS,JONA CHAT 2597   UNCOSIGNED 03/29/22  29082472      NO SHOW                       KHEHRA,LOVELE  "]
[null,null,"GETTYS, G C      KAMINSKY,DAVID 0689   UNCOSIGNED 03/29/22  29082979      MH /PSYCHIATRY                LAWLER,ALLISO  "]
[null,null,"GETTYS, G C      LYONS,ROBERT E 7123   UNCOSIGNED 04/01/22  29098582      MH PSYCHIATRY O               VACHAPARAMBIL  "]
[null,null,"GETTYS, G C      BROWN,DARRYL C 9260   UNCOSIGNED 04/01/22  29098733      MH PSYCHIATRY O               VACHAPARAMBIL  "]
[null,null,"GETTYS, G C      KELLY,GEORDIE  5855   UNCOSIGNED 04/01/22  29098987      VVC TELEHEALTH                VACHAPARAMBIL  "]
[null,null,"GETTYS, G C      LYONS,ROBERT E 7123   UNCOSIGNED 04/01/22  29099174      Addendum                      VACHAPARAMBIL  29098582"]
[null,null,"GETTYS, G C      LOVE,MICHAEL J 7109   UNCOSIGNED 04/01/22  29099665      Addendum                      VACHAPARAMBIL  28695688"]
[null,null,"GETTYS, G C      PURCELL,HELENE 8910   UNCOSIGNED 04/01/22  29100149      Addendum                      VACHAPARAMBIL  28658078"]
[null,null,"GETTYS, G C      JACKSON,LINDA  7565   UNCOSIGNED 04/01/22  29100719      MH PSYCHIATRY O               VACHAPARAMBIL  "]
[null,null,"GETTYS, G C      BROWN,ALEXANDR 9997   UNCOSIGNED 04/01/22  29101735      VVC TELEHEALTH                VACHAPARAMBIL  "]
[null,null,"GETTYS, G C      SCHMIDT,JESSIC 8349   UNCOSIGNED 04/05/22  29116879      VVC TELEHEALTH                KHEHRA,LOVELE  "]
[null,null,"GETTYS, G C      MARTINEZ,PATRI 9252   UNCOSIGNED 04/05/22  29116968      MH PSYCHIATRY O               KHEHRA,LOVELE  "]
[null,null,"GETTYS, G C      AMES,GLEN ARTH 3914   UNCOSIGNED 04/05/22  29117193      MH PSYCHIATRY O               KHEHRA,LOVELE  "]
[null,null,"GETTYS, G C      YEARND,JAMES A 8406   UNCOSIGNED 04/05/22  29117713      MH TELEPHONE CO               KHEHRA,LOVELE  "]
[null,null,"GETTYS, G C      YBARRA,GEORGE  6374   UNCOSIGNED 04/05/22  29119445      Addendum                      KHEHRA,LOVELE  29111864"]
[null,null,"GETTYS, G C      KASPERSKI,CHRI 1994   UNCOSIGNED 04/05/22  29119653      NO SHOW                       KHEHRA,LOVELE  "]
[null,null,"GETTYS, G C      CIESIELSKI,JOS 1918   UNCOSIGNED 04/05/22  29119666      NO SHOW                       KHEHRA,LOVELE  "]
[null,null,"GETTYS, G C      KENNEDY,JAMES  6711   UNCOSIGNED 04/08/22  29138195      MH PSYCHIATRY O               VACHAPARAMBIL  "]
[null,null,"GETTYS, G C      MAXFIELD,LISA  8803   UNCOSIGNED 04/08/22  29138503      MH PSYCHIATRY O               VACHAPARAMBIL  "]
[null,null,"GETTYS, G C      WILLIAMS,JOHN  9800   UNCOSIGNED 04/08/22  29138745      VVC TELEHEALTH                VACHAPARAMBIL  "]
[null,null,"GETTYS, G C      PASIEWICZ,KATH 3639   UNCOSIGNED 04/08/22  29139313      VVC TELEHEALTH                VACHAPARAMBIL  "]
[null,null,"GETTYS, G C      WOJCIK,MITCHEL 9160   UNCOSIGNED 04/08/22  29139666      VVC TELEHEALTH                VACHAPARAMBIL  "]
[null,null,"GETTYS, G C      JENKINS,DESHON 9426   UNCOSIGNED 04/08/22  29140911      NO SHOW                       VACHAPARAMBIL  "]
[null,null,"GETTYS, G C      CORRETHERS,GAR 9220   UNCOSIGNED 04/08/22  29141197      STATE PRESCRIPT               VACHAPARAMBIL  "]
[null,null,"GETTYS, G C      PARKER,KATLYN  8292   UNCOSIGNED 04/08/22  29141483      MH TELEPHONE CO               VACHAPARAMBIL  "]
[null,null,"GETTYS, G C      NAKAY,CARLOS N 1971   UNCOSIGNED 04/12/22  29157029      MH PSYCHIATRY O               KHEHRA,LOVELE  "]
[null,null,"GETTYS, G C      TAYLOR,DAYCHAN 4115   UNCOSIGNED 04/12/22  29157591      MH TELEPHONE CO               KHEHRA,LOVELE  "]
[null,null,"GETTYS, G C      DIAZ GODINEAUX 8380   UNCOSIGNED 04/12/22  29157810      MH PSYCHIATRY O               KHEHRA,LOVELE  "]
[null,null,"GETTYS, G C      SHARRARD,CORY  2790   UNCOSIGNED 04/12/22  29158236      MH PSYCHIATRY O               KHEHRA,LOVELE  "]
[null,null,"GETTYS, G C      HODO,MARVIN LE 6762   UNCOSIGNED 04/12/22  29158663      MH PSYCHIATRY O               KHEHRA,LOVELE  "]
[null,null,"GETTYS, G C      DIAZ GODINEAUX 8380   UNCOSIGNED 04/12/22  29159533      Addendum                      KHEHRA,LOVELE  29157810"]
[null,null,"GETTYS, G C      GARNER,DEBORAH 2637   UNCOSIGNED 04/12/22  29161445      NO SHOW                       KHEHRA,LOVELE  "]
[null,null,"GETTYS, G C      CLAYTON,JAIME  8873   UNCOSIGNED 04/15/22  29177902      MH PSYCHIATRY O               VACHAPARAMBIL  "]
[null,null,"GETTYS, G C      PRATT,DAVID ED 2023   UNCOSIGNED 04/15/22  29178180      VVC TELEHEALTH                VACHAPARAMBIL  "]
[null,null,"GETTYS, G C      KOESTER,JONATH 9993   UNCOSIGNED 04/15/22  29178419      MH PSYCHIATRY O               VACHAPARAMBIL  "]
[null,null,"GETTYS, G C      PURCELL,HELENE 8910   UNCOSIGNED 04/15/22  29178737      VVC TELEHEALTH                VACHAPARAMBIL  "]
[null,null,"GETTYS, G C      RODRIGUEZ,JULI 9146   UNCOSIGNED 04/15/22  29179019      Addendum                      VACHAPARAMBIL  29167145"]
[null,null,"GETTYS, G C      MCALEESE,PATRI 2535   UNCOSIGNED 04/15/22  29179192      MH PSYCHIATRY O               VACHAPARAMBIL  "]
[null,null,"GETTYS, G C      MCALEESE,PATRI 2535   UNCOSIGNED 04/15/22  29179235      STATE PRESCRIPT               VACHAPARAMBIL  "]
[null,null,"GETTYS, G C      SCHMIT,PAUL CH 1161   UNCOSIGNED 04/15/22  29180726      VVC TELEHEALTH                VACHAPARAMBIL  "]
[null,null,"GETTYS, G C      BYRNE,AMY LYNN 5131   UNSIGNED   04/15/22  29180826      MH PSYCHIATRY O                              "]
[null,null,"JOHNSON GRIMMER, D LBROWN,TIMOTHY 0604 UNCOSIGNED 04/15/22  29180651      BRIDGE TELEPHON               KELLEY,MCKENZ  "]
[null,null,"JOHNSON GRIMMER, D LSCHMITT,JOSEPH7211 UNCOSIGNED 04/15/22  29182084      BRIDGE CASE MAN               KELLEY,MCKENZ  "]
[null,null,"JOHNSON GRIMMER, D LZOELLER,JOSHUA0968 UNCOSIGNED 04/18/22  29192976      BRIDGE GROUP TH               KELLEY,MCKENZ  "]
[null,null,"JOHNSON GRIMMER, D LWIGHTMAN,MARK 2074 UNCOSIGNED 04/18/22  29193526      BRIDGE GROUP TH               KELLEY,MCKENZ  "]
[null,null,"JOHNSON GRIMMER, D LCHANEY,JORDAN 0086 UNCOSIGNED 04/18/22  29193568      BRIDGE GROUP TH               KELLEY,MCKENZ  "]
[null,null,"JOHNSON GRIMMER, D LRUSSELL,JEFFER9036 UNCOSIGNED 04/18/22  29193613      BRIDGE GROUP TH               KELLEY,MCKENZ  "]
[null,null,"JOHNSON GRIMMER, D LJENNINGS,ARGEM0165 UNCOSIGNED 04/18/22  29193652      VVC TELEHEALTH                KELLEY,MCKENZ  "]
[null,null,"JOHNSON GRIMMER, D LMOSER,PATRICK 0337 UNCOSIGNED 04/18/22  29193667      VVC TELEHEALTH                KELLEY,MCKENZ  "]
[null,null,"JOHNSON GRIMMER, D LNDAU,REUBEN KI2314 UNCOSIGNED 04/18/22  29193692      VVC TELEHEALTH                KELLEY,MCKENZ  "]
[null,null,"JOHNSON GRIMMER, D LQUALLS,ANTHONY8896 UNCOSIGNED 04/18/22  29193713      VVC TELEHEALTH                KELLEY,MCKENZ  "]
[null,null,"JOHNSON GRIMMER, D LKUHN,ROBERT WI1600 UNCOSIGNED 04/18/22  29193728      VVC TELEHEALTH                KELLEY,MCKENZ  "]
[null,null,"JOHNSON GRIMMER, D LWANCZYK,GERARD1411 UNCOSIGNED 04/18/22  29193741      VVC TELEHEALTH                KELLEY,MCKENZ  "]
[null,null,"JOHNSON GRIMMER, D LQUARNSTROM,GAR0528 UNCOSIGNED 04/18/22  29193755      VVC TELEHEALTH                KELLEY,MCKENZ  "]
[null,null,"JOHNSON GRIMMER, D LQUACKENBUSH,ED1827 UNCOSIGNED 04/18/22  29193777      VVC TELEHEALTH                KELLEY,MCKENZ  "]
[null,null,"JOHNSON GRIMMER, D LYEARND,JAMES A8406 UNCOSIGNED 04/18/22  29193796      VVC TELEHEALTH                KELLEY,MCKENZ  "]
[null,null,"JOHNSON GRIMMER, D LSKELTON,CHARLE1377 UNCOSIGNED 04/18/22  29193832      VVC TELEHEALTH                KELLEY,MCKENZ  "]
[null,null,"JOHNSON GRIMMER, D LCIRRINCIONE,SA3846 UNCOSIGNED 04/18/22  29193897      Addendum                      KELLEY,MCKENZ  29135742"]
[null,null,"JOHNSON GRIMMER, D LCOPPOTELLI,AMA6366 UNCOSIGNED 04/18/22  29193908      Addendum                      KELLEY,MCKENZ  29175433"]
[null,null,"KOTLYAR, B       AUTY,IAN JAMES 0898   UNCOSIGNED 04/18/22  29192497      MH PSYCHIATRY O               STEFANCIK,RYA  "]
[null,null,"KOTLYAR, B       DUNCAN,PARIS T 0025   UNCOSIGNED 04/18/22  29193412      MH PSYCHIATRY O               STEFANCIK,RYA  "]
[null,null,"MEDVEDEV, A      GRIFFITHS,BLAK 0035   UNSIGNED   04/18/22  29189258      MH /PSYCHIATRY/                              "]
[null,null,"MEDVEDEV, A      ROBINSON,VICTO 8839   UNSIGNED   04/18/22  29189911      MH /PSYCHIATRY/                              "]
[null,null,"MUJTABA, G       NESLER,RONALD  5272   UNSIGNED   10/19/21  28236151      LIFE-SUSTAINING                              "]
[null,null,"MUJTABA, G       NESLER,RONALD  5272   UNSIGNED   10/19/21  28236239      LIFE-SUSTAINING                              "]
[null,null,"MUJTABA, G       WEINBERG,IRWIN 5271   UNSIGNED   01/05/22  28646656      ED ATTENDING NO  BEACH,CHRISTO               "]
[null,null,"NAIDICZ, K L     VERA,JORGE MAR 7173   UNCOSIGNED 02/14/22  28851896      Addendum                      NAGARAKANTI,N  28842698"]
[null,null,"YANG, J K        HODER,JAMES RI 5703   UNSIGNED   08/03/21  27823747      ENDOCRINE GENER  MOID,ALVIA                  "]
[]
[]
[null,null,"          SERVICE: MENTAL HEALTH SERVICE"]
[null,null,"ABEYSEKERA, D I  HERNANDEZ,MAXI 9578   UNCOSIGNED 04/18/22  29192002      MH HISTORY & PH               YANG,JOHN K    "]
[null,null,"ABEYSEKERA, D I  MELTON,SANDEJA 4132   UNCOSIGNED 04/18/22  29192551      NO SHOW                       SINGH,JASLEEN  "]
[null,null,"ABEYSEKERA, D I  MILLER,ANDREW  8943   UNCOSIGNED 04/18/22  29192784      Addendum                      SINGH,JASLEEN  29161925"]
[null,null,"ABEYSEKERA, D I  MINTER,ALBERT  1377   UNCOSIGNED 04/18/22  29193018      NO SHOW                       SINGH,JASLEEN  "]
[null,null,"ABEYSEKERA, D I  PARKER,LORIANN 6531   UNCOSIGNED 04/18/22  29193085      MH /PSYCHIATRY                SINGH,JASLEEN  "]
[null,null,"ABEYSEKERA, D I  RASCH,JACOB AL 7826   UNCOSIGNED 04/18/22  29193541      STATE PRESCRIPT               SINGH,JASLEEN  "]
[null,null,"ABEYSEKERA, D I  RASCH,JACOB AL 7826   UNCOSIGNED 04/18/22  29193587      Addendum                      SINGH,JASLEEN  29193472"]
[null,null,"ABEYSEKERA, D I  AUTY,IAN JAMES 0898   UNCOSIGNED 04/18/22  29193950      MH HISTORY & PH               YANG,JOHN K    "]
[null,null,"AMROZOWICZ, M A  BATES,PIERCE J 8503   UNSIGNED   05/02/21  27317292      NURSING ASSESSM                              "]
[null,null,"AMROZOWICZ, M A  BOOGERTMAN,FRE 5752   UNSIGNED   10/26/21  28271597      SUICIDE RISK AS                              "]
[null,null,"AMROZOWICZ, M A  FOSTER,ANDRE   5540   UNSIGNED   01/03/22  28632789      Addendum                                     28632775"]
[null,null,"AMROZOWICZ, M A  PAULSON,NICHOL 4079   UNSIGNED   02/02/22  28790416      NURSING NOTE                                 "]
[null,null,"AMROZOWICZ, M A  LESSENBERRY,ME 1313   UNSIGNED   02/25/22  28912385      NURSING DISCHAR                              "]
[null,null,"AMROZOWICZ, M A  CAUSEY,GARY    9000   UNSIGNED   03/18/22  29026584      NURSING DISCHAR                              "]
[null,null,"AMROZOWICZ, M A  SANDOVAL CLAMP 6218   UNSIGNED   04/17/22  29186552      NURSING ASSESSM                              "]
[null,null,"BENSON, S        MILTON,MARK DU 6345   UNSIGNED   04/14/22  29175578      SOCIAL WORK OUT                              "]
[null,null,"BERTSOS, M L     HURWITZ,DAVID  3060   UNSIGNED   04/18/22  29192058      MH CAREER GUIDA                              "]
[null,null,"BEUMEL, A E      FITZSIMMONS,TO 7076   UNSIGNED   04/15/22  29179819      MH /PSYCHOLOGY/                              "]
[null,null,"CHESNEY, S A     ROTHERMEL,JEFF 7884   UNCOSIGNED 04/15/22  29182355      MH TELEPHONE CO               ADAMS,PAPA N   "]
[null,null,"DE SANTIAGO, A L PELLETIER,JONA 7126   UNSIGNED   04/18/22  29192261      MH /SOCIAL WORK                              "]
[null,null,"DE SANTIAGO, A L JACKSON,AARON  9363   UNSIGNED   04/18/22  29193281      MH /SOCIAL WORK                              "]
[null,null,"FASSETT, A M     TYE,ANDREW MAS 8057   UNSIGNED   03/23/22  29051744      PROVIDER DISCHA  MORGAN,PAUL                 "]
[null,null,"HARRIS, D M      STACKHOUSE,AJO 5013   UNSIGNED   04/14/22  29175699      MENTAL HEALTH C                              "]
[null,null,"HARRIS, D M      SPOHN,DAVID BR 2664   UNSIGNED   04/15/22  29181073      MH /SOCIAL WORK                              "]
[null,null,"HARRIS, D M      WALKER,WESLEY  0226   UNSIGNED   04/18/22  29190276      VVC TELEHEALTH                               "]
[null,null,"HARRIS, D M      SANTANA,MAGALY 7016   UNSIGNED   04/18/22  29192659      MH MARITAL THER                              "]
[null,null,"HEMADY, A A      ROSADO ROSADO, 9465   UNSIGNED   03/18/22  29028684      ADL Checklist                                "]
[null,null,"ISMAIL, M A      SCHWISTER,GARY 1626   UNSIGNED   11/09/21  28351261      LIFE-SUSTAINING                              "]
[null,null,"ISMAIL, M A      NACUA,ROMEO VI 4486   UNSIGNED   11/09/21  28351583      LIFE-SUSTAINING                              "]
[null,null,"ISMAIL, M A      MCCORLEY,GEORG 1180   UNSIGNED   11/12/21  28366803      LIFE-SUSTAINING                              "]
[null,null,"ISMAIL, M A      HOLMES,JOHN PA 8608   UNSIGNED   11/15/21  28378288      LIFE-SUSTAINING                              "]
[null,null,"JOHNSON, N       MAZZUCA,ANTHON 8884   UNSIGNED   11/20/21  28411041      CLC ADL CHECKLI                              "]
[null,null,"KELLEY, M M      COPPOTELLI,AMA 6366   UNSIGNED   04/18/22  29193980      BRIDGE TELEPHON  JOHNSON GRIMM               "]
[null,null,"KHAN, A          COX,DONNIE RAY 4453   UNSIGNED   02/16/22  28868182      HISTORY AND PHY  DANIELS,JONAT               "]
[null,null,"KING, J C        ZZTEST,BABY    1127   UNSIGNED   04/18/22  29190823      MENTAL HEALTH D                              "]
[null,null,"LALEHZARIAN, A S GORDON,JAMES L 8579   UNSIGNED   03/17/22  29023185      HISTORY AND PHY  ABUTALIB,JABE               "]
[null,null,"LALEHZARIAN, A S DALEY,GREGORY  2220   UNSIGNED   03/20/22  29033228      PRIMARY CARE (P  DANIELS,JONAT               "]
[null,null,"LEHMANN, J K     LEZINE,JOHNNIE 1128   UNSIGNED   04/18/22  29189237      Addendum                                     29165488"]
[null,null,"LEHMANN, J K     LEEDS,DAVID R  6822   UNSIGNED   04/18/22  29189307      MH PC MHI FUNCT                              "]
[null,null,"LEHMANN, J K     MORRIS,JOHN GR 5280   UNSIGNED   04/18/22  29189484      Addendum                                     29179633"]
[null,null,"LEHMANN, J K     CLAYBORNE,DANT 9010   UNSIGNED   04/18/22  29190873      MH PC MHI GENER                              "]
[null,null,"LEHMANN, J K     LOTT,SCOTT EUG 6194   UNSIGNED   04/18/22  29193120      MH PC MHI GENER                              "]
[null,null,"LEHMANN, J K     WEISBRUCH,SCOT 2109   UNCOSIGNED 04/18/22  29193683      MH PC MHI GENER               BAHSALI,JANIN  "]
[null,null,"LEHMANN, J K     RODNEY,KIRK AN 7598   UNCOSIGNED 04/18/22  29193761      MH PC MHI GENER               BAHSALI,JANIN  "]
[null,null,"LEHMANN, J K     MILLER,WALTER  7773   UNCOSIGNED 04/18/22  29193873      MH /INDIVIDUAL                BAHSALI,JANIN  "]
[null,null,"LUCKE, C D       NANCE,BRIANNA  5626   UNSIGNED   03/23/22  29051705      GEN PSYCHIATRY                               "]
[null,null,"NADELLA, D       CASTANEDA,ALBE 0403   UNCOSIGNED 04/18/22  29193671      MH PSYCHIATRY C               STEFANCIK,RYA  "]
[null,null,"NAGARAKANTI, N   MASON,LEE EDWA 8357   UNCOSIGNED 04/15/22  29181870      MH /PSYCHIATRY                YANG,JOHN K    "]
[null,null,"NEWMAN, M B      ZZTEST,BABY    1982   UNSIGNED   09/03/21  27993672      MH /PSYCHIATRY                               "]
[null,null,"PRINCE, L A      HANLEY,DAVID E 8689   UNSIGNED   04/18/22  29192796      HCHV INDIVIDUAL                              "]
[null,null,"REYNA, R M       WITHERSPOON,MI 4998   UNSIGNED   04/13/22  29165794      MH TELEPHONE CO                              "]
[null,null,"WILLIAMS, J A    AKHNANA,JAMES  1333   UNCOSIGNED 04/10/22  29147933      Addendum                      WALCH,FRANK S  29135034"]
[null,null,"WILLIAMS, J A    MURPHY,IBN COR 1461   UNCOSIGNED 04/13/22  29169249      MH PSYCHIATRY O               VVEDENSKIY,YE  "]
[null,null,"WILLIAMS, J A    KATALINICK,KIR 6460   UNCOSIGNED 04/13/22  29169694      MH PSYCHIATRY O               VVEDENSKIY,YE  "]
[null,null,"WILLIAMS, J A    SMITH,JEANETTE 3649   UNCOSIGNED 04/16/22  29184806      Addendum                      WALCH,FRANK S  29027351"]
[null,null,"WITTLIN, N E     HICKS,EDDIE    4215   UNCOSIGNED 04/15/22  29178836      PEER SUPPORT NO               YOUNG,JESSICA  "]
[null,null,"WITTLIN, N E     ARMSTRONG,JULI 0355   UNCOSIGNED 04/15/22  29181364      PEER SUPPORT GR               YOUNG,JESSICA  "]
[null,null,"WITTLIN, N E     TOLBERT,KENNET 4154   UNCOSIGNED 04/15/22  29181398      PEER SUPPORT GR               YOUNG,JESSICA  "]
[null,null,"WITTLIN, N E     NELSON,CHARLES 6447   UNCOSIGNED 04/15/22  29181420      PEER SUPPORT GR               YOUNG,JESSICA  "]
[null,null,"WITTLIN, N E     ZINGHER,JOSEPH 5706   UNCOSIGNED 04/15/22  29181445      PEER SUPPORT GR               YOUNG,JESSICA  "]
[]
[]
[null,null,"          SERVICE: MENTAL HEALTH TEAM A"]
[null,null,"HUNG, P          BROWN,JUSTIN R 2473   UNCOSIGNED 04/15/22  29182076      MH PSYCHIATRY O               SAHAGIAN,NICH  "]
[null,null,"HUNG, P          KROHR,LAWRENCE 7821   UNCOSIGNED 04/18/22  29194474      STATE PRESCRIPT               RAJU,NIKHILES  "]
[]
[]
[null,null,"          SERVICE: Medicine Services"]
[null,null,"HAN, S           SMITH,BRANDON  3034   UNSIGNED   01/31/22  28778563      DISCHARGE/TRANS  MEHTA,PRAVEEN               "]
[null,null,"HAN, S           KRAENZLE,FRIED 3250   UNSIGNED   02/03/22  28800286      DISCHARGE/TRANS  PUTHENVEETIL,               "]
[null,null,"HAN, S           BROWN,BRIGITTE 9532   UNSIGNED   02/04/22  28801544      DISCHARGE/TRANS  MORGAN,PAUL                 "]
[]
[]
[null,null,"          SERVICE: NEUROLOGY SERVICE"]
[null,null,"ASIAMAH, P       ZZTEST,SCA ONE 6543   UNSIGNED   04/26/21  27281196      ADMINISTRATIVE                               "]
[null,null,"ASIAMAH, P       ZZTEST,SCA ONE 6543   UNSIGNED   04/26/21  27281607      ADMINISTRATIVE                               "]
[null,null,"ASIAMAH, P       ZZTEST,SCA ONE 6543   UNSIGNED   04/26/21  27282613      ED MEDICATION A                              "]
[null,null,"POWELL, D R      AMMON,RICHARD  8834   UNSIGNED   10/20/21  28241176      ADMINISTRATIVE                               "]
[]
[]
[null,null,"          SERVICE: NURSING SERVICE"]
[null,null,"ADABRA, L        OCONNOR,THOMAS 9026   UNSIGNED   05/20/21  27422615      NURSING NOTE                                 "]
[null,null,"ALBERTO, A       MIRRETTI,JOHN  8228   UNCOSIGNED 11/03/21  28313884      VAAES NURSING F               AUGUSTIN,SAGI  "]
[null,null,"ALBERTO, A       RICE,ARNELL J  4825   UNCOSIGNED 11/20/21  28408641      VAAES NURSING F               AUGUSTIN,SAGI  "]
[null,null,"ALBERTO, A       SANIAT,THOMAS  8205   UNCOSIGNED 01/20/22  28727066      Addendum                      DEJESUS,PHONG  28727047"]
[null,null,"ALBERTO, A       BROWN,TIMOTHY  4597   UNCOSIGNED 01/20/22  28727121      VAAES SKIN INSP               DEJESUS,PHONG  "]
[null,null,"ALBERTO, A       BROWN,TIMOTHY  4597   UNCOSIGNED 01/21/22  28727233      VAAES ACUTE INP               DEJESUS,PHONG  "]
[null,null,"ALBERTO, A       BURIES,MULLEN  8238   UNCOSIGNED 03/08/22  28966925      PATIENT UNIT OR               RUFFIN,LORETT  "]
[null,null,"ALLEN, Y A       FREEMAN,ARTIS  3694   UNSIGNED   06/15/21  27559118      VAAES ACUTE INP                              "]
[null,null,"BELLUCCI, K      YOUNG,JAMES AL 2695   UNSIGNED   04/08/22  29139985      DIABETES EDUCAT                              "]
[null,null,"BELLUCCI, K      WILSON,STEPHEN 4145   UNSIGNED   04/13/22  29167211      DIABETES EDUCAT                              "]
[null,null,"BELLUCCI, K      WARD,GREGORY M 1824   UNSIGNED   04/14/22  29170904      DIABETES EDUCAT                              "]
[null,null,"BELLUCCI, K      BRATU,JOHN MIC 5429   UNSIGNED   04/14/22  29172459      DIABETES EDUCAT                              "]
[null,null,"BROWN-MOORE, L K ZZTEST,BABY    1127   UNSIGNED   04/26/21  27280557      CRITICAL TEST R                              "]
[null,null,"BROWN-MOORE, L K SCHERF,RONALD  2499   UNSIGNED   04/28/21  27299521      VAAES NSG IV IN                              "]
[null,null,"CALAMIONG, K A   MCGOWAN,ERIN A 6914   UNSIGNED   12/21/21  28580652      PATIENT UNIT OR                              "]
[null,null,"CAMPOSANTO, R    WATSON,JOHN M  4938   UNSIGNED   04/16/22  29185619      VAAES ACUTE INP                              "]
[null,null,"CANALES, H D     MURPHY,THOMAS  3889   UNSIGNED   01/26/22  28751053      NURSING ASSESSM                              "]
[null,null,"CASTREJON, I     NEWBERN,REGINA 8108   UNSIGNED   04/03/22  29107470      VAAES NURSING F                              "]
[null,null,"CHERIAN, S S     LEWIS,LEROY S  3233   UNSIGNED   02/09/22  28828858      VAAES ACUTE INP                              "]
[null,null,"CRUZ, E H        RUBEN,RICHARD  9540   UNSIGNED   03/22/22  29041507      CLC RESTORATIVE                              "]
[null,null,"CRUZ, E H        ROBINSON,WYLIE 6314   UNSIGNED   03/26/22  29066376      CLC RESTORATIVE                              "]
[null,null,"DEBACKER, E J    MCGINNIS,JAMES 5708   UNSIGNED   02/04/22  28805172      EXTENDED CARE P                              "]
[null,null,"DEBACKER, E J    SMITH,JAMES AL 8030   UNSIGNED   03/14/22  29001125      EXTENDED CARE P                              "]
[null,null,"DEGUZMAN, A      ZZTEST,BABY    1127   UNCOSIGNED 02/11/21  26880360      CORPSMAN/NURSE                OPPERMAN,KRYS  "]
[null,null,"DELA CRUZ, R     HANSEN,PAUL KE 6877   UNCOSIGNED 12/22/21  28584840      VAAES ACUTE INP               DINGKHAN,EMRY  "]
[null,null,"DELA CRUZ, R     HANSEN,PAUL KE 6877   UNCOSIGNED 12/22/21  28584896      VAAES SKIN INSP               DINGKHAN,EMRY  "]
[null,null,"DELA CRUZ, R     PARKER,EDGAR E 9046   UNCOSIGNED 12/22/21  28585269      VAAES ACUTE INP               DINGKHAN,EMRY  "]
[null,null,"DELA CRUZ, R     PARKER,EDGAR E 9046   UNCOSIGNED 12/22/21  28585345      VAAES SKIN INSP               DINGKHAN,EMRY  "]
[null,null,"DELEON, J        RODRIGUEZ,RICH 1598   UNCOSIGNED 11/04/21  28320003      VAAES NURSING F               RUFFIN,LORETT  "]
[null,null,"DELEON, J        FIGUEROA,JAY F 2084   UNSIGNED   12/10/21  28516043      VAAES NURSING F                              "]
[null,null,"DELEON, J        FIGUEROA,JAY F 2084   UNSIGNED   12/10/21  28516050      VAAES NURSING F                              "]
[null,null,"DELEON, J        FIGUEROA,JAY F 2084   UNSIGNED   12/10/21  28516059      VAAES NURSING F                              "]
[null,null,"DELEON, J        DAMICO,GUIDO S 2804   UNCOSIGNED 01/21/22  28732695      ICU IMS NURSING               JACOBS,LUKE A  "]
[null,null,"DOTY, M A        TEST,VET       4186   UNSIGNED   01/18/22  28709097      LIFE-SUSTAINING                              "]
[null,null,"DZIDO, M N       ROBINSON,KEITH 9782   UNSIGNED   02/08/22  28824665      VAAES ACUTE INP                              "]
[null,null,"FOLEY, K A       VANITER,DEAN L 5287   UNSIGNED   04/18/22  29191841      SOCIAL WORK DIS                              "]
[null,null,"FOX, T L         SLOSS,WILL RIC 1941   UNSIGNED   06/14/21  27550472      NURSING NOTE                                 "]
[null,null,"FOX, T L         HARRINGTON,THO 7149   UNSIGNED   06/21/21  27589287      NURSING NOTE                                 "]
[null,null,"GEORGE, R P      BELL,PATRICE R 7145   UNSIGNED   05/16/21  27395915      VAAES NSG COVID                              "]
[null,null,"GLIDDEN, H M     FRANK,GEORGE   3633   UNCOSIGNED 01/17/22  28706518      CORPSMAN/NURSE                JACOBS,LUKE A  "]
[null,null,"GOOLSBY, S L     THOMAS,RUSSELL 0330   UNSIGNED   04/15/22  29180563      SBAR                                         "]
[null,null,"ILAGAN, E        AL-QABBANI,ABD 0688   UNCOSIGNED 12/10/21  28517645      OPHTHALMOLOGY T               SMITH,TREVON   "]
[null,null,"ILAGAN, E        IVANOV,REBECCA 6336   UNSIGNED   02/04/22  28802927      VAAES NSG COVID                              "]
[null,null,"ILAGAN, E        MESROBIAN,ARME 6024   UNSIGNED   03/08/22  28972413      NURSING NOTE                                 "]
[null,null,"JACOBS, L A      JENSEN,MICHAEL 8031   UNSIGNED   03/24/22  29056584      VAAES ACUTE INP  JODLOWSKA,IWO               "]
[null,null,"JACOBS, L A      LEWIS,LEROY S  3233   UNSIGNED   04/08/22  29143127      VAAES ACUTE INP  GINSON,RENJU                "]
[null,null,"JACOBS, L A      OCHOA,PETER LA 2889   UNSIGNED   04/15/22  29180645      SBAR             JUDILLA,LEOEL               "]
[null,null,"JOHNSON, A V     BUNNELL,DUSTIN 2196   UNSIGNED   04/04/22  29115106      VAAES ACUTE INP                              "]
[null,null,"JONES, D L       SLOSS,WILL RIC 1941   UNSIGNED   07/07/21  27681798      CLC RESTORATIVE                              "]
[null,null,"KILLINGSWORTH, M RENSIGN,THOMAS 1611   UNSIGNED   06/02/21  27487649      VAAES NURSING F                              "]
[null,null,"LESTER, S        BELLOSO,MAXIMU 6724   UNSIGNED   11/07/21  28335633       ANGER MANAGEME                              "]
[null,null,"LESTER, S        BELLOSO,MAXIMU 6724   UNSIGNED   11/07/21  28335690      VAAES NURSING F                              "]
[null,null,"LORGE, C J       NEUBAUER,HARAL 0717   UNSIGNED   06/02/21  27486441      Addendum                                     27484677"]
[null,null,"LUNA, G          MINTER,ALBERT  1377   UNSIGNED   01/02/22  28628888      ED NURSING TRIA                              "]
[null,null,"LUNA, G          SHIVERS,MAURIC 8213   UNSIGNED   01/02/22  28630011      ED NURSING TRIA                              "]
[null,null,"MAHMUD, C        VIGANSKY,GREGG 5694   UNSIGNED   04/18/22  29189191      Addendum                                     29179018"]
[null,null,"MORGAN, M T      HALL,NDIA AJE  6200   UNCOSIGNED 08/12/21  27879086      HISTORY AND PHY               JOSEPH,KENNET  "]
[null,null,"MORGAN, M T      FREDERICKSEN,J 6100   UNCOSIGNED 09/30/21  28132603      DISCHARGE/TRANS               MALIK,TALIA F  "]
[null,null,"MORGAN, M T      KLOEPFER,MARSH 6563   UNCOSIGNED 10/13/21  28199535      PRIMARY CARE (P               PATEL,NEHAL R  "]
[null,null,"MORGAN, M T      HARDY,NORRIS   3614   UNCOSIGNED 10/13/21  28200911      DISCHARGE/TRANS               PATEL,NEHAL R  "]
[null,null,"MORGAN, M T      CLEM,LARRANCE  4668   UNCOSIGNED 10/24/21  28260148      PRIMARY CARE (P               BAVANASI,AAMA  "]
[null,null,"MORGAN, M T      WILLIAMS,LARRY 3783   UNCOSIGNED 11/19/21  28402824      Addendum                      KHAN,DANIEL    28401999"]
[null,null,"MORGAN, M T      MILLIGAN,KEYON 7058   UNCOSIGNED 12/15/21  28545222      ACUTE INPATIENT               MANGAT,HITESH  "]
[null,null,"MORGAN, M T      CARDIN,PAUL EM 4033   UNCOSIGNED 01/08/22  28663726      ACUTE INPATIENT               CHEN,CHIJEN L  "]
[null,null,"MORGAN, M T      JOHNSON,JAMES  1729   UNCOSIGNED 02/19/22  28882564      Addendum                      NAQVI,SYED M   28882541"]
[null,null,"MORGAN, M T      MURRAY,PHILLIP 1404   UNCOSIGNED 03/16/22  29014231      PRIMARY CARE V                PATEL,NEHAL R  "]
[null,null,"MORGAN, M T      OAKES,BRADLEY  2672   UNCOSIGNED 03/23/22  29050482      PRIMARY CARE (P               KHAN,ANUM      "]
[null,null,"MORGAN, M T      DUNKLE,KEVIN V 5060   UNCOSIGNED 03/25/22  29064507      HOSPITALISTS PE               PATEL,NEHAL R  "]
[null,null,"MORGAN, M T      WASHBURN,TERRI 9995   UNCOSIGNED 04/08/22  29143511      PROVIDER DISCHA               BIGGS,MEGAN D  "]
[null,null,"MORGAN, M T      SPADARO,JOHN L 4075   UNCOSIGNED 04/12/22  29163053      LIFE-SUSTAINING               CHEN,CHIJEN L  "]
[null,null,"MORIARTY, B M    GORDON,JAMES L 8579   UNCOSIGNED 01/01/21  26682020      Addendum                      DEJESUS,PHONG  26681928"]
[null,null,"MORIARTY, B M    KNEELAND,SHELL 6008   UNCOSIGNED 07/02/21  27658498      Addendum                      DEJESUS,PHONG  27657613"]
[null,null,"MORIARTY, B M    THOMAS,PATRICI 3181   UNCOSIGNED 09/10/21  28031416      Addendum                      DEJESUS,PHONG  28030794"]
[null,null,"MORIARTY, B M    MAZZUCA,ANTHON 8884   UNCOSIGNED 12/13/21  28533756      VAAES NURSING F               CZAJKOWSKA,AL  "]
[null,null,"OFOSUAGYEI, E    TORRES LOPEZ,E 2324   UNSIGNED   08/07/21  27849006      VAAES ACUTE INP                              "]
[null,null,"OFOSUAGYEI, E    TORRES LOPEZ,E 2324   UNSIGNED   08/07/21  27849215      VAAES SKIN INSP                              "]
[null,null,"OFOSUAGYEI, E    MORSE,MICHAEL  2855   UNSIGNED   08/12/21  27878642      VAAES NURSING F                              "]
[null,null,"OGUNMODEDE, E    MCFADDEN,HAROL 3935   UNSIGNED   06/06/21  27503814      NURSING ASSESSM                              "]
[null,null,"OGUNMODEDE, E    HALLMAN,MICHAE 4090   UNSIGNED   06/06/21  27503817      NURSING ASSESSM                              "]
[null,null,"PEREZ, R         MAZON,JAMAICA  9651   UNCOSIGNED 01/21/21  26771647      VAAES ACUTE INP               PEREZ,BRAULIO  "]
[null,null,"PEREZ, R         COLON,MARIO EN 7466   UNSIGNED   01/21/21  26771754      VAAES ACUTE INP                              "]
[null,null,"PONO, L          FERGUSON,DENNI 6868   UNSIGNED   03/24/21  27096655      NURSING NOTE                                 "]
[null,null,"PONO, L          BRISKEY,LILLIA 0235   UNSIGNED   04/09/21  27188224      Addendum                                     27187723"]
[null,null,"POTTER, D E      HOLVERSON,CARL 6758   UNSIGNED   08/13/21  27883031      CODE BLUE TEAM                               "]
[null,null,"RAMAS, D B       JONES,GLENN AL 6006   UNCOSIGNED 03/01/21  26969950      PATIENT UNIT OR               CZAJKOWSKA,AL  "]
[null,null,"RAMAS, D B       SANDOVAL,MAYA  2653   UNCOSIGNED 03/10/21  27019655      PATIENT UNIT OR               CZAJKOWSKA,AL  "]
[null,null,"RAMAS, D B       MICELI,PAUL    1286   UNSIGNED   03/10/21  27022191      NURSING NOTE                                 "]
[null,null,"REESE, C         BROWNELL,GREGO 9042   UNSIGNED   06/27/21  27624609      NURSING NOTE                                 "]
[null,null,"ROQUE, R         SCHUTZ,STEPHEN 8685   UNCOSIGNED 08/02/21  27819194      VAAES ACUTE INP               FORD,ALEXIS M  "]
[null,null,"ROQUE, R         THOMPSON,ROGER 6487   UNCOSIGNED 11/27/21  28441957      VAAES NURSING F               CZAJKOWSKA,AL  "]
[null,null,"ROQUE, R         THOMPSON,ROGER 6487   UNCOSIGNED 11/27/21  28442448      VAAES NURSING F               CZAJKOWSKA,AL  "]
[null,null,"ROQUE, R         NUDI,DONALD LE 4386   UNCOSIGNED 12/12/21  28526017      VAAES NURSING F               CZAJKOWSKA,AL  "]
[null,null,"ROQUE, R         MASSALLAY,MAMU 2068   UNCOSIGNED 12/12/21  28526036      VAAES NURSING F               CZAJKOWSKA,AL  "]
[null,null,"ROQUE, R         NUDI,DONALD LE 4386   UNCOSIGNED 12/12/21  28526710      VAAES NURSING F               CZAJKOWSKA,AL  "]
[null,null,"SESE, C Z        COX,LARRY WAYN 7201   UNSIGNED   07/20/21  27752000      NURSING NOTE                                 "]
[null,null,"SLAUGHTER, T A   FERRARA,MICHAE 2026   UNSIGNED   10/27/21  28281253      VAAES NURSING F                              "]
[null,null,"STEPNEY, L A     DEMOS,CHRIS TH 5116   UNSIGNED   10/20/21  28239486      VAAES NURSING F                              "]
[null,null,"STRONG, A        BLUNT,MELVIN L 5546   UNSIGNED   08/17/21  27903332      NURSING NOTE                                 "]
[null,null,"STUCKEY, T K     BARTON,MARK WA 2108   UNSIGNED   03/29/22  29080227      COMMUNITY CARE                               "]
[null,null,"TOLEDO, A G      MARTIN,THOMAS  7252   UNSIGNED   01/11/22  28681200      VAAES NURSING F                              "]
[null,null,"TOLEDO, A G      GLORIOSO,KEITH 6563   UNSIGNED   01/27/22  28763382      VAAES NURSING F                              "]
[null,null,"UDELL, L V       HURTADO,ROSA M 9743   UNSIGNED   05/03/21  27326102      Addendum                                     27325967"]
[null,null,"UDELL, L V       TEST,VET       4186   UNSIGNED   05/06/21  27341524      NURSING RESTRAI                              "]
[null,null,"VANMETER, K      MCCLINTOCK,DEN 1693   UNSIGNED   08/18/21  27910060      VAAES SKIN INSP                              "]
[null,null,"WILLIAMS, M      HUERTA,KIMBERL 4455   UNSIGNED   01/25/21  26787740      ADL Checklist                                "]
[null,null,"WRIGHT, S E      TYSON,GERALD   1157   UNSIGNED   06/04/21  27497189      NURSING NOTE                                 "]
[null,null,"ZEGULLAJ, M      ZZZZ,CCC       7223   UNSIGNED   04/22/21  27261875       ANGER MANAGEME                              "]
[null,null,"ZEGULLAJ, M      LARSEN,RICHARD 4465   UNCOSIGNED 06/07/21  27512261      PATIENT UNIT OR               CZAJKOWSKA,AL  "]
[]
[]
[null,null,"          SERVICE: NUTRITION AND FOOD SERVICE"]
[null,null,"KELLY, E M       WINTON,ROBERT  6416   UNSIGNED   04/18/22  29191351      NUTRITION ASSES                              "]
[null,null,"ZURCHER, A R     GREENE,ANTHONY 7096   UNSIGNED   04/18/22  29193689      NUTRITION CONSU                              "]
[]
[]
[null,null,"          SERVICE: OCC DELIVERY OPS"]
[null,null,"BELL, D A        BROWN,SIOBHAN  8646   UNSIGNED   11/11/21  28360855      DISCHARGE/TRANS                              "]
[null,null,"COMBS, C D       SCHERF,RONALD  2499   UNSIGNED   02/25/22  28911871      COMMUNITY CARE                               "]
[null,null,"FERNANDEZ, E L   KAO,JODIE      0057   UNSIGNED   05/05/21  27334860      VAAES NSG COVID                              "]
[null,null,"GILBERT, D F     BAKER,LINDA MO 5812   UNCOSIGNED 11/05/21  28326888      OCT IMAGING CON               BOYKIN,LETITI  "]
[null,null,"GILBERT, D F     ROBINSON,RICKY 4561   UNCOSIGNED 11/09/21  28347964      OPHTHALMOLOGY F               CUI,RICKY Z    "]
[null,null,"GILBERT, D F     ABBOUD,ALFRED  2816   UNCOSIGNED 11/09/21  28349457      OPHTHALMOLOGY F               CUI,RICKY Z    "]
[null,null,"GILBERT, D F     GALLAGHER,YVON 6380   UNCOSIGNED 11/30/21  28455679      OPHTHALMOLOGY (               CUI,RICKY Z    "]
[null,null,"GILBERT, D F     COLLIER,WILLIA 7145   UNCOSIGNED 12/02/21  28470992      OPHTHALMOLOGY T               SMITH,TREVON   "]
[null,null,"GILBERT, D F     SPADARO,JOHN L 4075   UNCOSIGNED 01/11/22  28675918      OPHTHALMOLOGY F               HEINZE,KEVIN   "]
[null,null,"GILBERT, D F     ESTON,ARTHUR W 8098   UNCOSIGNED 03/08/22  28971347      OPHTHALMOLOGY G               KAUFMAN,AARON  "]
[null,null,"STEINAUER, S A   CALLEN,PATRICK 4699   UNSIGNED   04/08/22  29138704      OPTOMETRY GENER                              "]
[]
[]
[null,null,"          SERVICE: OCCUPATIONAL HEALTH MEDICINE"]
[null,null,"HAZLETT, J       SHANKLIN,WILLI 0978   UNSIGNED   03/30/22  29086045      Addendum         JAISON,SANTHI               29050886"]
[null,null,"JOHNSON, A       BELL,JUANETTE  0348   UNCOSIGNED 04/14/22  29174384      VAAES NSG COVID               CHAVARRIA,AGU  "]
[null,null,"JOHNSON, A       COOGAN,THOMAS  0711   UNCOSIGNED 04/14/22  29174512      VAAES NSG COVID               CHAVARRIA,AGU  "]
[null,null,"JOHNSON, A       HARRIS,STEPHAN 9130   UNCOSIGNED 04/14/22  29174864      VAAES NSG COVID               CHAVARRIA,AGU  "]
[null,null,"JOHNSON, A       BOCKHAUT,BARRY 7868   UNSIGNED   04/18/22  29189945      VAAES NSG COVID                              "]
[null,null,"JOHNSON, A       MILLER,JOHN CH 6407   UNCOSIGNED 04/18/22  29190104      IMMUNIZATION NO               HAZLETT,JACOB  "]
[null,null,"JOHNSON, A       NEVINS,RICHARD 1303   UNSIGNED   04/18/22  29191189      VAAES NSG COVID                              "]
[null,null,"JOHNSON, A       WILLIAMS,CHARL 1343   UNCOSIGNED 04/18/22  29192936      IMMUNIZATION NO               HAZLETT,JACOB  "]
[null,null,"KEHR, D C        ZZTEST,GLOBAL  1478   UNSIGNED   08/09/21  27855187      EMPLOYEE HEALTH  HATCH,SHARON                "]
[]
[]
[null,null,"          SERVICE: OFFICE OF PERFORMANCE IMP"]
[null,null,"THOMAS, R S      ZZTEST,BABY    1127   UNSIGNED   09/02/21  27989778      LIFE-SUSTAINING                              "]
[]
[]
[null,null,"          SERVICE: OPHTHALMOLOGY SECTION"]
[null,null,"GUERREROMONTENEGRO, E AUSTIN,CAMERON0042UNSIGNED  02/02/22  28791119      SCREENING COVID  BORDEAU,LEIA                "]
[null,null,"KALRA, M D       BILUS,ANTHONY  4727   UNCOSIGNED 08/16/21  27892797      OPHTHALMOLOGY T               GUERREROMONTE  "]
[null,null,"KALRA, M D       HANLON,MARK    4315   UNCOSIGNED 08/16/21  27893313      OPHTHALMOLOGY T               GUERREROMONTE  "]
[null,null,"KALRA, M D       VERBRACKEN,PAU 4090   UNCOSIGNED 08/16/21  27893764      OPHTHALMOLOGY T               GUERREROMONTE  "]
[null,null,"KALRA, M D       DONALDSON,ARTH 4607   UNCOSIGNED 08/16/21  27894995      OPHTHALMOLOGY T               GUERREROMONTE  "]
[null,null,"KALRA, M D       MCGUIRE,MICHAE 3996   UNCOSIGNED 08/16/21  27895085      OPHTHALMOLOGY T               GUERREROMONTE  "]
[null,null,"KALRA, M D       PETERSON,JOHN  2106   UNCOSIGNED 08/17/21  27900118      OPHTHALMOLOGY T               GUERREROMONTE  "]
[null,null,"KALRA, M D       LASSITER,DENNI 4650   UNCOSIGNED 08/17/21  27900936      OPHTHALMOLOGY T               GUERREROMONTE  "]
[null,null,"KALRA, M D       SIEGEL,MITCHEL 5824   UNCOSIGNED 08/18/21  27905849      OPHTHALMOLOGY T               GUERREROMONTE  "]
[null,null,"SAUER, G         SMITH,ERIC MIC 9817   UNSIGNED   02/17/22  28873234      OPHTHALMOLOGY T                              "]
[]
[]
[null,null,"          SERVICE: OPTOMETRY SECTION"]
[null,null,"GAMBOA, F T      ZACCARD,RAYMON 0188   UNSIGNED   04/18/22  29192958      OPTOMETRY GENER                              "]
[null,null,"GAMBOA, F T      WATSON,ELZA II 5364   UNSIGNED   04/18/22  29193271      OPTOMETRY GENER                              "]
[null,null,"GOMEZ, B J       MOORE,TRACY MI 8431   UNSIGNED   01/13/22  28688655      OPTOMETRY GENER  RICHER,STUART               "]
[null,null,"KIM, S           NELLETT,WILLIA 9839   UNCOSIGNED 04/18/22  29188860      OPTOMETRY GENER               SKORSETH,CLAI  "]
[null,null,"KIM, S           ESSEX,JOY DEVO 8937   UNCOSIGNED 04/18/22  29188868      OPTOMETRY GENER               SKORSETH,CLAI  "]
[null,null,"KIM, S           SKIBA,NICHOLAS 0049   UNCOSIGNED 04/18/22  29188872      OPTOMETRY GENER               SKORSETH,CLAI  "]
[null,null,"KIM, S           LACINA,WALTER  7733   UNCOSIGNED 04/18/22  29188890      OPTOMETRY GENER               SKORSETH,CLAI  "]
[null,null,"KIM, S           METZGER,MARVIN 2030   UNCOSIGNED 04/18/22  29188891      OPTOMETRY GENER               SKORSETH,CLAI  "]
[null,null,"KIM, S           HOLLINS,MARQUI 9545   UNCOSIGNED 04/18/22  29188912      OPTOMETRY GENER               SKORSETH,CLAI  "]
[null,null,"KIM, S           CAUDLE,WILLIAM 6707   UNCOSIGNED 04/18/22  29188918      OPTOMETRY GENER               SKORSETH,CLAI  "]
[null,null,"KIM, S           LAUS,ROLANDO L 9068   UNCOSIGNED 04/18/22  29189881      OPTOMETRY GENER               SKORSETH,CLAI  "]
[null,null,"KIM, S           HEDIEN,LAURA E 6791   UNCOSIGNED 04/18/22  29191377      OPTOMETRY GENER               SKORSETH,CLAI  "]
[null,null,"KIM, S           MINTER,ALBERT  1377   UNCOSIGNED 04/18/22  29191387      OPTOMETRY GENER               SKORSETH,CLAI  "]
[null,null,"KIM, S           CASTIGLIONI,WI 3565   UNCOSIGNED 04/18/22  29192130      OPTOMETRY GENER               SKORSETH,CLAI  "]
[null,null,"KIM, S           GRAN,NOEL JOSE 0407   UNCOSIGNED 04/18/22  29192992      OPTOMETRY GENER               SKORSETH,CLAI  "]
[null,null,"KIM, S           GRAN,NOEL JOSE 0407   UNCOSIGNED 04/18/22  29193775      OCT IMAGING CON               SKORSETH,CLAI  "]
[null,null,"KIM, S           CASTIGLIONI,WI 3565   UNCOSIGNED 04/18/22  29193924      OCT IMAGING CON               SKORSETH,CLAI  "]
[null,null,"KIM, S           CASTIGLIONI,WI 3565   UNCOSIGNED 04/18/22  29193935      EYE CLINIC PHOT               SKORSETH,CLAI  "]
[null,null,"KIM, S           MINTER,ALBERT  1377   UNCOSIGNED 04/18/22  29193999      EYE CLINIC PHOT               SKORSETH,CLAI  "]
[null,null,"KIM, S           HEDIEN,LAURA E 6791   UNCOSIGNED 04/18/22  29194076      EYE CLINIC PHOT               SKORSETH,CLAI  "]
[null,null,"KIM, S           CAUDLE,WILLIAM 6707   UNCOSIGNED 04/18/22  29194142      EYE CLINIC PHOT               SKORSETH,CLAI  "]
[null,null,"KIM, S           HOLLINS,MARQUI 9545   UNCOSIGNED 04/18/22  29194165      EYE CLINIC PHOT               SKORSETH,CLAI  "]
[null,null,"KIM, S           METZGER,MARVIN 2030   UNCOSIGNED 04/18/22  29194202      EYE CLINIC PHOT               SKORSETH,CLAI  "]
[null,null,"KIM, S           LACINA,WALTER  7733   UNCOSIGNED 04/18/22  29194251      EYE CLINIC PHOT               SKORSETH,CLAI  "]
[null,null,"KIM, S           LACINA,WALTER  7733   UNCOSIGNED 04/18/22  29194254      OCT IMAGING CON               SKORSETH,CLAI  "]
[null,null,"KIM, S           SKIBA,NICHOLAS 0049   UNCOSIGNED 04/18/22  29194279      EYE CLINIC PHOT               SKORSETH,CLAI  "]
[null,null,"KIM, S           SKIBA,NICHOLAS 0049   UNCOSIGNED 04/18/22  29194281      OCT IMAGING CON               SKORSETH,CLAI  "]
[null,null,"KIM, S           YAMASHITA,TOMM 2342   UNCOSIGNED 04/18/22  29194430      OCT IMAGING CON               STUBBS,AIDAN   "]
[null,null,"SKORSETH, C E    VILLWOCK,JIM J 5625   UNSIGNED   04/18/22  29190217      OPTOMETRY GENER  KIM,SHELLY                  "]
[null,null,"STUBBS, A C      SLAGLE,JASON C 9514   UNSIGNED   04/18/22  29189486      OPHTHALMOLOGY O  ULANSKI,LAWRE               "]
[null,null,"STUBBS, A C      SIMMONS,RICHAR 4073   UNSIGNED   04/18/22  29190633      OPHTHALMOLOGY F  ULANSKI,LAWRE               "]
[null,null,"STUBBS, A C      HARKNESS,WENDY 5091   UNSIGNED   04/18/22  29191145      OPHTHALMOLOGY F  ULANSKI,LAWRE               "]
[null,null,"STUBBS, A C      PETSKA,CHARLES 5534   UNSIGNED   04/18/22  29191570      OPHTHALMOLOGY F  ULANSKI,LAWRE               "]
[null,null,"STUBBS, A C      WON,SANGYOON   3260   UNSIGNED   04/18/22  29191747      OPHTHALMOLOGY F  ULANSKI,LAWRE               "]
[null,null,"STUBBS, A C      SIEGEL,MITCHEL 5824   UNSIGNED   04/18/22  29192024      OPHTHALMOLOGY F  ULANSKI,LAWRE               "]
[]
[]
[null,null,"          SERVICE: ORTHOPEDIC SECTION"]
[null,null,"CRUMP, E K       PLIML,JAMES AN 4956   UNSIGNED   04/14/22  29173097      HISTORY & PHYSI                              "]
[null,null,"FOREMAN, S K     PAYNE,EDWARD L 0962   UNSIGNED   08/18/21  27908687      AMBULATORY SURG  NIXON,DEBORAH               "]
[]
[]
[null,null,"          SERVICE: OUTPATIENT/CONSULTATION"]
[null,null,"BARSELLOTTI, M D VASSOS,JOHN FR 7651   UNSIGNED   04/18/22  29188775      VVC TELEHEALTH                               "]
[]
[]
[null,null,"          SERVICE: PATIENT ADMINISTRATION SERVICE"]
[null,null,"ALEXANDER, K     NEADE,ANTHONY  9406   UNSIGNED   05/21/21  27424572      HISTORICAL MEDI                              "]
[null,null,"ALEXANDER, K     WAGNER,JONAH A 2625   UNSIGNED   05/21/21  27427359      HISTORICAL MEDI                              "]
[null,null,"ALEXANDER, K     WELLBERG,DEBRA 4706   UNSIGNED   06/10/21  27527242      HISTORICAL MEDI                              "]
[null,null,"BARBER, C R      KULIK,VINCENT  5117   UNSIGNED   03/16/22  29012580      OUTSIDE MEDICAL                              "]
[null,null,"BINGHAM, E A     BUBB,MICHAEL J 4774   UNSIGNED   01/27/22  28760516      ADMINISTRATIVE                               "]
[null,null,"BLAKE, D K       HAYNES,WILDA P 9404   UNSIGNED   03/21/22  29038766      ADMINISTRATIVE                               "]
[null,null,"BLAKE, D K       POTOPSINGH,LIN 2213   UNSIGNED   03/23/22  29048626      ADMINISTRATIVE                               "]
[null,null,"BLAKE, D K       HOOD,MAUREEN L 3537   UNSIGNED   03/28/22  29074956      ADMINISTRATIVE                               "]
[null,null,"ENOCH, E C       KIRK,JEROME    1000   UNSIGNED   02/10/22  28836367      Addendum                                     28497266"]
[null,null,"ENOCH, E C       KIRK,JEROME    1000   UNSIGNED   02/10/22  28836607      Addendum                                     28497266"]
[null,null,"ENOCH, E C       KIRK,JEROME    1000   UNSIGNED   02/10/22  28836681      Addendum                                     28497266"]
[null,null,"FLORES, T        ALLEN,NIA LORE 0856   UNSIGNED   09/16/21  28060021      SCANNED INPATIE                              "]
[null,null,"GATES, L M       TACKES,PAUL FR 5653   UNSIGNED   10/05/21  28157680      OUTSIDE MEDICAL                              "]
[null,null,"GATES, L M       SMITH,AMBER AL 1448   UNSIGNED   03/29/22  29082402      OUTSIDE MEDICAL                              "]
[null,null,"GURLEY, C M      MERZ,ROBERT MI 0861   UNSIGNED   01/26/22  28754155      COMMUNITY CARE                               "]
[null,null,"KELLERHALS, A S  FITZHONTS,CATH 9854   UNSIGNED   06/04/21  27498680      PODIATRY NON CL                              "]
[null,null,"KELLERHALS, A S  FAGER,ERIC WIL 5206   UNSIGNED   06/29/21  27638298      PODIATRY NON CL                              "]
[null,null,"KELLERHALS, A S  LEGUIZAMON,PET 8079   UNSIGNED   07/30/21  27806285      PODIATRY NON CL                              "]
[null,null,"KELLERHALS, A S  CHESNEY,TED ST 6578   UNSIGNED   10/07/21  28174506      PODIATRY NON CL                              "]
[null,null,"KELLERHALS, A S  PARRAMOURE,ART 2808   UNSIGNED   12/16/21  28550133      PODIATRY NON CL                              "]
[null,null,"LARA, E          THULIN,ALEXAND 0014   UNSIGNED   03/24/22  29056950      SCANNED INPATIE                              "]
[null,null,"MILLER, C        MATCHEN,CHARLE 2114   UNSIGNED   10/21/21  28248723      COMMUNITY CARE-                              "]
[null,null,"MONARREZ, K      OBRYANT,DENNIS 1961   UNSIGNED   10/20/21  28240332      ADMINISTRATIVE                               "]
[null,null,"MORENO, I        ZZZTEST,ANOTHE 2078   UNSIGNED   06/22/21  27599234      COVID-19 GPM AP                              "]
[null,null,"OLAVERE, A J     LOUGHLIN,ANDRE 4848   UNCOSIGNED 05/05/21  27334830      VAAES ACUTE INP               FORD,ALEXIS M  "]
[null,null,"PARHAM, B N      BRABEC,JOSEPH  8256   UNSIGNED   04/26/21  27283788      HISTORICAL MEDI                              "]
[null,null,"PARHAM, B N      KARNS,FLOYD ED 6234   UNSIGNED   04/26/21  27283994      HISTORICAL MEDI                              "]
[null,null,"PARHAM, B N      BRUMSEY,MELVIN 2624   UNSIGNED   04/30/21  27311259      HISTORICAL MEDI                              "]
[null,null,"PARHAM, B N      CORNELIOUS-DIA 8223   UNSIGNED   01/07/22  28660991      HISTORICAL MEDI                              "]
[null,null,"PITTS, C D       OSBORNE,JACOB  3670   UNSIGNED   07/15/21  27725951      SCANNED INPATIE                              "]
[null,null,"RELIFORD, B M    KURZ,RICHARD A 4479   UNSIGNED   09/14/21  28046815      ADMINISTRATIVE                               "]
[null,null,"SINGLETON, L     LINDQUIST,KEIT 3134   UNSIGNED   06/26/21  27623289      COVID-19 GPM AP                              "]
[null,null,"STARKEY, J M     ZZTEST,VADOD S 7025   UNSIGNED   02/08/21  26858863      PRIMARY CARE (P                              "]
[null,null,"STARKEY, J M     ZZTEST,VADOD S 7025   UNSIGNED   02/08/21  26858966      GET WELL PATIEN                              "]
[null,null,"STARKEY, J M     ZZTEST,VADOD S 7025   UNSIGNED   02/08/21  26859997      ADMINISTRATIVE                               "]
[null,null,"VONZELL, V D     GAMBRELL,IVORY 3831   UNSIGNED   11/24/21  28433225      SCANNED INPATIE                              "]
[null,null,"VONZELL, V D     GALLEGOS,STEVE 8173   UNSIGNED   11/30/21  28459721      SCANNED INPATIE                              "]
[null,null,"VONZELL, V D     ELY,ANTHONY EU 9765   UNSIGNED   12/08/21  28507915      SCANNED INPATIE                              "]
[null,null,"VONZELL, V D     MCGOWAN,ERIN A 6914   UNSIGNED   12/13/21  28534732      SCANNED INPATIE                              "]
[null,null,"VONZELL, V D     CARNEKE-GREEN, 5504   UNSIGNED   12/23/21  28592956      SCANNED INPATIE                              "]
[null,null,"VONZELL, V D     CHARLES,JAMES  9257   UNSIGNED   01/27/22  28762970      SCANNED INPATIE                              "]
[null,null,"WEATHERSPOON, D LBOHN,JERRY WAY 6151   UNSIGNED   02/08/22  28823376      Addendum                                     28817320"]
[null,null,"WILLIAMS, J D    GRAHAM,DARIUS  4219   UNSIGNED   09/08/21  28018206      COVID-19 GPM AP                              "]
[]
[]
[null,null,"          SERVICE: PATIENT ALIGNED CARE TEAM"]
[null,null,"CHAVEZ, L A      KWAIT,MICHAEL  7372   UNSIGNED   04/18/22  29191912      Addendum                                     28765926"]
[null,null,"DANZIGER, J M    VASQUEZ,JOHN M 0946   UNSIGNED   04/18/22  29193178      PRIMARY CARE (P                              "]
[null,null,"IFTIKHAR, S A    WILLIAMS,SCOTT 5402   UNSIGNED   04/18/22  29188940      PRIMARY CARE (P                              "]
[null,null,"IFTIKHAR, S A    THOMAS,LAWRENC 3090   UNSIGNED   04/18/22  29189227      PRIMARY CARE (P                              "]
[null,null,"IFTIKHAR, S A    DEJESUS,ANGEL  3762   UNSIGNED   04/18/22  29189461      PRIMARY CARE (P                              "]
[null,null,"IFTIKHAR, S A    BELL,HAROLD KE 4662   UNSIGNED   04/18/22  29190403      PRIMARY CARE (P                              "]
[null,null,"IFTIKHAR, S A    BROOKS,WILL LI 4519   UNSIGNED   04/18/22  29190955      PRIMARY CARE (P                              "]
[null,null,"IFTIKHAR, S A    BOGDALA,RICHAR 9067   UNSIGNED   04/18/22  29191271      PACT Provider                                "]
[null,null,"LAYUG, A         MAYO,LEVY CANI 2838   UNSIGNED   04/02/22  29104509      PRIMARY CARE (P                              "]
[null,null,"MILLER, J A      CARTER,CHERYL  3889   UNSIGNED   04/15/22  29178440      PAIN UNIVERSITY                              "]
[null,null,"OVREVIK, S L     THURMAN,BYRON  4620   UNSIGNED   04/14/22  29171429      NURSING - OUTPA                              "]
[null,null,"ROY, D M         BAILEY,ALEXAND 8190   UNSIGNED   04/15/22  29178425      Test Results le                              "]
[null,null,"ROY, D M         BLOSS,KEITH CH 3627   UNSIGNED   04/15/22  29178478      Test Results le                              "]
[null,null,"SMIRNOV, M       GUNDERSON,DALE 4280   UNSIGNED   04/17/22  29185786      Addendum                                     29117053"]
[null,null,"SMIRNOV, M       LEWIS,EDWARD C 3149   UNSIGNED   04/17/22  29185789      Addendum                                     29158115"]
[null,null,"SMIRNOV, M       NYBERG,GARY LA 2706   UNSIGNED   04/17/22  29185791      Addendum                                     28511540"]
[null,null,"SMIRNOV, M       STRACHN,CHARLE 7944   UNSIGNED   04/17/22  29185792      Addendum                                     29171234"]
[null,null,"SYEDA, S J       PANERAL,KENNET 9020   UNSIGNED   04/05/22  29121863      Addendum                                     26917752"]
[null,null,"SYEDA, S J       MAJOR,JOHN ALB 9920   UNSIGNED   04/06/22  29128991      Addendum                                     27669696"]
[null,null,"SYEDA, S J       MCCONKEY,TERRY 2436   UNSIGNED   04/12/22  29157544      Addendum                                     29143505"]
[null,null,"SYEDA, S J       GRIMM,ERIC KRI 7752   UNSIGNED   04/18/22  29191087      PRIMARY CARE (P                              "]
[]
[]
[null,null,"          SERVICE: PEDIATRICS"]
[null,null,"WHITE, J L       STOCK,STANLEY  6666   UNSIGNED   10/01/21  28142666      COVID-19 GPM AP                              "]
[]
[]
[null,null,"          SERVICE: PHARMACY SERVICE"]
[null,null,"ALAKA, Y         ZINKANN,HENRY  9836   UNSIGNED   04/18/22  29189800      PHARMACY MEDICA                              "]
[null,null,"CANIFF, K E      WHITE,JOHN DAV 0593   UNCOSIGNED 04/18/22  29191457      PHARMACY ANTIMI               KARAPETYAN,KR  "]
[null,null,"CANIFF, K E      SCHULTZ,FRANKL 1965   UNSIGNED   04/18/22  29193435      PHARMACY GENERA                              "]
[null,null,"CHAU, S T        HAERLE,CLYDE C 9421   UNSIGNED   04/18/22  29189248      NO SHOW                                      "]
[null,null,"CHAU, S T        BJORKLING,STEN 4285   UNSIGNED   04/18/22  29189496      NO SHOW                                      "]
[null,null,"CHAU, S T        HAGEMANN,HENRY 6626   UNSIGNED   04/18/22  29191443      NO SHOW                                      "]
[null,null,"CHOUDHURY, A     MONCHER,MICHAE 1229   UNSIGNED   04/18/22  29194293      HBPC PHARMACY T                              "]
[null,null,"DILICH, A S      MORRIS,DAVE TR 1672   UNSIGNED   04/18/22  29193730      NON-FORMULARY P                              "]
[null,null,"DRAGILEV, L      RONDON-POGGY,F 2078   UNSIGNED   04/06/22  29126114      Addendum                                     29021013"]
[null,null,"DRAGILEV, L      TARR,DARRYL GO 9419   UNSIGNED   04/18/22  29193006      NON-FORMULARY P                              "]
[null,null,"HAMILTON, C      BAUMGART,RUDOL 4128   UNSIGNED   04/18/22  29188740      Addendum                                     28197673"]
[null,null,"HAMILTON, C      GRIFFINS,WELLS 6088   UNSIGNED   04/18/22  29189000      PHARMACY MEDICA                              "]
[null,null,"HAMILTON, C      KUDERKO,ROBERT 2174   UNSIGNED   04/18/22  29189025      PHARMACY MEDICA                              "]
[null,null,"HAMILTON, C      STREICHER,THOM 4393   UNSIGNED   04/18/22  29191938      ANTICOAGULATION                              "]
[null,null,"HEHN, J A        HARRIS,KEVIN E 6909   UNSIGNED   04/14/22  29174995      Addendum                                     28153379"]
[null,null,"HOLUB, B P       WORSHIP,ROBERT 2814   UNSIGNED   04/18/22  29190117      PHARMACY MEDICA                              "]
[null,null,"HOLUB, B P       BARTEL,GLENN R 4430   UNSIGNED   04/18/22  29192376      NON-FORMULARY P                              "]
[null,null,"IBE, V           ECHEVARRIA-NAT 6566   UNSIGNED   04/18/22  29191811      PHARMACY MEDICA                              "]
[null,null,"LEE, M           PEREZAGUIRRE,C 4409   UNSIGNED   04/18/22  29192331      MH /CLINICAL PH                              "]
[null,null,"LEE, M           HARRIS,SETH CH 4963   UNSIGNED   04/18/22  29192406      MH /CLINICAL PH                              "]
[null,null,"LEE, M           SHANNON,TYREE  4737   UNSIGNED   04/18/22  29193660      MH /CLINICAL PH                              "]
[null,null,"LEE, M           CARANI,JOSEPH  4477   UNSIGNED   04/18/22  29193711      MH /CLINICAL PH                              "]
[null,null,"LEE, M           HALL,NATHANIEL 6809   UNSIGNED   04/18/22  29193746      MH /CLINICAL PH                              "]
[null,null,"LEVESQUE, C M    GIBBS,VANESSA  4891   UNSIGNED   04/06/22  29127761      Addendum                                     29125449"]
[null,null,"LEVESQUE, C M    DAWSON,KATHRYN 6865   UNSIGNED   04/07/22  29136389      Addendum                                     29124901"]
[null,null,"MATHEW, M        CORNELL,WILLIA 6274   UNSIGNED   04/18/22  29193672      PHARMACY ONCOLO                              "]
[null,null,"MENDYK, A M      PRUITT,TONY AL 5795   UNSIGNED   04/18/22  29193628      ANTICOAGULATION                              "]
[null,null,"PHILIP, S        DAVENPORT,NATH 5222   UNCOSIGNED 02/19/21  26920417      Addendum                      ROBACH,JEANNE  26916411"]
[null,null,"PHILIP, S        UNDERWOOD,JAME 0106   UNSIGNED   03/15/22  29009284      CPRS DOWNTIME -                              "]
[null,null,"PHILIP, S        ZZTEST,GLOBAL  1478   UNSIGNED   03/15/22  29009443      CPRS DOWNTIME -                              "]
[null,null,"ROSENFELDT, Z A  APA,GAETANO ME 7818   UNSIGNED   04/18/22  29193807      PHARMACY GENERA                              "]
[]
[]
[null,null,"          SERVICE: PODIATRY SECTION"]
[null,null,"GIBBONEY, M D    KLIMKO,CHRISTO 7033   UNCOSIGNED 04/18/22  29190065      PODIATRY GENERA               VAN BEEK,DEVO  "]
[null,null,"GIBBONEY, M D    WHITE,SCOTT ST 4945   UNCOSIGNED 04/18/22  29191959      PODIATRY GENERA               VAN BEEK,DEVO  "]
[null,null,"GIBBONEY, M D    AVERHART,DOROT 6548   UNCOSIGNED 04/18/22  29192312      PODIATRY HISTOR               VAN BEEK,DEVO  "]
[null,null,"GIBBONEY, M D    MARTINEZ,MICHA 3656   UNSIGNED   04/18/22  29192648      PODIATRY GENERA                              "]
[]
[]
[null,null,"          SERVICE: PRIMARY CARE DIR (MHP/PACT)"]
[null,null,"HARDEN, K M      LEROY,MARC JEA 3000   UNSIGNED   02/22/22  28890367      ADMINISTRATIVE                               "]
[null,null,"HARDEN, K M      RAMOS,KATELIN  0339   UNSIGNED   03/16/22  29013827      ADMINISTRATIVE                               "]
[null,null,"SMITH, L         TEST,BABY      1128   UNSIGNED   03/04/22  28950771      STATE PRESCRIPT  MAJEWSKI,MARE               "]
[]
[]
[null,null,"          SERVICE: PROSTHETICS & SENSORY AID"]
[null,null,"CRONIN, T        SMITH,PAMELA D 0608   UNSIGNED   10/21/21  28248749      PROSTHETIC & SE                              "]
[null,null,"WRIGHT, S A      ZZTEST,GLOBAL  1478   UNSIGNED   06/10/21  27529092      ADMINISTRATIVE                               "]
[null,null,"WRIGHT, S A      ZZBATCH,TEST   1974   UNSIGNED   06/10/21  27530514       ATTENDING (FRE                              "]
[null,null,"WRIGHT, S A      ZZTEST,BABY    1127   UNSIGNED   06/10/21  27530623       ATTENDING (FRE                              "]
[]
[]
[null,null,"          SERVICE: PULMONARY DISEASE SECTION"]
[null,null,"ANWAR, A         NOFSINGER,BURN 6008   UNCOSIGNED 12/06/21  28492495      PULMONARY CLINI               ALI,RASHID AH  "]
[null,null,"ANWAR, A         BERG,DALE ALBE 7698   UNCOSIGNED 12/06/21  28492583      PULMONARY CLINI               HASHM,HASSAN   "]
[null,null,"ANWAR, A         HARKIM,VALERIE 0365   UNCOSIGNED 12/06/21  28492923      PULMONARY CLINI               HASHM,HASSAN   "]
[null,null,"ANWAR, A         WATSON,SHAWN B 3792   UNCOSIGNED 12/07/21  28497834      Addendum                      HASHM,HASSAN   28461707"]
[null,null,"ANWAR, A         DOYLE,GEORGE P 2533   UNCOSIGNED 12/08/21  28503524      Addendum                      HASHM,HASSAN   28080278"]
[null,null,"ANWAR, A         HICKS,FRED SR  5340   UNCOSIGNED 12/14/21  28537741      Addendum                      ALI,RASHID AH  28011704"]
[null,null,"ANWAR, A         HAMEEN,SAMIR J 6725   UNCOSIGNED 12/14/21  28539163      Addendum                      HASHM,HASSAN   28463037"]
[null,null,"HAMBLIN, A F     BUGAYONG,PAQUI 8200   UNSIGNED   10/28/21  28285206      PULMONARY CPAP                               "]
[null,null,"HAMBLIN, A F     GABRIELSON,JON 1112   UNSIGNED   02/25/22  28913858      PULMONARY CPAP                               "]
[null,null,"HARPER, W J      MONTEITH,MICHA 8185   UNSIGNED   11/02/21  28310543      PULMONARY CPAP                               "]
[null,null,"HARPER, W J      WILLIAMS,SPENC 9364   UNSIGNED   11/10/21  28355039      PULMONARY CPAP                               "]
[null,null,"HARPER, W J      GOODIN,WALLACE 4921   UNSIGNED   11/18/21  28396170      PULMONARY CPAP                               "]
[null,null,"HARPER, W J      ANCHINI,BLAKE  8217   UNSIGNED   02/14/22  28851946      PULMONARY CPAP                               "]
[null,null,"HARPER, W J      MCCLENDON,MICH 9119   UNSIGNED   03/07/22  28961444      PULMONARY TELEP                              "]
[]
[]
[null,null,"          SERVICE: RADIOLOGY SECTION"]
[null,null,"MORTON-MILLER, A LEONARD,JESSIC 1951   UNSIGNED   02/25/22  28911208      ADMINISTRATIVE                               "]
[null,null,"ROBERTS, F W     HILL,CARY LECH 6975   UNSIGNED   08/27/21  27955865      PROCEDURE TIME                               "]
[]
[]
[null,null,"          SERVICE: REHABILITATION"]
[null,null,"BONGARALA, V J   VOICU,EDUARD M 8291   UNCOSIGNED 04/18/22  29193991      PM&RS PHYSICAL                BORKIEWICZ,AN  "]
[null,null,"BONGARALA, V J   HOLLOWAY,JULIE 2733   UNCOSIGNED 04/18/22  29194162      PM&RS PHYSICAL                BORKIEWICZ,AN  "]
[null,null,"BONGARALA, V J   HOLLOWAY,JULIE 2733   UNCOSIGNED 04/18/22  29194198      Addendum                      BORKIEWICZ,AN  29194162"]
[null,null,"DIGNADICE, R A   WALLIS,JOSH JA 9555   UNSIGNED   04/18/22  29194013      PM&RS PHYSICAL                               "]
[null,null,"MORRIS, A        HAUT,RICHARD D 3171   UNSIGNED   04/18/22  29191199      MAJOR MEDICAL C                              "]
[null,null,"PRESNELL, S I    AGASE,HERBERT  1540   UNSIGNED   04/18/22  29193701      PM&RS EQUIPMENT                              "]
[]
[]
[null,null,"          SERVICE: REMOTE"]
[null,null,"GILBERT, A H     PIGOTT,DANIEL  4032   UNCOSIGNED 04/13/22  29164301      OPHTHALMOLOGY N               KAUFMAN,AARON  "]
[]
[]
[null,null,"          SERVICE: RESOURCES MANAGEMENT"]
[null,null,"COLEMAN, D E     ZZTEST,BABY    1982   UNSIGNED   04/26/21  27281214      ADMINISTRATIVE                               "]
[null,null,"COLEMAN, D E     ZZTEST,BABY    1982   UNSIGNED   04/26/21  27281637      ADMINISTRATIVE                               "]
[null,null,"COLEMAN, D E     ZZTEST,BABY    1982   UNSIGNED   04/26/21  27281863      ADMINISTRATIVE                               "]
[null,null,"COLEMAN, D E     ZZTEST,BABY    1982   UNSIGNED   04/27/21  27289845      ADMINISTRATIVE                               "]
[null,null,"COLEMAN, D E     BASIN,JACOB    8335   UNSIGNED   02/14/22  28853773      ADMINISTRATIVE                               "]
[null,null,"COOPER, D C      EHNERT,KENNETH 4080   UNSIGNED   01/10/22  28670413      ADMINISTRATIVE   STIEBER,DEVIN               "]
[null,null,"MEDINA, E A      ZZTEST,MICKEY  9999   UNSIGNED   04/12/21  27202099      ADMINISTRATIVE                               "]
[null,null,"MEDINA, E A      ZZTEST,SCA ONE 6543   UNSIGNED   05/10/21  27360500      ADMINISTRATIVE                               "]
[null,null,"MEDINA, E A      ZZTEST,SCA ONE 6543   UNSIGNED   05/10/21  27361262      ADMINISTRATIVE                               "]
[null,null,"MEDINA, E A      ZZTEST,SCA ONE 6543   UNSIGNED   05/11/21  27367968      ADMINISTRATIVE                               "]
[null,null,"RECEPCION, D C   ZZTEST,TEST VE 5432   UNSIGNED   02/23/22  28897776      Addendum                                     28892646"]
[null,null,"RECEPCION, D C   ZZTEST,TEST VE 5432   UNSIGNED   04/18/22  29192410      ADMINISTRATIVE                               "]
[null,null,"SIMS, A M        SCHAEFER,KONRA 0897   UNSIGNED   02/02/22  28790512      ADMINISTRATIVE                               "]
[null,null,"SIMS, A M        CLARK,JORDAN G 2722   UNSIGNED   02/16/22  28864003      ADMINISTRATIVE                               "]
[null,null,"SIMS, A M        LEE,JOHN IRA   7647   UNSIGNED   02/23/22  28897027      ADMINISTRATIVE                               "]
[null,null,"SIMS, A M        MACE,DOUGLAS K 6109   UNSIGNED   03/07/22  28964765      ADMINISTRATIVE                               "]
[]
[]
[null,null,"          SERVICE: ROCKFORD"]
[null,null,"WEBBER, P        ZZZAM,MINNIE   0250   UNSIGNED   06/21/21  27590887       ANGER MANAGEME                              "]
[null,null,"WEBBER, P        ZZZAM,MINNIE   0250   UNSIGNED   06/22/21  27600045       ANGER MANAGEME                              "]
[null,null,"WEBBER, P        ZZZAM,MINNIE   0250   UNSIGNED   11/03/21  28319510       ANGER MANAGEME                              "]
[null,null,"WEBBER, P        ZZZAM,MINNIE   0250   UNSIGNED   11/07/21  28337738       ANGER MANAGEME                              "]
[null,null,"WEBBER, P        ZZDUCK,DONALD  0110   UNSIGNED   11/22/21  28417262       ANGER MANAGEME                              "]
[null,null,"WEBBER, P        ZZDUCK,DONALD  0110   UNSIGNED   11/29/21  28446663       ANGER MANAGEME                              "]
[null,null,"WEBBER, P        ZZDUCK,DONALD  0110   UNSIGNED   12/01/21  28462886       ANGER MANAGEME                              "]
[null,null,"WEBBER, P        ZZDUCK,DONALD  0110   UNSIGNED   12/22/21  28585903       ANGER MANAGEME                              "]
[]
[]
[null,null,"          SERVICE: SPECIAL MEDICAL EXAMS"]
[null,null,"LIPSON, B D      CINTRON,ARNALD 7912   UNSIGNED   04/06/22  29125664      AIRBORNE HAZARD                              "]
[]
[]
[null,null,"          SERVICE: SPECIAL PROGRAMS"]
[null,null,"HOBSON, R        BUFFINGTON,THE 9631   UNSIGNED   10/04/21  28149369      ADL Checklist                                "]
[null,null,"HOBSON, R        BUFFINGTON,THE 9631   UNSIGNED   10/04/21  28149376      ADL Checklist                                "]
[null,null,"HOBSON, R        BUFFINGTON,THE 9631   UNSIGNED   10/04/21  28149391      ADL Checklist                                "]
[null,null,"HOBSON, R        BUFFINGTON,THE 9631   UNSIGNED   10/04/21  28149397      ADL Checklist                                "]
[null,null,"HOBSON, R        BUFFINGTON,THE 9631   UNSIGNED   10/04/21  28149408      ADL Checklist                                "]
[null,null,"HOBSON, R        GROSS,ROBERT E 4288   UNSIGNED   10/04/21  28149423      ADL Checklist                                "]
[null,null,"HOBSON, R        GROSS,ROBERT E 4288   UNSIGNED   10/04/21  28149438      ADL Checklist                                "]
[null,null,"HOBSON, R        GROSS,ROBERT E 4288   UNSIGNED   10/04/21  28149441      ADL Checklist                                "]
[null,null,"HOBSON, R        GROSS,ROBERT E 4288   UNSIGNED   10/05/21  28155732      ADL Checklist                                "]
[]
[]
[null,null,"          SERVICE: SPECIALTY MEDICINE"]
[null,null,"INCANDELA, A     OLDEN,LEONARD  6736   UNSIGNED   07/15/21  27723254      IMED-INFORMED C                              "]
[]
[]
[null,null,"          SERVICE: SURGICAL SERVICE"]
[null,null,"ANDERSON, D C    AIKEN,DENNIS D 2960   UNSIGNED   04/14/22  29172149      OPERATION REPOR  ANDERSON,DANI               "]
[null,null,"BARAN ROFFLE, N  MASTERS,THOMAS 1392   UNSIGNED   10/06/21  28165904      NURSING NOTE                                 "]
[null,null,"BARAN ROFFLE, N  FAVRE,RUTH ELI 2044   UNSIGNED   10/18/21  28226672      NURSING NOTE                                 "]
[null,null,"BARAN ROFFLE, N  BROWN,HOWARD M 3850   UNSIGNED   10/25/21  28263209      PREOP SCHEDULIN                              "]
[null,null,"BARAN ROFFLE, N  JOHNSON,MICHAE 2687   UNCOSIGNED 02/01/22  28782698      SCREENING COVID               AHOUMENOUVINS  "]
[null,null,"BARAN ROFFLE, N  VANDERLOIS,JAM 4090   UNCOSIGNED 02/01/22  28782993      SCREENING COVID               AHOUMENOUVINS  "]
[null,null,"BARAN ROFFLE, N  LUNA,ANTONIO E 0211   UNCOSIGNED 02/02/22  28791294      SCREENING COVID               AHOUMENOUVINS  "]
[null,null,"BARAN ROFFLE, N  BECOLA,PETER M 5463   UNCOSIGNED 02/02/22  28791373      SCREENING COVID               AHOUMENOUVINS  "]
[null,null,"BARAN ROFFLE, N  MCREYNOLDS,WES 4940   UNCOSIGNED 02/02/22  28791600      SCREENING COVID               AHOUMENOUVINS  "]
[null,null,"BARAN ROFFLE, N  SANDERS,BOBBIE 9405   UNCOSIGNED 02/02/22  28792495      SCREENING COVID               AHOUMENOUVINS  "]
[null,null,"BARAN ROFFLE, N  BOWMAN,DAVID E 1764   UNCOSIGNED 02/07/22  28813161      SCREENING COVID               AHOUMENOUVINS  "]
[null,null,"BARAN ROFFLE, N  CUMMINGS,ZACHA 7294   UNCOSIGNED 02/07/22  28813244      SCREENING COVID               AHOUMENOUVINS  "]
[null,null,"BARAN ROFFLE, N  DURDEN,JACQUEL 4116   UNCOSIGNED 02/07/22  28813490      SCREENING COVID               AHOUMENOUVINS  "]
[null,null,"BARAN ROFFLE, N  MARTIN,JEROLD  8805   UNCOSIGNED 02/11/22  28840656      SCREENING COVID               AHOUMENOUVINS  "]
[null,null,"BARAN ROFFLE, N  GONDER,CRAIG A 4268   UNSIGNED   03/08/22  28969210      PREOP SCHEDULIN                              "]
[null,null,"BARAN ROFFLE, N  MINA,JORGE FAU 3758   UNSIGNED   03/31/22  29093397      NURSING NOTE                                 "]
[null,null,"BERNHARDSON, A S ROBERTSON,BRYE 5161   UNSIGNED   04/18/22  29192985      ORTHOPEDICS OUT                              "]
[null,null,"BERNHARDSON, A S OSTER,PETER A  1308   UNSIGNED   04/18/22  29193007      ORTHOPEDICS OUT                              "]
[null,null,"BERNHARDSON, A S HUTSON,SAMANTH 2025   UNSIGNED   04/18/22  29193043      ORTHOPEDICS OUT                              "]
[null,null,"BERNHARDSON, A S WHITE,SCOTT ST 4945   UNSIGNED   04/18/22  29193048      ORTHOPEDICS OUT                              "]
[null,null,"DOSHI, A         SHANKAR,THIRUM 6287   UNCOSIGNED 01/26/22  28754084      SCREENING COVID               AHOUMENOUVINS  "]
[null,null,"DOSHI, A         MCCONKEY,TERRY 2436   UNCOSIGNED 04/13/22  29168276      SBAR                          AHOUMENOUVINS  "]
[null,null,"GILBERT, M       PIGOTT,DANIEL  4032   UNCOSIGNED 04/12/22  29157762      OPHTHALMOLOGY G               KAUFMAN,AARON  "]
[null,null,"GILBERT, M       PITCHFORD,THOM 8495   UNCOSIGNED 04/12/22  29158967      OPHTHALMOLOGY G               KAUFMAN,AARON  "]
[null,null,"GILBERT, M       BROWNELL,GREGO 9042   UNCOSIGNED 04/12/22  29160182      OPHTHALMOLOGY G               KAUFMAN,AARON  "]
[null,null,"GILBERT, M       SUAREZ,JOSE AN 3991   UNCOSIGNED 04/14/22  29170889      OPHTHALMOLOGY G               KAUFMAN,AARON  "]
[null,null,"GILBERT, M       STADELMYER,WAY 5507   UNCOSIGNED 04/14/22  29170942      OPHTHALMOLOGY G               KAUFMAN,AARON  "]
[null,null,"GILBERT, M       BROWN,ALAN MOR 1773   UNCOSIGNED 04/14/22  29170968      OPHTHALMOLOGY G               KAUFMAN,AARON  "]
[null,null,"GILBERT, M       WILSON,DARRYL  3942   UNCOSIGNED 04/14/22  29171579      OPERATION REPOR               KAUFMAN,AARON  "]
[null,null,"GILBERT, M       DANIELS,FREDER 8086   UNCOSIGNED 04/14/22  29172481      OPERATION REPOR               KAUFMAN,AARON  "]
[null,null,"GILBERT, M       CARRUCINI,ADAL 8625   UNCOSIGNED 04/14/22  29173244      OPHTHALMOLOGY T               SMITH,TREVON   "]
[null,null,"GILBERT, M       LAING,MICHAEL  6138   UNCOSIGNED 04/14/22  29173464      OPHTHALMOLOGY G               KAUFMAN,AARON  "]
[null,null,"GILBERT, M       PRANICA,JOHN S 1687   UNCOSIGNED 04/14/22  29173559      OPHTHALMOLOGY T               SMITH,TREVON   "]
[null,null,"GILBERT, M       SENN,JOHN DARR 6048   UNCOSIGNED 04/14/22  29174041      OPHTHALMOLOGY T               SMITH,TREVON   "]
[null,null,"GILBERT, M       BINDER,GEORGE  2764   UNCOSIGNED 04/14/22  29175136      OPHTHALMOLOGY T               SMITH,TREVON   "]
[null,null,"HEINZE, K D      HERRICK,ROBERT 4475   UNSIGNED   02/22/22  28891221      Addendum         HEINZE,KEVIN                28870712"]
[null,null,"HEINZE, K D      HEBEL,JOHN WAY 3186   UNSIGNED   02/22/22  28891226      Addendum         GILBERT,MOLLY               28871436"]
[null,null,"JENSEN, S L      HARKNESS,WENDY 5091   UNSIGNED   04/18/22  29189605      PODIATRY GENERA                              "]
[null,null,"JENSEN, S L      ROMO,ERIC STEP 0374   UNCOSIGNED 04/18/22  29190501      PODIATRY GENERA               BICHLER,JUSTI  "]
[null,null,"JENSEN, S L      LARSEN,RICHARD 4465   UNCOSIGNED 04/18/22  29190850      PODIATRY HISTOR               VAN BEEK,DEVO  "]
[null,null,"JENSEN, S L      TORRES LOPEZ,E 2324   UNSIGNED   04/18/22  29192309      PODIATRY GENERA                              "]
[null,null,"JENSEN, S L      MAHONEY,TERREN 5430   UNSIGNED   04/18/22  29192951      PODIATRY GENERA                              "]
[null,null,"JENSEN, S L      ROSARIO,NOSLEN 0354   UNSIGNED   04/18/22  29192993      PODIATRY GENERA                              "]
[null,null,"JENSEN, S L      ROSARIO,NOSLEN 0354   UNSIGNED   04/18/22  29193905      MINOR PROCEDURE                              "]
[null,null,"JENSEN, S L      MCRAE,TIMOTHY  1030   UNCOSIGNED 04/18/22  29193938      PODIATRY GENERA               VAN BEEK,DEVO  "]
[null,null,"JENSEN, S L      MCRAE,TIMOTHY  1030   UNCOSIGNED 04/18/22  29194059      MINOR PROCEDURE               VAN BEEK,DEVO  "]
[null,null,"JENSEN, S L      WHITE,JOHN DAV 0593   UNCOSIGNED 04/18/22  29194147      PODIATRY GENERA               BICHLER,JUSTI  "]
[null,null,"JOSEPH, A M      WEAKLEY,DONALD 1706   UNSIGNED   03/29/22  29079677      Addendum                                     29079337"]
[null,null,"JOSEPH, A M      NEVAREZ,ROBERT 1786   UNCOSIGNED 04/15/22  29177774      PODIATRY GENERA               BICHLER,JUSTI  "]
[null,null,"JOSEPH, A M      HALSTEAD,MICHE 4606   UNCOSIGNED 04/15/22  29177917      PODIATRY GENERA               VAN BEEK,DEVO  "]
[null,null,"JOSEPH, A M      WASICAK,CARMEL 5238   UNSIGNED   04/15/22  29178927      PODIATRY GENERA                              "]
[null,null,"JOSEPH, A M      BERGER,ROBERT  3710   UNCOSIGNED 04/15/22  29179293      PODIATRY GENERA               VAN BEEK,DEVO  "]
[null,null,"JOSEPH, A M      WINKO,EVAN JAM 3287   UNSIGNED   04/15/22  29179844      PODIATRY GENERA                              "]
[null,null,"JOSEPH, A M      BEAN,MICHAEL L 3574   UNSIGNED   04/15/22  29180611      PODIATRY GENERA                              "]
[null,null,"JOSEPH, A M      CRAFTON,THOMAS 1819   UNSIGNED   04/15/22  29181233      PODIATRY GENERA                              "]
[null,null,"JOSEPH, A M      PABEY,SEAN DAV 7383   UNCOSIGNED 04/15/22  29181583      PODIATRY GENERA               VAN BEEK,DEVO  "]
[null,null,"JOSEPH, A M      REBSTOCK,RICHA 4790   UNCOSIGNED 04/15/22  29181751      PODIATRY GENERA               VAN BEEK,DEVO  "]
[null,null,"JOSEPH, A M      WINTON,ROBERT  6416   UNCOSIGNED 04/15/22  29182746      Addendum                      BICHLER,JUSTI  29179379"]
[null,null,"JOSEPH, A M      WINTON,ROBERT  6416   UNCOSIGNED 04/16/22  29184436      PODIATRY GENERA               BICHLER,JUSTI  "]
[null,null,"RAGSDALE, D E    JONES,COREY AL 8113   UNSIGNED   04/11/22  29151753      ADMINISTRATIVE                               "]
[null,null,"RAHMAN, R        IWANICKI,MICHA 9511   UNSIGNED   01/03/22  28632795       ANGER MANAGEME                              "]
[null,null,"RAHMAN, R        POTTS,JOSEPH A 5785   UNSIGNED   03/24/22  29054946      POST ANESTHESIA                              "]
[null,null,"RAHMAN, R        JOHNSON,TODD L 9039   UNSIGNED   03/30/22  29089195      POST ANESTHESIA                              "]
[null,null,"RAHMAN, R        WELLES,BRYAN D 0781   UNSIGNED   04/05/22  29119782      ANESTHESIA - TI                              "]
[null,null,"RAHMAN, R        SAWYER,JOHN RA 2798   UNSIGNED   04/05/22  29119811      ANESTHESIA - TI                              "]
[null,null,"RAHMAN, R        MITSCH,MICHAEL 3174   UNSIGNED   04/05/22  29120819       GLUCOSE METER                               "]
[null,null,"RAHMAN, R        THRASHER,HAYDE 6187   UNSIGNED   04/07/22  29133079      ANESTHESIA - TI                              "]
[null,null,"RAHMAN, R        RELYEA,JASON I 4575   UNSIGNED   04/07/22  29133096      ANESTHESIA - TI                              "]
[null,null,"RAHMAN, R        OJEDA,PRESTON  0179   UNSIGNED   04/12/22  29160256      POST ANESTHESIA                              "]
[null,null,"RAHMAN, R        LOPEZ,SOLEDAD  7661   UNSIGNED   04/13/22  29164260       CHIROPRACTIC C                              "]
[null,null,"RAHMAN, R        FISCO,EDWARD J 5696   UNSIGNED   04/13/22  29164329      POST ANESTHESIA                              "]
[null,null,"RAHMAN, R        LEWIS,SHALAUNE 0778   UNSIGNED   04/13/22  29164372      POST ANESTHESIA                              "]
[null,null,"RAHMAN, R        MARTINEZ,JONAT 5521   UNSIGNED   04/13/22  29164384      POST ANESTHESIA                              "]
[null,null,"RAHMAN, R        FAJARDO,NOELNI 1417   UNSIGNED   04/13/22  29164411      POST ANESTHESIA                              "]
[null,null,"RAHMAN, R        RAEL,FLORENCIO 5347   UNSIGNED   04/13/22  29164428      POST ANESTHESIA                              "]
[null,null,"RAHMAN, R        TURNER,EVA LEN 0884   UNSIGNED   04/13/22  29164443      POST ANESTHESIA                              "]
[null,null,"RAHMAN, R        URIOSTEGUI,MAR 4172   UNSIGNED   04/13/22  29164470      POST ANESTHESIA                              "]
[null,null,"RAHMAN, R        BREWER,PAUL LE 3969   UNSIGNED   04/13/22  29164504      ANESTHESIA - TI                              "]
[null,null,"RAHMAN, R        RUGGLES,ROBERT 5585   UNSIGNED   04/13/22  29164509      ANESTHESIA - TI                              "]
[null,null,"RAHMAN, R        ANDERSON,STEVE 6339   UNSIGNED   04/14/22  29171931      POST ANESTHESIA                              "]
[null,null,"RAHMAN, R        FELSKE,RICHARD 9625   UNSIGNED   04/15/22  29179084       CHIROPRACTIC C                              "]
[null,null,"RAHMAN, R        FLYNN,GERALD R 0814   UNSIGNED   04/18/22  29191341      ANESTHESIA - PO                              "]
[null,null,"RAHMAN, R        FLYNN,GERALD R 0814   UNSIGNED   04/18/22  29191357      ANESTHESIA PRE-                              "]
[null,null,"RAHMAN, R        LOVELACE,MICHA 2823   UNSIGNED   04/18/22  29191872      ANESTHESIA PRE-                              "]
[null,null,"RAHMAN, R        LOVELACE,MICHA 2823   UNSIGNED   04/18/22  29192125      ANESTHESIA - PO                              "]
[null,null,"RAHMAN, R        ERVIN,DENNIS E 1130   UNSIGNED   04/18/22  29192186       ATTENDING (FRE                              "]
[null,null,"RAHMAN, R        NOVAL,GERARD   9103   UNSIGNED   04/18/22  29193039      ANESTHESIA PRE-                              "]
[null,null,"RAHMAN, R        NOVAL,GERARD   9103   UNSIGNED   04/18/22  29193061      ANESTHESIA - PO                              "]
[null,null,"SAFFRIN, R M     OLSON,FORREST  6379   UNSIGNED   04/12/22  29159855      OPERATION REPOR  SAFFRIN,ROBER               "]
[null,null,"SAFFRIN, R M     OLSON,FORREST  6379   UNCOSIGNED 04/12/22  29161220       POST OP DISCHA               ROSS,TIMOTHY   "]
[null,null,"SHUKLA, P A      MIREKU,FELIX K 2521   UNSIGNED   02/14/22  28851368      PULMONARY CLINI  COPUR,AHMET S               "]
[null,null,"SIEGEL, A        WALTERS,LINDA  1068   UNSIGNED   02/03/21  26839229      GENERAL SURGERY                              "]
[null,null,"SIEGEL, A        HERNANDEZ,TONT 5501   UNSIGNED   04/13/22  29166675      OPERATION REPOR  SIEGEL,AARON                "]
[null,null,"SIEGEL, A        BANE,JAMES MIC 5656   UNSIGNED   04/13/22  29168010      OPERATION REPOR  SIEGEL,AARON                "]
[null,null,"SIEGEL, A        BOOTH,CARL DAV 2887   UNSIGNED   04/15/22  29181321      GENERAL SURGERY                              "]
[null,null,"SIEGEL, A        SHEWMAKER,GUY  3766   UNSIGNED   04/15/22  29181333      GENERAL SURGERY                              "]
[null,null,"SIEGEL, A        YARBROUGH,MARK 7244   UNSIGNED   04/18/22  29188956      GENERAL SURGERY                              "]
[null,null,"SIEGEL, A        PLUMB,KELSIE D 8972   UNSIGNED   04/18/22  29189217      GENERAL SURGERY                              "]
[null,null,"SIEGEL, A        MELLENTHIN,LUC 3045   UNSIGNED   04/18/22  29189238      GENERAL SURGERY                              "]
[null,null,"SIEGEL, A        FALCO,BRIAN PA 3929   UNSIGNED   04/18/22  29189261      PRIMARY CARE (P                              "]
[null,null,"STILES, W M      WEILER,EDWARD  3184   UNSIGNED   04/18/22  29189149      OPHTHALMOLOGY P                              "]
[null,null,"STILES, W M      VERNALD,VERNE  0176   UNSIGNED   04/18/22  29189197      OPHTHALMOLOGY P                              "]
[null,null,"TAHERI, A        NOFFSINGER,SUS 1825   UNSIGNED   12/03/21  28476396      Addendum         TAHERI,AHMAD                28448103"]
[null,null,"TAHERI, A        RAYOME,AUSTE M 8269   UNSIGNED   04/14/22  29172962      GYNECOLOGY CONS                              "]
[null,null,"TRAN, V A        BLACK,HENRY LE 2230   UNCOSIGNED 04/13/22  29164323      OPHTHALMOLOGY G               KAUFMAN,AARON  "]
[null,null,"TRAN, V A        LEVIN,LARRY AR 3118   UNCOSIGNED 04/13/22  29166547      OPHTHALMOLOGY G               KAUFMAN,AARON  "]
[null,null,"ULANSKI, L       BLITZ,EDWIN CH 6256   UNCOSIGNED 03/29/22  29084629      Addendum                      KAUFMAN,AARON  29065043"]
[null,null,"ULANSKI, L       MCCOY,BRIAN HE 9327   UNCOSIGNED 04/04/22  29109528      OPHTHALMOLOGY O               KAUFMAN,AARON  "]
[null,null,"ULANSKI, L       MCCOY,BRIAN HE 9327   UNCOSIGNED 04/04/22  29109647      OPHTHALMOLOGY T               SMITH,TREVON   "]
[null,null,"ULANSKI, L       ALFORD,MICHAEL 2953   UNCOSIGNED 04/04/22  29110364      OPHTHALMOLOGY T               SAUER,GREGORY  "]
[null,null,"ULANSKI, L       ALFORD,MICHAEL 2953   UNCOSIGNED 04/04/22  29110522      OPHTHALMOLOGY G               STUBBS,AIDAN   "]
[null,null,"ULANSKI, L       DANGELO,PETER  9737   UNCOSIGNED 04/04/22  29110730      OPHTHALMOLOGY T               SMITH,TREVON   "]
[null,null,"ULANSKI, L       DANGELO,PETER  9737   UNCOSIGNED 04/04/22  29110868      OPHTHALMOLOGY F               STUBBS,AIDAN   "]
[null,null,"ULANSKI, L       BEYNE,HAROLD F 6001   UNCOSIGNED 04/04/22  29111363      OPHTHALMOLOGY T               SMITH,TREVON   "]
[null,null,"ULANSKI, L       ADAIR,RONALD L 8707   UNCOSIGNED 04/04/22  29111585      OPHTHALMOLOGY T               SAUER,GREGORY  "]
[null,null,"ULANSKI, L       ADAIR,RONALD L 8707   UNCOSIGNED 04/04/22  29112134      OPHTHALMOLOGY F               STUBBS,AIDAN   "]
[null,null,"ULANSKI, L       ONEIL,WALTER E 7085   UNCOSIGNED 04/05/22  29120062      OPHTHALMOLOGY T               SAUER,GREGORY  "]
[null,null,"ULANSKI, L       PARRISH,EDWARD 7031   UNCOSIGNED 04/05/22  29120756      OPHTHALMOLOGY T               SMITH,TREVON   "]
[null,null,"ULANSKI, L       GABRIEL,SUSAN  3743   UNCOSIGNED 04/06/22  29124664      OPHTHALMOLOGY T               SMITH,TREVON   "]
[null,null,"ULANSKI, L       HERRICK,ROBERT 4475   UNCOSIGNED 04/06/22  29125492      OPHTHALMOLOGY G               KAUFMAN,AARON  "]
[null,null,"ULANSKI, L       SCHAP,DONALD S 7468   UNCOSIGNED 04/06/22  29126105      OPHTHALMOLOGY T               SMITH,TREVON   "]
[null,null,"ULANSKI, L       HUDACHEK,WILLI 7887   UNCOSIGNED 04/06/22  29126588      OPHTHALMOLOGY G               KAUFMAN,AARON  "]
[null,null,"ULANSKI, L       PITCHFORD,THOM 8495   UNCOSIGNED 04/06/22  29126970      OPHTHALMOLOGY G               KAUFMAN,AARON  "]
[null,null,"ULANSKI, L       DIPERNA,JOSEPH 3856   UNCOSIGNED 04/06/22  29126983      OPHTHALMOLOGY G               KAUFMAN,AARON  "]
[null,null,"ULANSKI, L       SCHAP,DONALD S 7468   UNCOSIGNED 04/06/22  29127041      OPHTHALMOLOGY G               KAUFMAN,AARON  "]
[null,null,"ULANSKI, L       JOPS,PATRICK F 4160   UNCOSIGNED 04/06/22  29128212      OPHTHALMOLOGY T               SAUER,GREGORY  "]
[null,null,"ULANSKI, L       CARPENTER,WILL 4402   UNCOSIGNED 04/06/22  29128345      OPHTHALMOLOGY T               SMITH,TREVON   "]
[null,null,"ULANSKI, L       ROACH,DENNIS C 4132   UNCOSIGNED 04/07/22  29131281      OPHTHALMOLOGY O               KAUFMAN,AARON  "]
[null,null,"ULANSKI, L       KARLOVICS,PETE 7577   UNCOSIGNED 04/07/22  29132001      OPHTHALMOLOGY T               SMITH,TREVON   "]
[null,null,"ULANSKI, L       WILLIAMS,MICHA 2576   UNCOSIGNED 04/07/22  29134713      OPHTHALMOLOGY T               SMITH,TREVON   "]
[null,null,"ULANSKI, L       WILLIAMS,MICHA 2576   UNCOSIGNED 04/07/22  29135322      OPHTHALMOLOGY G               KAUFMAN,AARON  "]
[null,null,"ULANSKI, L       ROACH,DENNIS C 4132   UNCOSIGNED 04/07/22  29135630      OPHTHALMOLOGY T               SMITH,TREVON   "]
[null,null,"ULANSKI, L       DIPERNA,JOSEPH 3856   UNCOSIGNED 04/07/22  29137140      OPHTHALMOLOGY N               KAUFMAN,AARON  "]
[null,null,"ULANSKI, L       SMITH,GARY DAL 6758   UNCOSIGNED 04/08/22  29138180      OPHTHALMOLOGY T               SAUER,GREGORY  "]
[null,null,"ULANSKI, L       SMITH,GARY DAL 6758   UNCOSIGNED 04/08/22  29138230      OPHTHALMOLOGY G               KAUFMAN,AARON  "]
[null,null,"ULANSKI, L       HERRICK,ROBERT 4475   UNCOSIGNED 04/08/22  29138234      OPHTHALMOLOGY T               SMITH,TREVON   "]
[null,null,"ULANSKI, L       HERRICK,ROBERT 4475   UNCOSIGNED 04/08/22  29138391      OPHTHALMOLOGY G               KAUFMAN,AARON  "]
[null,null,"ULANSKI, L       NASS,JOHN H    3676   UNCOSIGNED 04/08/22  29138792      OPHTHALMOLOGY O               KAUFMAN,AARON  "]
[null,null,"ULANSKI, L       POPE,MICHEAL D 6722   UNCOSIGNED 04/08/22  29139296      OPHTHALMOLOGY G               KAUFMAN,AARON  "]
[null,null,"ULANSKI, L       BROWN,ALAN MOR 1773   UNCOSIGNED 04/08/22  29139352      OPHTHALMOLOGY G               KAUFMAN,AARON  "]
[null,null,"ULANSKI, L       SUAREZ,JOSE AN 3991   UNCOSIGNED 04/08/22  29139400      OPHTHALMOLOGY G               KAUFMAN,AARON  "]
[null,null,"ULANSKI, L       BROWN,ALAN MOR 1773   UNCOSIGNED 04/08/22  29139406      OPHTHALMOLOGY T               SMITH,TREVON   "]
[null,null,"ULANSKI, L       DANIELS,FREDER 8086   UNCOSIGNED 04/08/22  29139433      OPHTHALMOLOGY G               KAUFMAN,AARON  "]
[null,null,"ULANSKI, L       HOYT,JOHN G II 8974   UNCOSIGNED 04/08/22  29140307      OPHTHALMOLOGY G               KAUFMAN,AARON  "]
[null,null,"ULANSKI, L       DANIELS,FREDER 8086   UNCOSIGNED 04/08/22  29140404      OPHTHALMOLOGY T               SMITH,TREVON   "]
[null,null,"ULANSKI, L       THOMPSON,STEPH 4023   UNCOSIGNED 04/08/22  29140444      OPHTHALMOLOGY G               KAUFMAN,AARON  "]
[null,null,"ULANSKI, L       AHERN,THOMAS D 7922   UNCOSIGNED 04/08/22  29140662      OPHTHALMOLOGY T               SMITH,TREVON   "]
[null,null,"ULANSKI, L       SUAREZ,JOSE AN 3991   UNCOSIGNED 04/08/22  29140772      OPHTHALMOLOGY T               SMITH,TREVON   "]
[null,null,"ULANSKI, L       HAGEMANN,LAWRE 4895   UNCOSIGNED 04/08/22  29141031      OPHTHALMOLOGY T               SMITH,TREVON   "]
[null,null,"ULANSKI, L       AHERN,THOMAS D 7922   UNCOSIGNED 04/08/22  29141090      OPHTHALMOLOGY G               KAUFMAN,AARON  "]
[null,null,"ULANSKI, L       SAMOLITIS,JOHN 4412   UNCOSIGNED 04/08/22  29141306      OPHTHALMOLOGY T               SMITH,TREVON   "]
[null,null,"ULANSKI, L       HANCOCK,DARYL  4017   UNCOSIGNED 04/08/22  29141414      OPHTHALMOLOGY G               KAUFMAN,AARON  "]
[null,null,"ULANSKI, L       HAGEMANN,LAWRE 4895   UNCOSIGNED 04/08/22  29141671      OPHTHALMOLOGY G               KAUFMAN,AARON  "]
[null,null,"ULANSKI, L       SAMOLITIS,JOHN 4412   UNCOSIGNED 04/08/22  29142315      OPHTHALMOLOGY G               KAUFMAN,AARON  "]
[null,null,"ULANSKI, L       SCHMARS,KENNET 0809   UNCOSIGNED 04/11/22  29149771      OPHTHALMOLOGY T               SMITH,TREVON   "]
[null,null,"ULANSKI, L       SCHMARS,KENNET 0809   UNCOSIGNED 04/11/22  29149907      OPHTHALMOLOGY F               STUBBS,AIDAN   "]
[null,null,"ULANSKI, L       LEAHY,ROBERT J 7625   UNCOSIGNED 04/11/22  29150085      OPHTHALMOLOGY T               SMITH,TREVON   "]
[null,null,"ULANSKI, L       CASTILLO,JENNI 6755   UNCOSIGNED 04/11/22  29150308      OPHTHALMOLOGY T               SAUER,GREGORY  "]
[null,null,"ULANSKI, L       LEAHY,ROBERT J 7625   UNCOSIGNED 04/11/22  29150499      OPHTHALMOLOGY F               STUBBS,AIDAN   "]
[null,null,"ULANSKI, L       CASTILLO,JENNI 6755   UNCOSIGNED 04/11/22  29150700      OPHTHALMOLOGY F               STUBBS,AIDAN   "]
[null,null,"ULANSKI, L       SCHRUM,JOHN AR 9990   UNCOSIGNED 04/11/22  29150740      OPHTHALMOLOGY T               SAUER,GREGORY  "]
[null,null,"ULANSKI, L       PETSKA,CHARLES 5534   UNCOSIGNED 04/11/22  29150824      OPHTHALMOLOGY T               SMITH,TREVON   "]
[null,null,"ULANSKI, L       HOCKERSMITH,JO 4830   UNCOSIGNED 04/11/22  29150971      OPHTHALMOLOGY T               SAUER,GREGORY  "]
[null,null,"ULANSKI, L       GORDON,WILLIAM 3944   UNCOSIGNED 04/11/22  29151102      OPHTHALMOLOGY T               SMITH,TREVON   "]
[null,null,"ULANSKI, L       SCHRUM,JOHN AR 9990   UNCOSIGNED 04/11/22  29151208      OPHTHALMOLOGY F               STUBBS,AIDAN   "]
[null,null,"ULANSKI, L       HOCKERSMITH,JO 4830   UNCOSIGNED 04/11/22  29151320      OPHTHALMOLOGY F               STUBBS,AIDAN   "]
[null,null,"ULANSKI, L       HANSEN,JAMES A 4371   UNCOSIGNED 04/11/22  29151378      OPHTHALMOLOGY T               SMITH,TREVON   "]
[null,null,"ULANSKI, L       OCONNELL,PATRI 1246   UNCOSIGNED 04/11/22  29151435      OPHTHALMOLOGY T               SAUER,GREGORY  "]
[null,null,"ULANSKI, L       PETSKA,CHARLES 5534   UNCOSIGNED 04/11/22  29151497      OPHTHALMOLOGY F               STUBBS,AIDAN   "]
[null,null,"ULANSKI, L       GORDON,WILLIAM 3944   UNCOSIGNED 04/11/22  29151659      OPHTHALMOLOGY F               STUBBS,AIDAN   "]
[null,null,"ULANSKI, L       KELLERHALS,WIL 9112   UNCOSIGNED 04/11/22  29151694      OPHTHALMOLOGY T               SAUER,GREGORY  "]
[null,null,"ULANSKI, L       HANSEN,JAMES A 4371   UNCOSIGNED 04/11/22  29151703      OPHTHALMOLOGY F               STUBBS,AIDAN   "]
[null,null,"ULANSKI, L       OCONNELL,PATRI 1246   UNCOSIGNED 04/11/22  29151871      OPHTHALMOLOGY F               STUBBS,AIDAN   "]
[null,null,"ULANSKI, L       DREIFKE,NATHAN 1805   UNCOSIGNED 04/11/22  29152002      OPHTHALMOLOGY O               STUBBS,AIDAN   "]
[null,null,"ULANSKI, L       KELLERHALS,WIL 9112   UNCOSIGNED 04/11/22  29152139      OPHTHALMOLOGY F               STUBBS,AIDAN   "]
[null,null,"ULANSKI, L       SCHMARS,KENNET 0809   UNCOSIGNED 04/11/22  29155327      EYE CLINIC PHOT               STUBBS,AIDAN   "]
[null,null,"ULANSKI, L       LEAHY,ROBERT J 7625   UNCOSIGNED 04/11/22  29155363      EYE CLINIC PHOT               STUBBS,AIDAN   "]
[null,null,"ULANSKI, L       HOCKERSMITH,JO 4830   UNCOSIGNED 04/11/22  29155383      OCT IMAGING CON               STUBBS,AIDAN   "]
[null,null,"ULANSKI, L       PETSKA,CHARLES 5534   UNCOSIGNED 04/11/22  29155400      OCT IMAGING CON               STUBBS,AIDAN   "]
[null,null,"ULANSKI, L       HANSEN,JAMES A 4371   UNCOSIGNED 04/11/22  29155464      OCT IMAGING CON               STUBBS,AIDAN   "]
[null,null,"ULANSKI, L       OCONNELL,PATRI 1246   UNCOSIGNED 04/11/22  29155497      OCT IMAGING CON               STUBBS,AIDAN   "]
[null,null,"ULANSKI, L       KELLERHALS,WIL 9112   UNCOSIGNED 04/11/22  29155534      OCT IMAGING CON               STUBBS,AIDAN   "]
[null,null,"ULANSKI, L       CASTILLO,JENNI 6755   UNCOSIGNED 04/11/22  29155555      OCT IMAGING CON               STUBBS,AIDAN   "]
[null,null,"ULANSKI, L       GORDON,WILLIAM 3944   UNCOSIGNED 04/11/22  29155593      EYE CLINIC PHOT               STUBBS,AIDAN   "]
[null,null,"ULANSKI, L       DREIFKE,NATHAN 1805   UNCOSIGNED 04/11/22  29155612      EYE CLINIC PHOT               STUBBS,AIDAN   "]
[null,null,"ULANSKI, L       CICERALE,HENRY 5527   UNCOSIGNED 04/12/22  29156817      OPHTHALMOLOGY T               SMITH,TREVON   "]
[null,null,"ULANSKI, L       CICERALE,HENRY 5527   UNCOSIGNED 04/12/22  29156852      OPHTHALMOLOGY G               KAUFMAN,AARON  "]
[null,null,"ULANSKI, L       KARLOVICS,PETE 7577   UNSIGNED   04/12/22  29156867      OPHTHALMOLOGY F                              "]
[null,null,"ULANSKI, L       VARSEK,ROBERT  1737   UNCOSIGNED 04/12/22  29156968      OPHTHALMOLOGY T               SMITH,TREVON   "]
[null,null,"ULANSKI, L       HUDACHEK,WILLI 7887   UNCOSIGNED 04/12/22  29157116      OPHTHALMOLOGY T               SMITH,TREVON   "]
[null,null,"ULANSKI, L       STANSBURY,DENN 6905   UNCOSIGNED 04/12/22  29157287      OPHTHALMOLOGY T               SMITH,TREVON   "]
[null,null,"ULANSKI, L       STANSBURY,DENN 6905   UNCOSIGNED 04/12/22  29157386      Addendum                      SMITH,TREVON   29157287"]
[null,null,"ULANSKI, L       PIGOTT,DANIEL  4032   UNCOSIGNED 04/12/22  29157546      OPHTHALMOLOGY T               SMITH,TREVON   "]
[null,null,"ULANSKI, L       GLOMP,JOSEPH L 4932   UNCOSIGNED 04/12/22  29158270      OPHTHALMOLOGY T               SAUER,GREGORY  "]
[null,null,"ULANSKI, L       GREINER,JOHN R 8696   UNCOSIGNED 04/12/22  29158400      OPHTHALMOLOGY T               SMITH,TREVON   "]
[null,null,"ULANSKI, L       PITCHFORD,THOM 8495   UNCOSIGNED 04/12/22  29158721      OPHTHALMOLOGY T               SAUER,GREGORY  "]
[null,null,"ULANSKI, L       COLON,VICTOR O 1423   UNCOSIGNED 04/12/22  29158974      OPHTHALMOLOGY T               SAUER,GREGORY  "]
[null,null,"ULANSKI, L       HERRICK,ROBERT 4475   UNCOSIGNED 04/12/22  29159436      OPHTHALMOLOGY T               SMITH,TREVON   "]
[null,null,"ULANSKI, L       VERBRACKEN,PAU 4090   UNCOSIGNED 04/12/22  29159507      OPHTHALMOLOGY T               SAUER,GREGORY  "]
[null,null,"ULANSKI, L       BUNKER,DAVID E 5330   UNCOSIGNED 04/12/22  29160220      OPHTHALMOLOGY T               SMITH,TREVON   "]
[null,null,"ULANSKI, L       BROWNELL,GREGO 9042   UNCOSIGNED 04/12/22  29161110      OPHTHALMOLOGY T               SAUER,GREGORY  "]
[null,null,"ULANSKI, L       SNOW,DUDLEY IR 8004   UNCOSIGNED 04/12/22  29161255      OPHTHALMOLOGY G               KAUFMAN,AARON  "]
[null,null,"ULANSKI, L       ROBERTSON,ROY  5299   UNCOSIGNED 04/12/22  29161433      OPHTHALMOLOGY T               SMITH,TREVON   "]
[null,null,"ULANSKI, L       ROBERTSON,ROY  5299   UNCOSIGNED 04/12/22  29161820      OPHTHALMOLOGY G               KAUFMAN,AARON  "]
[null,null,"ULANSKI, L       BLACK,HENRY LE 2230   UNCOSIGNED 04/13/22  29164227      OPHTHALMOLOGY T               SMITH,TREVON   "]
[null,null,"ULANSKI, L       DANIELS,FREDER 8086   UNCOSIGNED 04/13/22  29164377      OPHTHALMOLOGY T               SAUER,GREGORY  "]
[null,null,"ULANSKI, L       HOLT,ALFRED    5940   UNCOSIGNED 04/13/22  29164673      OPHTHALMOLOGY T               SMITH,TREVON   "]
[null,null,"ULANSKI, L       PRESLEY,RUFUS  5912   UNCOSIGNED 04/13/22  29165069      OPHTHALMOLOGY T               SMITH,TREVON   "]
[null,null,"ULANSKI, L       FROST,LEONARD  8313   UNCOSIGNED 04/13/22  29165379      OPHTHALMOLOGY T               SMITH,TREVON   "]
[null,null,"ULANSKI, L       WITT,JAMES ELI 6879   UNCOSIGNED 04/13/22  29166069      OPHTHALMOLOGY O               KAUFMAN,AARON  "]
[null,null,"ULANSKI, L       LEVIN,LARRY AR 3118   UNCOSIGNED 04/13/22  29166156      OPHTHALMOLOGY T               SMITH,TREVON   "]
[null,null,"ULANSKI, L       LUCKETT,RICKY  3776   UNCOSIGNED 04/13/22  29166651      OPHTHALMOLOGY T               SMITH,TREVON   "]
[null,null,"ULANSKI, L       SABIE,GEORGE J 2282   UNCOSIGNED 04/13/22  29166662      OPHTHALMOLOGY G               KAUFMAN,AARON  "]
[null,null,"ULANSKI, L       ESPOSITO,ROBER 8940   UNCOSIGNED 04/13/22  29166752      OPHTHALMOLOGY T               SMITH,TREVON   "]
[null,null,"ULANSKI, L       PATTERSON,JOHN 4088   UNCOSIGNED 04/13/22  29167028      OPHTHALMOLOGY T               SAUER,GREGORY  "]
[null,null,"ULANSKI, L       LUNGREN,ROBERT 6327   UNCOSIGNED 04/13/22  29167140      OPHTHALMOLOGY T               SAUER,GREGORY  "]
[null,null,"ULANSKI, L       LUCKETT,RICKY  3776   UNCOSIGNED 04/13/22  29167216      OPHTHALMOLOGY G               KAUFMAN,AARON  "]
[null,null,"ULANSKI, L       JONES,WILLARD  6020   UNCOSIGNED 04/13/22  29167241      OPHTHALMOLOGY T               SAUER,GREGORY  "]
[null,null,"ULANSKI, L       ESPOSITO,ROBER 8940   UNSIGNED   04/13/22  29167290      OPHTHALMOLOGY F                              "]
[null,null,"ULANSKI, L       COOPER,FORRESS 5974   UNCOSIGNED 04/13/22  29167433      OPHTHALMOLOGY T               SAUER,GREGORY  "]
[null,null,"ULANSKI, L       KAEBISCH,RICKE 2023   UNCOSIGNED 04/13/22  29167615      OPHTHALMOLOGY T               SAUER,GREGORY  "]
[null,null,"ULANSKI, L       ESPOSITO,ROBER 8940   UNSIGNED   04/13/22  29167660      OPHTHALMOLOGY N                              "]
[null,null,"ULANSKI, L       PATTERSON,JOHN 4088   UNSIGNED   04/13/22  29167698      OPHTHALMOLOGY F                              "]
[null,null,"ULANSKI, L       TORRES LOPEZ,E 2324   UNCOSIGNED 04/13/22  29167727      OPHTHALMOLOGY T               SAUER,GREGORY  "]
[null,null,"ULANSKI, L       TAMBOURINE,ART 4632   UNCOSIGNED 04/13/22  29167762      OPHTHALMOLOGY T               SMITH,TREVON   "]
[null,null,"ULANSKI, L       JONES,WILLARD  6020   UNSIGNED   04/13/22  29167815      OPHTHALMOLOGY F                              "]
[null,null,"ULANSKI, L       STEWARD,RAYNAR 8582   UNCOSIGNED 04/13/22  29167902      OPHTHALMOLOGY T               SMITH,TREVON   "]
[null,null,"ULANSKI, L       COOPER,FORRESS 5974   UNSIGNED   04/13/22  29167905      OPHTHALMOLOGY N                              "]
[null,null,"ULANSKI, L       MORRIS,JACKIE  8282   UNCOSIGNED 04/13/22  29167948      OPHTHALMOLOGY T               SAUER,GREGORY  "]
[null,null,"ULANSKI, L       LUNGREN,ROBERT 6327   UNSIGNED   04/13/22  29168004      OPHTHALMOLOGY F                              "]
[null,null,"ULANSKI, L       STEWARD,RAYNAR 8582   UNSIGNED   04/13/22  29168436      OPHTHALMOLOGY F                              "]
[null,null,"ULANSKI, L       TAMBOURINE,ART 4632   UNSIGNED   04/13/22  29168508      OPHTHALMOLOGY F                              "]
[null,null,"ULANSKI, L       KAEBISCH,RICKE 2023   UNCOSIGNED 04/13/22  29168545      OPHTHALMOLOGY G               KAUFMAN,AARON  "]
[null,null,"ULANSKI, L       TORRES LOPEZ,E 2324   UNSIGNED   04/13/22  29168704      OPHTHALMOLOGY F                              "]
[null,null,"ULANSKI, L       MORRIS,JACKIE  8282   UNCOSIGNED 04/13/22  29168729      OPHTHALMOLOGY G               KAUFMAN,AARON  "]
[null,null,"ULANSKI, L       PALISEK,WILLIA 4776   UNSIGNED   04/13/22  29168779      OPHTHALMOLOGY F                              "]
[null,null,"ULANSKI, L       SCHULTZ,RONALD 0436   UNCOSIGNED 04/14/22  29170912      OPHTHALMOLOGY G               KAUFMAN,AARON  "]
[null,null,"ULANSKI, L       ANDERSEN,THEOD 7397   UNCOSIGNED 04/14/22  29171022      OPHTHALMOLOGY G               KAUFMAN,AARON  "]
[null,null,"ULANSKI, L       SUAREZ,JOSE AN 3991   UNCOSIGNED 04/14/22  29173457      OPHTHALMOLOGY T               SMITH,TREVON   "]
[null,null,"ULANSKI, L       SCHMIDT,JULIE  1363   UNCOSIGNED 04/14/22  29174282      OPHTHALMOLOGY T               SMITH,TREVON   "]
[null,null,"ULANSKI, L       HILL,NATHANIEL 0716   UNCOSIGNED 04/14/22  29174573      OPHTHALMOLOGY T               SMITH,TREVON   "]
[null,null,"ULANSKI, L       MOORE,DARLENE  2844   UNCOSIGNED 04/14/22  29174776      OPHTHALMOLOGY T               SMITH,TREVON   "]
[null,null,"ULANSKI, L       HILL,NATHANIEL 0716   UNCOSIGNED 04/14/22  29175385      OPHTHALMOLOGY G               KAUFMAN,AARON  "]
[null,null,"ULANSKI, L       MOORE,DARLENE  2844   UNCOSIGNED 04/14/22  29175652      OPHTHALMOLOGY O               KAUFMAN,AARON  "]
[null,null,"ULANSKI, L       DICKSON,BRENDA 4119   UNCOSIGNED 04/15/22  29177691      OPHTHALMOLOGY O               KAUFMAN,AARON  "]
[null,null,"ULANSKI, L       WILSON,DARRYL  3942   UNCOSIGNED 04/15/22  29177701      OPHTHALMOLOGY G               KAUFMAN,AARON  "]
[null,null,"ULANSKI, L       ZALKUS,ROBERT  0874   UNCOSIGNED 04/15/22  29177724      OPHTHALMOLOGY G               KAUFMAN,AARON  "]
[null,null,"ULANSKI, L       BIERMANN,DAVID 7237   UNCOSIGNED 04/15/22  29177733      OPHTHALMOLOGY G               KAUFMAN,AARON  "]
[null,null,"ULANSKI, L       SOLESKY,MICHAE 2590   UNCOSIGNED 04/15/22  29177748      OPHTHALMOLOGY G               KAUFMAN,AARON  "]
[null,null,"ULANSKI, L       VARSEK,ROBERT  1737   UNCOSIGNED 04/15/22  29177761      OPHTHALMOLOGY G               KAUFMAN,AARON  "]
[null,null,"ULANSKI, L       ZALKUS,ROBERT  0874   UNCOSIGNED 04/15/22  29177929      OPHTHALMOLOGY T               SMITH,TREVON   "]
[null,null,"ULANSKI, L       WILSON,DARRYL  3942   UNCOSIGNED 04/15/22  29178012      OPHTHALMOLOGY T               SMITH,TREVON   "]
[null,null,"ULANSKI, L       KARLOVICS,PETE 7577   UNCOSIGNED 04/15/22  29178567      OPHTHALMOLOGY T               SMITH,TREVON   "]
[null,null,"ULANSKI, L       VARSEK,ROBERT  1737   UNCOSIGNED 04/15/22  29178686      OPHTHALMOLOGY T               SMITH,TREVON   "]
[null,null,"ULANSKI, L       KARLOVICS,PETE 7577   UNSIGNED   04/15/22  29178779      OPHTHALMOLOGY F                              "]
[null,null,"ULANSKI, L       CARROLL,JUANIT 7715   UNCOSIGNED 04/15/22  29179167      OPHTHALMOLOGY T               SMITH,TREVON   "]
[null,null,"ULANSKI, L       CARROLL,JUANIT 7715   UNSIGNED   04/15/22  29179253      OPHTHALMOLOGY F                              "]
[null,null,"ULANSKI, L       DANIELS,FREDER 8086   UNCOSIGNED 04/15/22  29179455      OPHTHALMOLOGY G               KAUFMAN,AARON  "]
[null,null,"ULANSKI, L       SMITH,WILLIAM  1862   UNCOSIGNED 04/15/22  29179483      OPHTHALMOLOGY T               SMITH,TREVON   "]
[null,null,"ULANSKI, L       BRIDGES,EDWARD 7269   UNCOSIGNED 04/15/22  29179787      OPHTHALMOLOGY O               KAUFMAN,AARON  "]
[null,null,"ULANSKI, L       DEWITT,WILLIS  4799   UNCOSIGNED 04/15/22  29179797      OPHTHALMOLOGY G               KAUFMAN,AARON  "]
[null,null,"ULANSKI, L       SMITH,WILLIAM  1862   UNCOSIGNED 04/15/22  29180038      OPHTHALMOLOGY G               KAUFMAN,AARON  "]
[null,null,"ULANSKI, L       BROESKE,DAVID  4256   UNCOSIGNED 04/15/22  29180184      OPHTHALMOLOGY G               KAUFMAN,AARON  "]
[null,null,"ULANSKI, L       NOFSINGER,BURN 6008   UNCOSIGNED 04/15/22  29180473      OPHTHALMOLOGY G               KAUFMAN,AARON  "]
[null,null,"ULANSKI, L       GRAHAM,ROBERT  9510   UNCOSIGNED 04/15/22  29180748      OPHTHALMOLOGY G               KAUFMAN,AARON  "]
[null,null,"ULANSKI, L       MARTINEZ,SAMUE 9873   UNCOSIGNED 04/15/22  29181198      OPHTHALMOLOGY G               KAUFMAN,AARON  "]
[null,null,"ULANSKI, L       JAMES,STERLING 9684   UNCOSIGNED 04/15/22  29181254      OPHTHALMOLOGY T               SMITH,TREVON   "]
[null,null,"ULANSKI, L       JAMES,STERLING 9684   UNCOSIGNED 04/15/22  29181568      OPHTHALMOLOGY G               KAUFMAN,AARON  "]
[null,null,"ULANSKI, L       SCHMIDT,JULIE  1363   UNCOSIGNED 04/15/22  29181789      Addendum                      KAUFMAN,AARON  29174921"]
[null,null,"ULANSKI, L       BAKER,WALTER M 0735   UNCOSIGNED 04/15/22  29181845      OPHTHALMOLOGY G               KAUFMAN,AARON  "]
[null,null,"ULANSKI, L       HAGEMANN,LAWRE 4895   UNCOSIGNED 04/15/22  29182321      Addendum                      KAUFMAN,AARON  29141671"]
[null,null,"ULANSKI, L       ALLEN,JESSIE L 9684   UNCOSIGNED 04/17/22  29187040      Addendum                      KAUFMAN,AARON  29179545"]
[null,null,"ULANSKI, L       SLAGLE,JASON C 9514   UNCOSIGNED 04/18/22  29189395      OPHTHALMOLOGY T               SMITH,TREVON   "]
[null,null,"ULANSKI, L       YAMASHITA,TOMM 2342   UNCOSIGNED 04/18/22  29189439      OPHTHALMOLOGY T               SAUER,GREGORY  "]
[null,null,"ULANSKI, L       TAUSCHER,EDWAR 3609   UNCOSIGNED 04/18/22  29189649      OPHTHALMOLOGY T               SMITH,TREVON   "]
[null,null,"ULANSKI, L       YAMASHITA,TOMM 2342   UNCOSIGNED 04/18/22  29189746      OPHTHALMOLOGY F               STUBBS,AIDAN   "]
[null,null,"ULANSKI, L       MOORE,DARLENE  2844   UNCOSIGNED 04/18/22  29189862      OPHTHALMOLOGY T               SMITH,TREVON   "]
[null,null,"ULANSKI, L       WILLIAMS,MICHA 2576   UNCOSIGNED 04/18/22  29189872      OPHTHALMOLOGY T               SAUER,GREGORY  "]
[null,null,"ULANSKI, L       SIMMONS,RICHAR 4073   UNCOSIGNED 04/18/22  29189959      OPHTHALMOLOGY T               SMITH,TREVON   "]
[null,null,"ULANSKI, L       ROTH,DAVID ALL 6948   UNCOSIGNED 04/18/22  29189964      OPHTHALMOLOGY T               SAUER,GREGORY  "]
[null,null,"ULANSKI, L       TAUSCHER,EDWAR 3609   UNCOSIGNED 04/18/22  29189968      OPHTHALMOLOGY F               STUBBS,AIDAN   "]
[null,null,"ULANSKI, L       SPILLMAN,JAMES 1337   UNCOSIGNED 04/18/22  29190196      OPHTHALMOLOGY T               SMITH,TREVON   "]
[null,null,"ULANSKI, L       MOORE,DARLENE  2844   UNCOSIGNED 04/18/22  29190356      OPHTHALMOLOGY F               STUBBS,AIDAN   "]
[null,null,"ULANSKI, L       HARKNESS,WENDY 5091   UNCOSIGNED 04/18/22  29190377      OPHTHALMOLOGY T               SMITH,TREVON   "]
[null,null,"ULANSKI, L       ROHLOFF,LINDA  1206   UNCOSIGNED 04/18/22  29190408      OPHTHALMOLOGY T               SAUER,GREGORY  "]
[null,null,"ULANSKI, L       PETSKA,CHARLES 5534   UNCOSIGNED 04/18/22  29190511      OPHTHALMOLOGY T               SMITH,TREVON   "]
[null,null,"ULANSKI, L       OHNER,THOMAS R 5968   UNCOSIGNED 04/18/22  29190587      OPHTHALMOLOGY T               SAUER,GREGORY  "]
[null,null,"ULANSKI, L       ROTH,DAVID ALL 6948   UNSIGNED   04/18/22  29190652      OPHTHALMOLOGY F                              "]
[null,null,"ULANSKI, L       WON,SANGYOON   3260   UNCOSIGNED 04/18/22  29190687      OPHTHALMOLOGY T               SAUER,GREGORY  "]
[null,null,"ULANSKI, L       WILLIAMS,MICHA 2576   UNCOSIGNED 04/18/22  29190895      OPHTHALMOLOGY F               STUBBS,AIDAN   "]
[null,null,"ULANSKI, L       SPILLMAN,JAMES 1337   UNCOSIGNED 04/18/22  29190934      OPHTHALMOLOGY O               STUBBS,AIDAN   "]
[null,null,"ULANSKI, L       HORVATH,RAYMON 1691   UNCOSIGNED 04/18/22  29190972      OPHTHALMOLOGY T               SMITH,TREVON   "]
[null,null,"ULANSKI, L       SIEGEL,MITCHEL 5824   UNCOSIGNED 04/18/22  29191127      OPHTHALMOLOGY T               SMITH,TREVON   "]
[null,null,"ULANSKI, L       ROHLOFF,LINDA  1206   UNCOSIGNED 04/18/22  29191472      OPHTHALMOLOGY F               STUBBS,AIDAN   "]
[null,null,"ULANSKI, L       OHNER,THOMAS R 5968   UNSIGNED   04/18/22 "]

{"sheet":"Data","index":3,"n_rows":402,"n_cols":3,"rows_kept":402,"cut":false,"hidden":false,"merged":[]}
["          SERVICE: ACUTE INPATIENT"]
["          SERVICE: ASSOCIATE DIR DENTAL SERVICES",null,"          SERVICE: SURGICAL SERVICE"]
["          SERVICE: ASSOCIATE DIR FLEET MEDICINE",null,"RAHMAN, R        xxxxxxx 8352   UNSIGNED   04/18/22  29191309      ANESTHESIA PRE-                              "]
["          SERVICE: AUDIOLOGSPEECH PATH.",null,"RAHMAN, R        xxxxxx 8352   UNSIGNED   04/18/22  29191322      ANESTHESIA - PO                              "]
["          SERVICE: CARDIOLOGY SECTION"]
["          SERVICE: CHIEF MEDICAL EXECUTIVE"]
["          SERVICE: COMMAND SUITE"]
["          SERVICE: COMMUNITY LIVING CENTER"]
["          SERVICE: CRITICAL CARE SECTION",null,"          SERVICE: EVANSTON CBOC"]
["          SERVICE: DENTAL",null,"JOSEPH, J K      xxxxxxxx 7880   UNCOSIGNED 04/15/22  29178253      PACT Provider                 MANGAT,HITESH  "]
["          SERVICE: DERMATOLOGY SECTION",null,"JOSEPH, J K      xxxxxxx 4464   UNCOSIGNED 04/15/22  29178556      PRIMARY CARE (P               ALRASHID,OMAR  "]
["          SERVICE: DOMICILIARY SERVICE",null,"JOSEPH, J K      xxxxxxxx 4475   UNCOSIGNED 04/15/22  29179764      PACT Provider                 MANGAT,HITESH  "]
["          SERVICE: EDUCATION",null,"                 "]
["          SERVICE: EMERGENCY DEPARTMENT"]
["          SERVICE: ENDOCRINOLOGY SECTION"]
["          SERVICE: EVANSTON CBOC",null,"          SERVICE: INTERNAL MEDICINE"]
["          SERVICE: FACILITY MANAGEMENT SERVICE",null,"JOHNSON, T D     xxxxxxx,F 2078   UNSIGNED   04/05/22  29117618      PRIMARY CARE (P  IQBAL,FARZANA               "]
["          SERVICE: FISHER BRANCH CLINIC - 237",null,"JOHNSON, T D     vvvvvv  TYR 6492   UNSIGNED   04/06/22  29125135      PRIMARY CARE (P  IQBAL,FARZANA               "]
["          SERVICE: GASTROENTEROLOGY SECTION",null,"JOHNSON, T D     vvvvvvv  5548   UNSIGNED   04/07/22  29132348      PACT Provider    IQBAL,FARZANA               "]
["          SERVICE: GENERAL SURGERY"]
["          SERVICE: GERIATRICS & EXTENDED CARE"]
["          SERVICE: HEALTH CARE BUSINESS",null,"          SERVICE: MEDICINE"]
["          SERVICE: HOME COMMUNITY BASED CARE",null,"ALRASHID, O A    dddddd 5527   UNSIGNED   04/18/22  29192092      PRIMARY CARE (P  JOSEPH,JINCY                "]
["          SERVICE: IMAGING SERVICE",null,"ALRASHID, O A    bbbbb ANN  7510   UNSIGNED   04/18/22  29192700      PRIMARY CARE (P  JOSEPH,JINCY                "]
["          SERVICE: INFECTION CONTROL",null,"AMAN, O M        vvvv 8713   UNSIGNED   03/09/22  28974751      PRIMARY CARE V   LAYUG,ANNA                  "]
["          SERVICE: INFECTIOUS DISEASE SECTION",null,"PERBOHNER, Z J   bbbbb 4000   UNSIGNED   04/18/22  29191973      PRIMARY CARE (P  IQBAL,FARZANA               "]
["          SERVICE: INPATIENT ACUTE CARE & ICU"]
["          SERVICE: INPATIENT SERVICES"]
["          SERVICE: INTERNAL MEDICINE",null,"          SERVICE: MENTAL HEALTH CLINIC"]
["          SERVICE: KENOSHA CLINIC",null,"GETTYS, G C      bbbbb N 8363   UNCOSIGNED 02/08/22  28819933      MH TELEPHONE CO               TESMER,PAWEL   "]
["          SERVICE: LABORATORY SERVICE",null,"GETTYS, G C      jjjjjj 1345   UNCOSIGNED 02/08/22  28820139      VVC TELEHEALTH                TESMER,PAWEL   "]
["          SERVICE: MADISON TELEPHONE OPERATIONS",null,"  "]
["          SERVICE: MEDICAL SERVICE"]
["          SERVICE: MEDICAL SERVICES"]
["          SERVICE: MEDICINE",null,"          SERVICE: PHARMACY SERVICE"]
["          SERVICE: Medicine Services",null,"KOTEK, J J       hhhhh ST 6524   UNSIGNED   04/18/22  29188881      PHARMACY MEDICA                              "]
["          SERVICE: MEDICINE0"]
["          SERVICE: MENTAL HEALTH CLINIC"]
["          SERVICE: MENTAL HEALTH SERVICE"]
["          SERVICE: MENTAL HEALTH TEAM A"]
["          SERVICE: NEPHROLOGY SECTION",null,"          SERVICE: ACUTE INPATIENT"]
["          SERVICE: NEUROLOGY SERVICE",null,"VERGO, J M       bbbbb 8449   UNCOSIGNED 04/18/22  29192620      MH SDTU/SCREENI               FLYNN-CHRISTI  "]
["          SERVICE: NURSING SERVICE",null,"VERGO, J M       hhhhhh 8909   UNCOSIGNED 04/18/22  29193179      MH SDTU/INDIVID               FLYNN-CHRISTI  "]
["          SERVICE: NUTRITION AND FOOD SERVICE"]
["          SERVICE: OCC DELIVERY OPS"]
["          SERVICE: OCCUPATIONAL HEALTH MEDICINE",null,"          SERVICE: ASSOCIATE DIR DENTAL SERVICES"]
["          SERVICE: OFFICE OF PERFORMANCE IMP",null,"ANDERSEN, C C    ggggggg 1917   UNSIGNED   09/29/21  28128124      ADMINISTRATIVE                               "]
["          SERVICE: OPERATING ROOM",null,"ANDERSEN, C C    hhhhhh 3924   UNSIGNED   03/01/22  28932565      Addendum                                     28719077"]
["          SERVICE: OPHTHALMOLOGY SECTION",null,"EVANS, C S       ZZTEST,SCA ONE 6543   UNSIGNED   03/02/22  28937355      CCC: SCHEDULING                              "]
["          SERVICE: OPTOMETRY SECTION"]
["          SERVICE: ORTHOPEDIC SECTION"]
["          SERVICE: OUTPATIENTCONSULTATION",null,"          SERVICE: ASSOCIATE DIR FLEET MEDICINE"]
["          SERVICE: PATIENT ADMINISTRATION SERVICE",null,"NUNEZ, K L       hhhhhh 0439   UNSIGNED   04/05/22  29120143      Addendum                                     28951667"]
["          SERVICE: PATIENT ALIGNED CARE TEAM"]
["          SERVICE: PEDIATRICS"]
["          SERVICE: PHARMACY SERVICE",null,"          SERVICE: AUDIOLOG/SPEECH PATH."]
["          SERVICE: PHYSICAL THERAPY",null,"CASO, I A        bbbbb 4127   UNSIGNED   04/18/22  29193465      SPEECH AND LANG  BENDIKAS,SYLV               "]
["          SERVICE: PODIATRY SECTION",null,"EARNEST, J A     hhhhhh 8535   UNSIGNED   04/18/22  29191760      AUDIOLOGY EVALU                              "]
["          SERVICE: PRIMARY CARE DIR (MHPPACT)"]
["          SERVICE: PROSTHETICS & SENSORY AID"]
["          SERVICE: PULMONARY DISEASE SECTION"]
["          SERVICE: PULMONARY DISEASE SECTION0",null,"          SERVICE: CARDIOLOGY SECTION"]
["          SERVICE: RADIOLOGY SECTION",null,"PERRINEZ, P R    jjjjjj 1473   UNSIGNED   04/18/22  29190192      CARDIOLOGY OUTP                              "]
["          SERVICE: REHABILITATION"]
["          SERVICE: REMOTE"]
["          SERVICE: RESOURCES MANAGEMENT",null,"          SERVICE: CHIEF MEDICAL EXECUTIVE"]
["          SERVICE: ROCKFORD",null,"BATIE, Y L       hhhhhh 3299   UNSIGNED   04/08/22  29140866      NURSING NOTE                                 "]
["          SERVICE: SARPATP",null,"MANNING, T M     ZZTEST,SCA ONE 6543   UNSIGNED   04/07/22  29135107      RAI FRAILTY TOO                              "]
["          SERVICE: SOCIAL WORK",null,"SQUIER, E        jjjjjj 3304   UNSIGNED   04/18/22  29193268      OIF/OEF TELEPHO                              "]
["          SERVICE: SPECIAL MEDICAL EXAMS"]
["          SERVICE: SPECIAL PROGRAMS"]
["          SERVICE: SPECIALTY MEDICINE",null,"          SERVICE: COMMAND SUITE"]
["          SERVICE: Surgery",null,"COCHICO, S G     TEST,ELIGIBILI 0234   UNSIGNED   02/22/22  28895348      ELOPEMENT RISK                               "]
["          SERVICE: SURGICAL SERVICE",null,"HAMMAD, K Y      yyyyy 2792   UNSIGNED   11/02/21  28309710      Addendum                                     28291282"]
["          SERVICE: UNKNOWN",null,"                        "]
["          SERVICE: UROLOGY"]
["          SERVICE: USS TRANQUILITY - 1007"]
["          SERVICE: VISTA APPLICATIONS SUPPORT",null,"          SERVICE: COMMUNITY LIVING CENTER"]
["          SERVICE: WOMEN'S PRIMARY CARE",null,"JINSON, R        yyyyy 9044   UNSIGNED   04/18/22  29191595      HT INTERVENTION                              "]
[]
[]
[null,null,"          SERVICE: CRITICAL CARE SECTION"]
[null,null,"APIGO, M V       ZZTEST,BABY    1127   UNSIGNED   01/13/22  28692041      LIFE-SUSTAINING                              "]
[null,null,"CALLO-RAMIREZ, A hhhhhh UNSIGNED   03/11/22  28987161      SBAR                                         "]
[]
[]
[]
[null,null,"          SERVICE: DENTAL"]
[null,null,"FIGUEROA, J      ZZTEST,BABY    1127   UNSIGNED   12/27/21  28603066      DENTAL SERVICE   HALEEM,JAVERI               "]
[null,null,"PETTIS, T J      hhhhh 5126   UNSIGNED   04/08/22  29140303      DENTAL SERVICE                               "]
[]
[]
[null,null,"          SERVICE: DERMATOLOGY SECTION"]
[null,null,"CHAUDHRY, A K    hhhhhh JO 3182   UNSIGNED   04/18/22  29193798      Addendum                                     28859845"]
[null,null,"PATEL, P D       jujjjjj 8167   UNSIGNED   03/29/22  29081509      Addendum         CHAN,LAWRENCE               29021555"]
[]
[]
[null,null,"          SERVICE: DOMICILIARY SERVICE"]
[null,null,"WILSON-DIXON, A hhhhhh DAV 3771   UNSIGNED   04/18/22  29193210      RECREATION THER                              "]
[null,null,"WILSON-DIXON, A jjjjjjj AL 9161   UNSIGNED   04/18/22  29193219      RECREATION THER                              "]
[null,null,"                             "]
[]
[]
[null,null,"          SERVICE: EDUCATION"]
[null,null,"BISBEE, M        ZZBATCH,TEST   1974   UNSIGNED   11/24/21  28429369      VAAES ACUTE INP                              "]
[]
[]
[null,null,"          SERVICE: EMERGENCY DEPARTMENT"]
[null,null,"GRIFFIN, D T     rrrrrr P 6189   UNSIGNED   06/27/21  27624994      ED 10-10M NURSI  SINCLAIR,CHRI               "]
[null,null,"GRIFFIN, D T     dddddd 0538   UNSIGNED   08/02/21  27820136      ED 10-10M NURSI  SINCLAIR,CHRI               "]
[null,null,"                          "]
[]
[]
[null,null,"          SERVICE: ENDOCRINOLOGY SECTION"]
[null,null,"GILDEN, J L      hhhhhhREYE 9389   UNSIGNED   04/18/22  29188962      VVC TELEHEALTH                               "]
[null,null,"GILDEN, J L      jjjjjjjj 4348   UNSIGNED   04/18/22  29189064      ENDOCRINE OUTPA                              "]
[null,null," "]
[]
[]
[null,null,"          SERVICE: EVANSTON CBOC"]
[null,null,"JOSEPH, J K      tttttt 0592   UNSIGNED   04/15/22  29178520      LABORATORY PROG                              "]
[null,null,"JOSEPH, J K      ffffff 4567   UNCOSIGNED 04/15/22  29181213      PRIMARY CARE V                AMAN,OSMAN M   "]
[]
[]
[null,null,"          SERVICE: FACILITY MANAGEMENT SERVICE"]
[null,null,"KOCHIU, A V      fffffff 2578   UNSIGNED   03/18/22  29028694      Addendum                                     29012239"]
[]
[]
[null,null,"          SERVICE: FISHER BRANCH CLINIC - 237"]
[null,null,"BECKER, M H      hhhhhh GE 8114   UNCOSIGNED 04/08/22  29138279      IMMUNIZATION NO               HAZLETT,JACOB  "]
[null,null,"CARLSON, S J     bbbbbbb 1597   UNSIGNED   04/18/22  29193855      EMPLOYEE HEALTH                              "]
[null,null,"NEVAREZ HERNANDEZ, E gggggg 2662 UNSIGNED   04/07/22  29133520      IMMUNIZATION NO  JOHNSON,ALICE               "]
[]
[]
[null,null,"          SERVICE: GASTROENTEROLOGY SECTION"]
[null,null,"FELLER, A M      ffffff 3848   UNCOSIGNED 04/08/22  29142909      Addendum                      GILLICK,SHEIL  29044273"]
[null,null,"FELLER, A M      vvvvvvv 8090   UNCOSIGNED 04/15/22  29179080      Addendum                      GILLICK,SHEIL  29094050"]
[]
[]
[]
[null,null,"          SERVICE: GENERAL SURGERY"]
[null,null,"NELSON, T J      sssss 0880   UNCOSIGNED 03/25/21  27108445      SCREENING COVID               NUNEZ,KEVIN L  "]
[null,null,"NELSON, T J      zzzzz 3210   UNCOSIGNED 03/25/21  27108453      SCREENING COVID               NUNEZ,KEVIN L  "]
[]
[]
[null,null,"          SERVICE: GERIATRICS & EXTENDED CARE"]
[null,null,"ABUTALIB, J      ccccc M  4938   UNCOSIGNED 04/18/22  29194259      PRIMARY CARE (P               PARK,CHRISTOP  "]
[null,null,"BACASMAS, L C    fffffff 1550   UNCOSIGNED 11/12/21  28366398      VAAES NURSING F               CZAJKOWSKA,AL  "]
[]
[]
[]
[null,null,"          SERVICE: HEALTH CARE BUSINESS"]
[null,null,"ULLOA, M J       TEST,BABY      1128   UNSIGNED   08/24/21  27940016      APPOINTMENT SCH                              "]
[]
[]
[null,null,"          SERVICE: HOME COMMUNITY BASED CARE"]
[null,null,"CARVAJAL, J S    vvvvvv 8401   UNSIGNED   04/18/22  29189747      HT PERIODIC EVA                              "]
[null,null,"CARVAJAL, J S    cccccc 8401   UNSIGNED   04/18/22  29189825      HT CONTINUUM OF                              "]
[null,null,"                    "]
[]
[]
[null,null,"          SERVICE: IMAGING SERVICE"]
[null,null,"SCHINDLER, R L   vvvvv 8457   UNSIGNED   01/14/22  28697109      ADMINISTRATIVE                               "]
[null,null,"VASQUEZNUNEZ, W  vvvvvvv 2543   UNSIGNED   03/08/22  28968409      PROCEDURE TIME                               "]
[]
[]
[null,null,"          SERVICE: INFECTION CONTROL"]
[null,null,"KHAYR, W M       vvvvvv 6416   UNCOSIGNED 04/18/22  29191439      INFECTIOUS DISE               NAQVI,SYED M   "]
[null,null,"KHAYR, W M       vvvvvv 7269   UNCOSIGNED 04/18/22  29192690      INFECTIOUS DISE               NAQVI,SYED M   "]
[]
[]
[null,null,"          SERVICE: INPATIENT ACUTE CARE & ICU"]
[null,null,"ALLAN, N         bbbbb 1793   UNSIGNED   03/01/22  28929690      VAAES NURSING F                              "]
[null,null,"BLACK, J S       bbbbbbb5452   UNSIGNED   02/04/22  28806251      VAAES NURSING F                              "]
[]
[]
[]
[null,null,"          SERVICE: INPATIENT SERVICES"]
[null,null,"EARNEST, M A     vvvvvv 7661   UNSIGNED   06/19/21  27582745      DIALYSIS SBAR C                              "]
[]
[]
[null,null,"          SERVICE: INTERNAL MEDICINE"]
[null,null,"AHMED, A A       vvvvv 1377   UNSIGNED   01/04/22  28640653      PRIMARY CARE (P  DANIELS,JONAT               "]
[null,null,"AHMED, A A       kkkkk 6024   UNSIGNED   03/08/22  28970165      PRIMARY CARE (P  MORGAN,PAUL                 "]
[null,null,"       "]
[]
[]
[null,null,"          SERVICE: KENOSHA CLINIC"]
[null,null,"HOLLANT, G       nnnnn R 8492   UNCOSIGNED 12/24/21  28594851      Addendum                      NAQVI,SYED M   28560356"]
[null,null,"HOLLANT, G       jjjjjj 5086   UNCOSIGNED 01/25/22  28750117      Addendum                      NAQVI,SYED M   28665187"]
[]
[]
[null,null,"          SERVICE: LABORATORY SERVICE"]
[null,null,"BRIGGS, B L      nnnnnnnCRUZ,DO 9004   UNSIGNED   04/07/22  29133940      MH TELEPHONE CO                              "]
[]
[]
[null,null,"          SERVICE: MADISON TELEPHONE OPERATIONS"]
[null,null,"VAAGE, C A       nnnnnnnJO 1827   UNSIGNED   02/10/21  26872950      VAAES NSG COVID                              "]
[]
[]
[null,null,"          SERVICE: MEDICAL SERVICE"]
[null,null,"MEHTA, P S       nnnnnnnL 5287   UNCOSIGNED 04/11/22  29150358      Addendum                      PADURI,SWETHA  29135939"]
[]
[]
[null,null,"          SERVICE: MEDICAL SERVICES"]
[null,null,"RODRIGUEZ, A I   bbbbb 5129   UNSIGNED   01/20/22  28722072      ADMINISTRATIVE                               "]
[null,null,"RODRIGUEZ, A I   bbbbb 7441   UNSIGNED   02/02/22  28790350      ADMINISTRATIVE                               "]
[null,null,"                            "]
[]
[]
[null,null,"          SERVICE: MEDICINE"]
[null,null,"AMAN, O M        bbbbb 1071   UNSIGNED   07/22/21  27761549      PRIMARY CARE (P  DANIELS,JONAT               "]
[null,null,"AMAN, O M        nnnnnn S 8209   UNSIGNED   07/28/21  27796957      LIFE-SUSTAINING                              "]
[null,null,"    "]
[]
[]
[null,null,"          SERVICE: MENTAL HEALTH CLINIC"]
[null,null,"ALTMAN, C        vvvvM 3270   UNCOSIGNED 04/15/22  29179852      VVC TELEHEALTH                VACHAPARAMBIL  "]
[null,null,"COLBERT, L I     bbbb 4558   UNCOSIGNED 04/18/22  29189188      MH PSYCHIATRY O               WASSERMAN,DAN  "]
[]
[]
[]
[null,null,"          SERVICE: MENTAL HEALTH SERVICE"]
[null,null,"ABEYSEKERA, D I  vvvvv 9578   UNCOSIGNED 04/18/22  29192002      MH HISTORY & PH               YANG,JOHN K    "]
[null,null,"ABEYSEKERA, D I  gggg 4132   UNCOSIGNED 04/18/22  29192551      NO SHOW                       SINGH,JASLEEN  "]
[]
[]
[]
[null,null,"          SERVICE: MENTAL HEALTH TEAM A"]
[null,null,"HUNG, P          vvv R 2473   UNCOSIGNED 04/15/22  29182076      MH PSYCHIATRY O               SAHAGIAN,NICH  "]
[null,null,"HUNG, P          bbbbb 7821   UNCOSIGNED 04/18/22  29194474      STATE PRESCRIPT               RAJU,NIKHILES  "]
[]
[]
[null,null,"          SERVICE: Medicine Services"]
[null,null,"HAN, S           bbbbbb 3034   UNSIGNED   01/31/22  28778563      DISCHARGE/TRANS  MEHTA,PRAVEEN               "]
[null,null,"HAN, S           nnnnnn 3250   UNSIGNED   02/03/22  28800286      DISCHARGE/TRANS  PUTHENVEETIL,               "]
[null,null,"HAN, S           nnnnnn 9532   UNSIGNED   02/04/22  28801544      DISCHARGE/TRANS  MORGAN,PAUL                 "]
[]
[]
[null,null,"          SERVICE: NEUROLOGY SERVICE"]
[null,null,"ASIAMAH, P       ZZTEST,SCA ONE 6543   UNSIGNED   04/26/21  27281196      ADMINISTRATIVE                               "]
[null,null,"ASIAMAH, P       ZZTEST,SCA ONE 6543   UNSIGNED   04/26/21  27281607      ADMINISTRATIVE                               "]
[null,null,"                             "]
[]
[]
[null,null,"          SERVICE: NURSING SERVICE"]
[null,null,"ADABRA, L        bbbbb 9026   UNSIGNED   05/20/21  27422615      NURSING NOTE                                 "]
[null,null,"ALBERTO, A       bbbbbbb 8228   UNCOSIGNED 11/03/21  28313884      VAAES NURSING F               AUGUSTIN,SAGI  "]
[null,null," "]
[]
[]
[null,null,"          SERVICE: NUTRITION AND FOOD SERVICE"]
[null,null,"KELLY, E M       nnnnnn 6416   UNSIGNED   04/18/22  29191351      NUTRITION ASSES                              "]
[null,null,"ZURCHER, A R     nnnnnn 7096   UNSIGNED   04/18/22  29193689      NUTRITION CONSU                              "]
[]
[]
[null,null,"          SERVICE: OCC DELIVERY OPS"]
[null,null,"BELL, D A        bbbbb 8646   UNSIGNED   11/11/21  28360855      DISCHARGE/TRANS                              "]
[null,null,"COMBS, C D       bbbbbb 2499   UNSIGNED   02/25/22  28911871      COMMUNITY CARE                               "]
[null,null,"                   "]
[]
[]
[null,null,"          SERVICE: OCCUPATIONAL HEALTH MEDICINE"]
[null,null,"HAZLETT, J       bbbbb 0978   UNSIGNED   03/30/22  29086045      Addendum         JAISON,SANTHI               29050886"]
[null,null,"JOHNSON, A       nnnnnn 0348   UNCOSIGNED 04/14/22  29174384      VAAES NSG COVID               CHAVARRIA,AGU  "]
[null,null,"            "]
[]
[]
[null,null,"          SERVICE: OFFICE OF PERFORMANCE IMP"]
[null,null,"THOMAS, R S      ZZTEST,BABY    1127   UNSIGNED   09/02/21  27989778      LIFE-SUSTAINING                              "]
[]
[]
[null,null,"          SERVICE: OPHTHALMOLOGY SECTION"]
[null,null,"GUERREROMONTENEGRO, E AUSTIN,CAMERON0042UNSIGNED  02/02/22  28791119      SCREENING COVID  BORDEAU,LEIA                "]
[null,null,"KALRA, M D       bbbbb 4727   UNCOSIGNED 08/16/21  27892797      OPHTHALMOLOGY T               GUERREROMONTE  "]
[null,null,"KALRA, M D       bbbbb 4315   UNCOSIGNED 08/16/21  27893313      OPHTHALMOLOGY T               GUERREROMONTE  "]
[null,null,"        "]
[]
[]
[null,null,"          SERVICE: OPTOMETRY SECTION"]
[null,null,"GAMBOA, F T      vvvvv 0188   UNSIGNED   04/18/22  29192958      OPTOMETRY GENER                              "]
[null,null,"GAMBOA, F T      bbbbbbII 5364   UNSIGNED   04/18/22  29193271      OPTOMETRY GENER                              "]
[null,null,"       "]
[]
[]
[null,null,"          SERVICE: ORTHOPEDIC SECTION"]
[null,null,"CRUMP, E K       bbbbbbAN 4956   UNSIGNED   04/14/22  29173097      HISTORY & PHYSI                              "]
[null,null,"FOREMAN, S K     bbbbL 0962   UNSIGNED   08/18/21  27908687      AMBULATORY SURG  NIXON,DEBORAH               "]
[]
[]
[null,null,"          SERVICE: OUTPATIENT/CONSULTATION"]
[null,null,"BARSELLOTTI, M D vvvvv FR 7651   UNSIGNED   04/18/22  29188775      VVC TELEHEALTH                               "]
[]
[]
[null,null,"          SERVICE: PATIENT ADMINISTRATION SERVICE"]
[null,null,"ALEXANDER, K     bbbbb 9406   UNSIGNED   05/21/21  27424572      HISTORICAL MEDI                              "]
[null,null,"ALEXANDER, K     bbbbbA 2625   UNSIGNED   05/21/21  27427359      HISTORICAL MEDI                                                         "]
[]
[]
[null,null,"          SERVICE: PATIENT ALIGNED CARE TEAM"]
[null,null,"CHAVEZ, L A      bbbbb 7372   UNSIGNED   04/18/22  29191912      Addendum                                     28765926"]
[null,null,"DANZIGER, J M    bbbbbbM 0946   UNSIGNED   04/18/22  29193178      PRIMARY CARE (P                              "]
[null,null,"                     "]
[]
[]
[null,null,"          SERVICE: PEDIATRICS"]
[null,null,"WHITE, J L       bbbbbbb 6666   UNSIGNED   10/01/21  28142666      COVID-19 GPM AP                              "]
[]
[]
[null,null,"          SERVICE: PHARMACY SERVICE"]
[null,null,"ALAKA, Y         bbbbbb 9836   UNSIGNED   04/18/22  29189800      PHARMACY MEDICA                              "]
[null,null,"CANIFF, K E      bbbbbDAV 0593   UNCOSIGNED 04/18/22  29191457      PHARMACY ANTIMI               KARAPETYAN,KR  "]
[null,null,"                 "]
[]
[]
[null,null,"          SERVICE: PODIATRY SECTION"]
[null,null,"GIBBONEY, M D    bbbbbb 7033   UNCOSIGNED 04/18/22  29190065      PODIATRY GENERA               VAN BEEK,DEVO  "]
[null,null,"GIBBONEY, M D    bbbbbST 4945   UNCOSIGNED 04/18/22  29191959      PODIATRY GENERA               VAN BEEK,DEVO  "]
[]
[]
[null,null,"          SERVICE: PRIMARY CARE DIR (MHP/PACT)"]
[null,null,"HARDEN, K M      bbbbbJEA 3000   UNSIGNED   02/22/22  28890367      ADMINISTRATIVE                               "]
[null,null,"HARDEN, K M      bbbbbb 0339   UNSIGNED   03/16/22  29013827      ADMINISTRATIVE                               "]
[null,null,"SMITH, L         TEST,BABY      1128   UNSIGNED   03/04/22  28950771      STATE PRESCRIPT  MAJEWSKI,MARE               "]
[]
[]
[null,null,"          SERVICE: PROSTHETICS & SENSORY AID"]
[null,null,"CRONIN, T        bbbbbbbD 0608   UNSIGNED   10/21/21  28248749      PROSTHETIC & SE                              "]
[null,null,"WRIGHT, S A      ZZTEST,GLOBAL  1478   UNSIGNED   06/10/21  27529092      ADMINISTRATIVE                               "]
[null,null,"WRIGHT, S A      ZZBATCH,TEST   1974   UNSIGNED   06/10/21  27530514       ATTENDING (FRE                              "]
[null,null,"WRIGHT, S A      ZZTEST,BABY    1127   UNSIGNED   06/10/21  27530623       ATTENDING (FRE                              "]
[]
[]
[null,null,"          SERVICE: PULMONARY DISEASE SECTION"]
[null,null,"ANWAR, A         bbbbbb 6008   UNCOSIGNED 12/06/21  28492495      PULMONARY CLINI               ALI,RASHID AH  "]
[null,null,"ANWAR, A         nnnnnALBE 7698   UNCOSIGNED 12/06/21  28492583      PULMONARY CLINI               HASHM,HASSAN   "]
[null,null,"                            "]
[]
[]
[null,null,"          SERVICE: RADIOLOGY SECTION"]
[null,null,"MORTON-MILLER, A nnnnn 1951   UNSIGNED   02/25/22  28911208      ADMINISTRATIVE                               "]
[null,null,"ROBERTS, F W     nnnnnLECH 6975   UNSIGNED   08/27/21  27955865      PROCEDURE TIME                               "]
[]
[]
[null,null,"          SERVICE: REHABILITATION"]
[null,null,"BONGARALA, V J   bbbbM 8291   UNCOSIGNED 04/18/22  29193991      PM&RS PHYSICAL                BORKIEWICZ,AN  "]
[null,null,"BONGARALA, V J   hhhhh 2733   UNCOSIGNED 04/18/22  29194162      PM&RS PHYSICAL                BORKIEWICZ,AN  "]
[null,null,"                           "]
[]
[]
[null,null,"          SERVICE: REMOTE"]
[null,null,"GILBERT, A H     nnnnnn 4032   UNCOSIGNED 04/13/22  29164301      OPHTHALMOLOGY N               KAUFMAN,AARON  "]
[]
[]
[null,null,"          SERVICE: RESOURCES MANAGEMENT"]
[null,null,"COLEMAN, D E     ZZTEST,BABY    1982   UNSIGNED   04/26/21  27281214      ADMINISTRATIVE                               "]
[null,null,"COLEMAN, D E     ZZTEST,BABY    1982   UNSIGNED   04/26/21  27281637      ADMINISTRATIVE                               "]
[null,null,"COLEMAN, D E     ZZTEST,BABY    1982   UNSIGNED   04/26/21  27281863      ADMINISTRATIVE                               "]
[null,null,"COLEMAN, D E     ZZTEST,BABY    1982   UNSIGNED   04/27/21  27289845      ADMINISTRATIVE                               "]
[null,null,"COLEMAN, D E     bbbbbb 8335   UNSIGNED   02/14/22  28853773      ADMINISTRATIVE                               "]
[null,null,"COOPER, D C      bbbbb 4080   UNSIGNED   01/10/22  28670413      ADMINISTRATIVE   STIEBER,DEVIN               "]
[null,null,"MEDINA, E A      ZZTEST,MICKEY  9999   UNSIGNED   04/12/21  27202099      ADMINISTRATIVE                               "]
[null,null,"MEDINA, E A      ZZTEST,SCA ONE 6543   UNSIGNED   05/10/21  27360500      ADMINISTRATIVE                               "]
[null,null,"MEDINA, E A      ZZTEST,SCA ONE 6543   UNSIGNED   05/10/21  27361262      ADMINISTRATIVE                               "]
[null,null,"MEDINA, E A      ZZTEST,SCA ONE 6543   UNSIGNED   05/11/21  27367968      ADMINISTRATIVE                               "]
[null,null,"RECEPCION, D C   ZZTEST,TEST VE 5432   UNSIGNED   02/23/22  28897776      Addendum                                     28892646"]
[null,null,"RECEPCION, D C   ZZTEST,TEST VE 5432   UNSIGNED   04/18/22  29192410      ADMINISTRATIVE                               "]
[null,null,"                              "]
[]
[]
[null,null,"          SERVICE: ROCKFORD"]
[null,null,"WEBBER, P        ZZZAM,MINNIE   0250   UNSIGNED   06/21/21  27590887       ANGER MANAGEME                              "]
[null,null,"WEBBER, P        ZZZAM,MINNIE   0250   UNSIGNED   06/22/21  27600045       ANGER MANAGEME                              "]
[null,null,"WEBBER, P        ZZZAM,MINNIE   0250   UNSIGNED   11/03/21  28319510       ANGER MANAGEME                              "]
[null,null,"WEBBER, P        ZZZAM,MINNIE   0250   UNSIGNED   11/07/21  28337738       ANGER MANAGEME                              "]
[null,null,"WEBBER, P        ZZDUCK,DONALD  0110   UNSIGNED   11/22/21  28417262       ANGER MANAGEME                              "]
[null,null,"WEBBER, P        ZZDUCK,DONALD  0110   UNSIGNED   11/29/21  28446663       ANGER MANAGEME                              "]
[null,null,"WEBBER, P        ZZDUCK,DONALD  0110   UNSIGNED   12/01/21  28462886       ANGER MANAGEME                              "]
[null,null,"WEBBER, P        ZZDUCK,DONALD  0110   UNSIGNED   12/22/21  28585903       ANGER MANAGEME                              "]
[]
[]
[null,null,"          SERVICE: SPECIAL MEDICAL EXAMS"]
[null,null,"LIPSON, B D      nnnnnn 7912   UNSIGNED   04/06/22  29125664      AIRBORNE HAZARD                              "]
[]
[]
[null,null,"          SERVICE: SPECIAL PROGRAMS"]
[null,null,"HOBSON, R        nnnn 9631   UNSIGNED   10/04/21  28149369      ADL Checklist                                "]
[null,null,"HOBSON, R        ccccc 9631   UNSIGNED   10/04/21  28149376      ADL Checklist                                "]
[]
[]
[null,null,"          SERVICE: SPECIALTY MEDICINE"]
[null,null,"INCANDELA, A     bbbbbb 6736   UNSIGNED   07/15/21  27723254      IMED-INFORMED C                              "]
[]
[]
[null,null,"          SERVICE: SURGICAL SERVICE"]
[null,null,"ANDERSON, D C    ccccccD 2960   UNSIGNED   04/14/22  29172149      OPERATION REPOR  ANDERSON,DANI               "]
[null,null,"BARAN ROFFLE, N  kkkkkk 1392   UNSIGNED   10/06/21  28165904      NURSING NOTE  "]
[]
[null,null,"SERVICE: WOMEN'S PRIMARY CARE"]
[null,null,"KADIYALA, L      mmmmm 6380   UNSIGNED   04/14/22  29171664      PRIMARY CARE -                               "]
[null,null,"KADIYALA, L      nnnnnn 5860   UNSIGNED   04/14/22  29174582      PRIMARY CARE -                               "]
[null,null,"KADIYALA, L      eeeeee 5470   UNSIGNED   04/14/22  29175217      PRIMARY CARE -                               "]

{"sheet":"ASSOCIATE DIR FLEET MEDICINE","index":4,"n_rows":10,"n_cols":6,"rows_kept":10,"cut":false,"hidden":false,"merged":[]}
["ADFM1","ADFM2","ADFM3","ADFM4","ADFM5","ADFM6"]
["ADFM1","ADFM2","ADFM3","ADFM4","ADFM5","ADFM6"]
["ADFM1","ADFM2","ADFM3","ADFM4","ADFM5","ADFM6"]
["ADFM1","ADFM2","ADFM3","ADFM4","ADFM5","ADFM6"]
["ADFM1","ADFM2","ADFM3","ADFM4","ADFM5","ADFM6"]
["ADFM1","ADFM2","ADFM3","ADFM4","ADFM5","ADFM6"]
["ADFM1","ADFM2","ADFM3","ADFM4","ADFM5","ADFM6"]
["ADFM1","ADFM2","ADFM3","ADFM4","ADFM5","ADFM6"]
["ADFM1","ADFM2","ADFM3","ADFM4","ADFM5","ADFM6"]
["ADFM1","ADFM2","ADFM3","ADFM4","ADFM5","ADFM6"]

{"sheet":"FISHER BRANCH CLINIC - 237","index":5,"n_rows":10,"n_cols":6,"rows_kept":10,"cut":false,"hidden":false,"merged":[]}
["FBC1","FBC2","FBC3","FBC4","FBC5","FBC6"]
["FBC1","FBC2","FBC3","FBC4","FBC5","FBC6"]
["FBC1","FBC2","FBC3","FBC4","FBC5","FBC6"]
["FBC1","FBC2","FBC3","FBC4","FBC5","FBC6"]
["FBC1","FBC2","FBC3","FBC4","FBC5","FBC6"]
["FBC1","FBC2","FBC3","FBC4","FBC5","FBC6"]
["FBC1","FBC2","FBC3","FBC4","FBC5","FBC6"]
["FBC1","FBC2","FBC3","FBC4","FBC5","FBC6"]
["FBC1","FBC2","FBC3","FBC4","FBC5","FBC6"]
["FBC1","FBC2","FBC3","FBC4","FBC5","FBC6"]

{"sheet":"OCCUPATIONAL HEALTH MEDICINE","index":6,"n_rows":10,"n_cols":7,"rows_kept":10,"cut":false,"hidden":false,"merged":[]}
["OHM1","OHM2","OHM3","OHM4","OHM5","OHM6","OHM7"]
["OHM1","OHM2","OHM3","OHM4","OHM5","OHM6","OHM7"]
["OHM1","OHM2","OHM3","OHM4","OHM5","OHM6","OHM7"]
["OHM1","OHM2","OHM3","OHM4","OHM5","OHM6","OHM7"]
["OHM1","OHM2","OHM3","OHM4","OHM5","OHM6","OHM7"]
["OHM1","OHM2","OHM3","OHM4","OHM5","OHM6","OHM7"]
["OHM1","OHM2","OHM3","OHM4","OHM5","OHM6","OHM7"]
["OHM1","OHM2","OHM3","OHM4","OHM5","OHM6","OHM7"]
["OHM1","OHM2","OHM3","OHM4","OHM5","OHM6","OHM7"]
["OHM1","OHM2","OHM3","OHM4","OHM5","OHM6","OHM7"]

{"sheet":"FleetMerged","index":7,"n_rows":34,"n_cols":7,"rows_kept":34,"cut":false,"hidden":false,"merged":[]}
[]
[]
["ADFM1","ADFM2","ADFM3","ADFM4","ADFM5","ADFM6"]
["ADFM1","ADFM2","ADFM3","ADFM4","ADFM5","ADFM6"]
["ADFM1","ADFM2","ADFM3","ADFM4","ADFM5","ADFM6"]
["ADFM1","ADFM2","ADFM3","ADFM4","ADFM5","ADFM6"]
["ADFM1","ADFM2","ADFM3","ADFM4","ADFM5","ADFM6"]
["ADFM1","ADFM2","ADFM3","ADFM4","ADFM5","ADFM6"]
["ADFM1","ADFM2","ADFM3","ADFM4","ADFM5","ADFM6"]
["ADFM1","ADFM2","ADFM3","ADFM4","ADFM5","ADFM6"]
["ADFM1","ADFM2","ADFM3","ADFM4","ADFM5","ADFM6"]
["ADFM1","ADFM2","ADFM3","ADFM4","ADFM5","ADFM6"]
[]
["FBC1","FBC2","FBC3","FBC4","FBC5","FBC6"]
["FBC1","FBC2","FBC3","FBC4","FBC5","FBC6"]
["FBC1","FBC2","FBC3","FBC4","FBC5","FBC6"]
["FBC1","FBC2","FBC3","FBC4","FBC5","FBC6"]
["FBC1","FBC2","FBC3","FBC4","FBC5","FBC6"]
["FBC1","FBC2","FBC3","FBC4","FBC5","FBC6"]
["FBC1","FBC2","FBC3","FBC4","FBC5","FBC6"]
["FBC1","FBC2","FBC3","FBC4","FBC5","FBC6"]
["FBC1","FBC2","FBC3","FBC4","FBC5","FBC6"]
["FBC1","FBC2","FBC3","FBC4","FBC5","FBC6"]
[]
["OHM1","OHM2","OHM3","OHM4","OHM5","OHM6","OHM7"]
["OHM1","OHM2","OHM3","OHM4","OHM5","OHM6","OHM7"]
["OHM1","OHM2","OHM3","OHM4","OHM5","OHM6","OHM7"]
["OHM1","OHM2","OHM3","OHM4","OHM5","OHM6","OHM7"]
["OHM1","OHM2","OHM3","OHM4","OHM5","OHM6","OHM7"]
["OHM1","OHM2","OHM3","OHM4","OHM5","OHM6","OHM7"]
["OHM1","OHM2","OHM3","OHM4","OHM5","OHM6","OHM7"]
["OHM1","OHM2","OHM3","OHM4","OHM5","OHM6","OHM7"]
["OHM1","OHM2","OHM3","OHM4","OHM5","OHM6","OHM7"]
["OHM1","OHM2","OHM3","OHM4","OHM5","OHM6","OHM7"]

{"sheet":"ZeroFinds","index":8,"n_rows":2,"n_cols":1,"rows_kept":2,"cut":false,"hidden":false,"merged":[]}
["NO RECORDS NEED TO BE SIGNED BY:"]
["USS TRANQUILITY - 1007"]